account_party,address,code,date,document_number,expense_code_name,expense_code_name_short,id,party_cell,party_cell_code,party_cell_geoobject,purpose,source_bank_account_number,source_bank_account_type,sum,target_legal_personality,target_legal_personality_code,target_type
НАРОДНИЙ ФРОНТ,"Київ, вулиця Госпітальна, 12Г",70,2019-12-27,1390357601,Банківські послуги,Інші витрати,358151,Центральний офіс,39181335,Україна,Списання щомісячної плати за обслуговування поточного рахунку за грудень 2019р,26004100001777,state,240.00,"АТ ""Ощадбанк""",00032129,юридична особа
НАРОДНИЙ ФРОНТ,"Київ, вулиця Госпітальна, 12Г",70,2019-12-27,1390357701,Банківські послуги,Інші витрати,358150,Центральний офіс,39181335,Україна,Списання щомісячної плати за виконання операцій за допомогою систем дистанційного обслуговування,26004100001777,state,70.00,"АТ ""Ощадбанк""",00032129,юридична особа
НАРОДНИЙ ФРОНТ,Київ,62,2019-12-27,57,Сплата ЄСВ,Податкові платежі,358149,Центральний офіс,39181335,Україна,Єдиний соціальний внесок,26004100001777,state,9278.67,ГУ ДФС у м. Києві,43141267,юридична особа
НАРОДНИЙ ФРОНТ,"Київ, вулиця Єжи Ґедройця, 16",64,2019-12-27,3126/800,Повернення платежів партії,Повернення,358148,Центральний офіс,39181335,Україна,Повернення коштів,26004100001777,state,1314.20,"ТОВ ""Ніка-Нор""",31863930,юридична особа
НАРОДНИЙ ФРОНТ,"Кіровоградська область, Знам'янський район, Дмитрівка",66,2019-12-27,899574SB,Повернення внесків приватних внесків (донорам),Повернення приватних внесків (донорам),358147,Центральний офіс,39181335,Україна,Повернення коштів,26004100001777,state,251.90,"ТДВ ""Колос""",03758772,юридична особа
НАРОДНИЙ ФРОНТ,"Одеська область, Одеса, вулиця Жуковського, 20",66,2019-12-27,901012SB,Повернення внесків приватних внесків (донорам),Повернення приватних внесків (донорам),358146,Центральний офіс,39181335,Україна,Повернення коштів,26004100001777,state,125.52,"ПАТ ""Аптечна мережа ""Фармація""",22447055,юридична особа
НАРОДНИЙ ФРОНТ,"Хмельницька область, Шепетівка, вулиця Некрасова, 127",64,2019-12-27,901013SB,Повернення платежів партії,Повернення,358145,Центральний офіс,39181335,Україна,Повернення коштів,26004100001777,state,63.70,Шепетівське комунальне підприємство водопровідно-каналізаційного господарства,02092503,юридична особа
НАРОДНИЙ ФРОНТ,"Київ, вулиця Госпітальна, 12Г",70,2019-12-26,1355709701,Банківські послуги,Інші витрати,358144,Центральний офіс,39181335,Україна,Комiсія за розрахункове обслуговування рахункiв за грудень 2019 р,26004100001777,state,1561.86,"АТ ""Ощадбанк""",00032129,юридична особа
НАРОДНИЙ ФРОНТ,,64,2019-12-26,879202SB,Повернення платежів партії,Повернення,357923,Центральний офіс,39181335,Україна,Повернення коштів,26004100001777,state,149.06,Васильчук Мальвіна Григорівна,,фізична особа
НАРОДНИЙ ФРОНТ,"Київ, вулиця Госпітальна, 12Г",70,2019-12-24,8777465311,Банківські послуги,Інші витрати,358143,Центральний офіс,39181335,Україна,Комісія банку за виплату заробітної плати,26004100001777,state,7318.63,"АТ ""Ощадбанк""",00032129,юридична особа
НАРОДНИЙ ФРОНТ,"Київ, вулиця Кирилівська, 23",51,2019-12-24,4025,Оплата ефірного часу на ТБ,Телереклама,358142,Центральний офіс,39181335,Україна,Оплата за розміщення інформаційних матеріалів на телебаченні,26004100001777,state,2800000.00,"ТОВ ""ТРК ""Студія 1+1""",23729809,юридична особа
НАРОДНИЙ ФРОНТ,"Київ, вулиця Тропініна, 1",76,2019-12-24,4024,Послуги зв’язку,Послуги зв’язку,358141,Центральний офіс,39181335,Україна,Оплата за послуги телефонії за грудень 2019р.,26004100001777,state,1000.00,"ТОВ ""Космонова""",32074513,юридична особа
НАРОДНИЙ ФРОНТ,Київ,61,2019-12-24,4023,Військовий збір,Податкові платежі,358140,Центральний офіс,39181335,Україна,Військовий збір,26004100001777,state,266.82,УДКСУ в Дарницькому районі,38021179,юридична особа
НАРОДНИЙ ФРОНТ,Київ,63,2019-12-24,4022,Податок на доходи,Податкові платежі,358139,Центральний офіс,39181335,Україна,Податок на доходи фізичних осіб,26004100001777,state,3201.93,УДКСУ в Дарницькому районі,38021179,юридична особа
НАРОДНИЙ ФРОНТ,Київ,61,2019-12-24,4020,Військовий збір,Податкові платежі,358138,Центральний офіс,39181335,Україна,Військовий збір,26004100001777,state,28000.00,УДКСУ в Дарницькому районі,38021179,юридична особа
НАРОДНИЙ ФРОНТ,Київ,63,2019-12-24,4019,Податок на доходи,Податкові платежі,358137,Центральний офіс,39181335,Україна,Податок на доходи фізичних осіб,26004100001777,state,345000.00,УДКСУ в Дарницькому районі,38021179,юридична особа
НАРОДНИЙ ФРОНТ,Київ,62,2019-12-24,4018,Сплата ЄСВ,Податкові платежі,358136,Центральний офіс,39181335,Україна,Єдиний соціальний внесок,26004100001777,state,400000.00,ГУ ДФС у м. Києві,43141267,юридична особа
НАРОДНИЙ ФРОНТ,Київ,61,2019-12-24,4012,Військовий збір,Податкові платежі,358135,Центральний офіс,39181335,Україна,Військовий збір,26004100001777,state,250.00,УДКСУ в Дарницькому районі,38021179,юридична особа
НАРОДНИЙ ФРОНТ,Київ,63,2019-12-24,4011,Податок на доходи,Податкові платежі,358134,Центральний офіс,39181335,Україна,Податок на доходи фізичних осіб,26004100001777,state,3500.00,УДКСУ в Дарницькому районі,38021179,юридична особа
НАРОДНИЙ ФРОНТ,"Харківська область, Харків, вулиця Сумська, 88",79,2019-12-24,4010,"Оренда будинків і приміщень та експлуатаційні витрати (прибирання, страхування орендованих будинків, охорона, сигналізація, ремонт, вивіз сміття, тощо)",Оренда нерухомості,358133,Центральний офіс,39181335,Україна,Відшкодування вартості комунальних послуг за грудень 2019р.,26004100001777,state,40168.04,"ПП ""Міністрі Плюс""",33205780,юридична особа
НАРОДНИЙ ФРОНТ,"Харківська область, Харків, вулиця Сумська, 88",79,2019-12-24,4009,"Оренда будинків і приміщень та експлуатаційні витрати (прибирання, страхування орендованих будинків, охорона, сигналізація, ремонт, вивіз сміття, тощо)",Оренда нерухомості,358132,Центральний офіс,39181335,Україна,Відшкодування вартості комунальних послуг за листопад 2019р.,26004100001777,state,26362.22,"ПП ""Міністрі Плюс""",33205780,юридична особа
НАРОДНИЙ ФРОНТ,"Київ, вулиця Волоська, 55-57",79,2019-12-24,4005,"Оренда будинків і приміщень та експлуатаційні витрати (прибирання, страхування орендованих будинків, охорона, сигналізація, ремонт, вивіз сміття, тощо)",Оренда нерухомості,358131,Центральний офіс,39181335,Україна,Відшкодування вартості комунальних послуг за грудень 2019р.,26004100001777,state,4872.32,"ТОВ ""ПАКТА-ЛЕГЕТІМА""",37037083,юридична особа
НАРОДНИЙ ФРОНТ,"Житомирська область, Житомир, вулиця Велика Бердичівська, 19",79,2019-12-24,4001,"Оренда будинків і приміщень та експлуатаційні витрати (прибирання, страхування орендованих будинків, охорона, сигналізація, ремонт, вивіз сміття, тощо)",Оренда нерухомості,358130,Центральний офіс,39181335,Україна,Відшкодування вартості комунальних послуг за грудень 2019р.,26004100001777,state,5575.00,"ТОВ ""Ростмедіа.ТВ""",37671921,юридична особа
НАРОДНИЙ ФРОНТ,"Київ, Бехтеревський провулок, 14",79,2019-12-24,3998,"Оренда будинків і приміщень та експлуатаційні витрати (прибирання, страхування орендованих будинків, охорона, сигналізація, ремонт, вивіз сміття, тощо)",Оренда нерухомості,358129,Центральний офіс,39181335,Україна,Відшкодування витрат за опалення за грудень 2019р.,26004100001777,state,14625.60,"ТОВ ""Житло-Сервіс""",30167045,юридична особа
НАРОДНИЙ ФРОНТ,"Київ, Бехтеревський провулок, 14",79,2019-12-24,3997,"Оренда будинків і приміщень та експлуатаційні витрати (прибирання, страхування орендованих будинків, охорона, сигналізація, ремонт, вивіз сміття, тощо)",Оренда нерухомості,358128,Центральний офіс,39181335,Україна,Відшкодування витрат за передану електроенергію за грудень 2019р.,26004100001777,state,20256.29,"ТОВ ""Житло-Сервіс""",30167045,юридична особа
НАРОДНИЙ ФРОНТ,"Київ, Бехтеревський провулок, 14",79,2019-12-24,3996,"Оренда будинків і приміщень та експлуатаційні витрати (прибирання, страхування орендованих будинків, охорона, сигналізація, ремонт, вивіз сміття, тощо)",Оренда нерухомості,358127,Центральний офіс,39181335,Україна,Оплата за обсуговування та утримання будинку за грудень 2019р.,26004100001777,state,4572.37,"ТОВ ""Житло-Сервіс""",30167045,юридична особа
НАРОДНИЙ ФРОНТ,"Київ, Контрактова площа, 10А",79,2019-12-24,3995,"Оренда будинків і приміщень та експлуатаційні витрати (прибирання, страхування орендованих будинків, охорона, сигналізація, ремонт, вивіз сміття, тощо)",Оренда нерухомості,358126,Центральний офіс,39181335,Україна,Орендна плата за грудень 2019р.,26004100001777,state,375.40,"ПАТ ""Діамантбанк""",23362711,юридична особа
НАРОДНИЙ ФРОНТ,"Київ, Контрактова площа, 10А",79,2019-12-24,3994,"Оренда будинків і приміщень та експлуатаційні витрати (прибирання, страхування орендованих будинків, охорона, сигналізація, ремонт, вивіз сміття, тощо)",Оренда нерухомості,358125,Центральний офіс,39181335,Україна,Відшкодування вартості комунальних послуг за листопад - грудень 2019р.,26004100001777,state,1310.83,"ПАТ ""Діамантбанк""",23362711,юридична особа
НАРОДНИЙ ФРОНТ,,84,2019-12-24,25122,"Заробітна плата, премії","Заробітна плата, лікарняні, вагітності, відрядження, компенсації",357922,Центральний офіс,39181335,Україна,Заробітна плата за грудень 2019р.,26004100001777,state,4405.54,Литовченко Валерій Олексійович,,фізична особа
НАРОДНИЙ ФРОНТ,,84,2019-12-24,19122,"Заробітна плата, премії","Заробітна плата, лікарняні, вагітності, відрядження, компенсації",357921,Центральний офіс,39181335,Україна,Заробітна плата за грудень 2019р.,26004100001777,state,8563.40,Кравець Вікторія Валеріївна,,фізична особа
НАРОДНИЙ ФРОНТ,,84,2019-12-24,8122,"Заробітна плата, премії","Заробітна плата, лікарняні, вагітності, відрядження, компенсації",357920,Центральний офіс,39181335,Україна,Заробітна плата за грудень 2019р.,26004100001777,state,11581.56,Корольчук Людмила Кирилівна,,фізична особа
НАРОДНИЙ ФРОНТ,,84,2019-12-24,15122,"Заробітна плата, премії","Заробітна плата, лікарняні, вагітності, відрядження, компенсації",357919,Центральний офіс,39181335,Україна,Заробітна плата за грудень 2019р.,26004100001777,state,6536.99,Кожан Олександр Васильович,,фізична особа
НАРОДНИЙ ФРОНТ,,84,2019-12-24,18122,"Заробітна плата, премії","Заробітна плата, лікарняні, вагітності, відрядження, компенсації",357918,Центральний офіс,39181335,Україна,Заробітна плата за грудень 2019р.,26004100001777,state,8355.72,Кирій Олеся Миколаївна,,фізична особа
НАРОДНИЙ ФРОНТ,,84,2019-12-24,5122,"Заробітна плата, премії","Заробітна плата, лікарняні, вагітності, відрядження, компенсації",357917,Центральний офіс,39181335,Україна,Заробітна плата за грудень 2019р.,26004100001777,state,11863.93,Карач Юлія Іванівна,,фізична особа
НАРОДНИЙ ФРОНТ,,84,2019-12-24,9122,"Заробітна плата, премії","Заробітна плата, лікарняні, вагітності, відрядження, компенсації",357916,Центральний офіс,39181335,Україна,Заробітна плата за грудень 2019р.,26004100001777,state,11132.70,Зуєнко Людмила Миколаївна,,фізична особа
НАРОДНИЙ ФРОНТ,,84,2019-12-24,2122,"Заробітна плата, премії","Заробітна плата, лікарняні, вагітності, відрядження, компенсації",357915,Центральний офіс,39181335,Україна,Заробітна плата за грудень 2019р.,26004100001777,state,14374.13,Заєць Тетяна Петрівна,,фізична особа
НАРОДНИЙ ФРОНТ,,84,2019-12-24,14122,"Заробітна плата, премії","Заробітна плата, лікарняні, вагітності, відрядження, компенсації",357914,Центральний офіс,39181335,Україна,Заробітна плата за грудень 2019р.,26004100001777,state,9778.51,Єрофєєва Оксана Петрівна,,фізична особа
НАРОДНИЙ ФРОНТ,,84,2019-12-24,15122,"Заробітна плата, премії","Заробітна плата, лікарняні, вагітності, відрядження, компенсації",357913,Центральний офіс,39181335,Україна,Заробітна плата за грудень 2019р.,26004100001777,state,8869.33,Ємсенко Владислава Володимирівна,,фізична особа
НАРОДНИЙ ФРОНТ,,84,2019-12-24,22122,"Заробітна плата, премії","Заробітна плата, лікарняні, вагітності, відрядження, компенсації",357912,Центральний офіс,39181335,Україна,Заробітна плата за грудень 2019р.,26004100001777,state,10043.37,Дроздик Анатолій Вячеславович,,фізична особа
НАРОДНИЙ ФРОНТ,,84,2019-12-24,7122,"Заробітна плата, премії","Заробітна плата, лікарняні, вагітності, відрядження, компенсації",357911,Центральний офіс,39181335,Україна,Заробітна плата за грудень 2019р.,26004100001777,state,10500.37,Данилюк Ірина Степанівна,,фізична особа
НАРОДНИЙ ФРОНТ,,84,2019-12-24,17122,"Заробітна плата, премії","Заробітна плата, лікарняні, вагітності, відрядження, компенсації",357910,Центральний офіс,39181335,Україна,Заробітна плата за грудень 2019р.,26004100001777,state,4295.17,Генеральчук Ніна Миколаївна,,фізична особа
НАРОДНИЙ ФРОНТ,,84,2019-12-24,24122,"Заробітна плата, премії","Заробітна плата, лікарняні, вагітності, відрядження, компенсації",357909,Центральний офіс,39181335,Україна,Заробітна плата за грудень 2019р.,26004100001777,state,13934.98,Вишневська Світлана Петрівна,,фізична особа
НАРОДНИЙ ФРОНТ,,84,2019-12-24,21122,"Заробітна плата, премії","Заробітна плата, лікарняні, вагітності, відрядження, компенсації",357908,Центральний офіс,39181335,Україна,Заробітна плата за грудень 2019р.,26004100001777,state,7206.60,Виноградова Ольга Олександрівна,,фізична особа
НАРОДНИЙ ФРОНТ,,84,2019-12-24,24122,"Заробітна плата, премії","Заробітна плата, лікарняні, вагітності, відрядження, компенсації",357907,Центральний офіс,39181335,Україна,Заробітна плата за грудень 2019р.,26004100001777,state,14495.64,Ватаманюк Людмила Іванівна,,фізична особа
НАРОДНИЙ ФРОНТ,,84,2019-12-24,25122,"Заробітна плата, премії","Заробітна плата, лікарняні, вагітності, відрядження, компенсації",357906,Центральний офіс,39181335,Україна,Заробітна плата за грудень 2019р.,26004100001777,state,6428.58,Бруй Юлія Віталіївна,,фізична особа
НАРОДНИЙ ФРОНТ,,84,2019-12-24,8122,"Заробітна плата, премії","Заробітна плата, лікарняні, вагітності, відрядження, компенсації",357905,Центральний офіс,39181335,Україна,Заробітна плата за грудень 2019р.,26004100001777,state,16731.91,Білецька Тетяна Вадимівна,,фізична особа
НАРОДНИЙ ФРОНТ,,84,2019-12-24,13122,"Заробітна плата, премії","Заробітна плата, лікарняні, вагітності, відрядження, компенсації",357904,Центральний офіс,39181335,Україна,Заробітна плата за грудень 2019р.,26004100001777,state,10420.32,Беспалова Марія Петрівна,,фізична особа
НАРОДНИЙ ФРОНТ,,84,2019-12-24,20122,"Заробітна плата, премії","Заробітна плата, лікарняні, вагітності, відрядження, компенсації",357903,Центральний офіс,39181335,Україна,Заробітна плата за грудень 2019р.,26004100001777,state,6643.44,Ярошенко Євген Станіславович,,фізична особа
НАРОДНИЙ ФРОНТ,,84,2019-12-24,7122,"Заробітна плата, премії","Заробітна плата, лікарняні, вагітності, відрядження, компенсації",357902,Центральний офіс,39181335,Україна,Заробітна плата за грудень 2019р.,26004100001777,state,10169.71,Шатківський Дмитро Олександрович,,фізична особа
НАРОДНИЙ ФРОНТ,,84,2019-12-24,22122,"Заробітна плата, премії","Заробітна плата, лікарняні, вагітності, відрядження, компенсації",357901,Центральний офіс,39181335,Україна,Заробітна плата за грудень 2019р.,26004100001777,state,13730.90,Цоміна Тетяна Михайлівна,,фізична особа
НАРОДНИЙ ФРОНТ,,84,2019-12-24,23122,"Заробітна плата, премії","Заробітна плата, лікарняні, вагітності, відрядження, компенсації",357900,Центральний офіс,39181335,Україна,Заробітна плата за грудень 2019р.,26004100001777,state,8251.87,Фурса Оксана Володимирівна,,фізична особа
НАРОДНИЙ ФРОНТ,,84,2019-12-24,11122,"Заробітна плата, премії","Заробітна плата, лікарняні, вагітності, відрядження, компенсації",357899,Центральний офіс,39181335,Україна,Заробітна плата за грудень 2019р.,26004100001777,state,5834.02,Фролов Микола Володимирович,,фізична особа
НАРОДНИЙ ФРОНТ,,84,2019-12-24,23122,"Заробітна плата, премії","Заробітна плата, лікарняні, вагітності, відрядження, компенсації",357898,Центральний офіс,39181335,Україна,Заробітна плата за грудень 2019р.,26004100001777,state,11216.56,Соловйова Вікторія Владиславівна,,фізична особа
НАРОДНИЙ ФРОНТ,,84,2019-12-24,12122,"Заробітна плата, премії","Заробітна плата, лікарняні, вагітності, відрядження, компенсації",357897,Центральний офіс,39181335,Україна,Заробітна плата за грудень 2019р.,26004100001777,state,8256.32,Сарафанова Наталія Василівна,,фізична особа
НАРОДНИЙ ФРОНТ,,84,2019-12-24,12122,"Заробітна плата, премії","Заробітна плата, лікарняні, вагітності, відрядження, компенсації",357896,Центральний офіс,39181335,Україна,Заробітна плата за грудень 2019р.,26004100001777,state,10500.37,Самойленко Анна Олександрівна,,фізична особа
НАРОДНИЙ ФРОНТ,,84,2019-12-24,10122,"Заробітна плата, премії","Заробітна плата, лікарняні, вагітності, відрядження, компенсації",357895,Центральний офіс,39181335,Україна,Заробітна плата за грудень 2019р.,26004100001777,state,14527.46,Савчин Андрій Якимович,,фізична особа
НАРОДНИЙ ФРОНТ,,84,2019-12-24,9122,"Заробітна плата, премії","Заробітна плата, лікарняні, вагітності, відрядження, компенсації",357894,Центральний офіс,39181335,Україна,Заробітна плата за грудень 2019р.,26004100001777,state,12490.44,Останькович Олена Миколаївна,,фізична особа
НАРОДНИЙ ФРОНТ,,84,2019-12-24,18122,"Заробітна плата, премії","Заробітна плата, лікарняні, вагітності, відрядження, компенсації",357893,Центральний офіс,39181335,Україна,Заробітна плата за грудень 2019р.,26004100001777,state,7560.42,Ольшанський Олег Вікторович,,фізична особа
НАРОДНИЙ ФРОНТ,,84,2019-12-24,5122,"Заробітна плата, премії","Заробітна плата, лікарняні, вагітності, відрядження, компенсації",357892,Центральний офіс,39181335,Україна,Заробітна плата за грудень 2019р.,26004100001777,state,14611.18,Обез Марина Іванівна,,фізична особа
НАРОДНИЙ ФРОНТ,,84,2019-12-24,4122,"Заробітна плата, премії","Заробітна плата, лікарняні, вагітності, відрядження, компенсації",357891,Центральний офіс,39181335,Україна,Заробітна плата за грудень 2019р.,26004100001777,state,2908.21,Набойчик Олена Сергіївна,,фізична особа
НАРОДНИЙ ФРОНТ,,84,2019-12-24,19122,"Заробітна плата, премії","Заробітна плата, лікарняні, вагітності, відрядження, компенсації",357890,Центральний офіс,39181335,Україна,Заробітна плата за грудень 2019р.,26004100001777,state,19761.53,Михайлюк Віктор Іванович,,фізична особа
НАРОДНИЙ ФРОНТ,,84,2019-12-24,20122,"Заробітна плата, премії","Заробітна плата, лікарняні, вагітності, відрядження, компенсації",357889,Центральний офіс,39181335,Україна,Заробітна плата за грудень 2019р.,26004100001777,state,11447.13,Мих Олександр Вікторович,,фізична особа
НАРОДНИЙ ФРОНТ,,84,2019-12-24,13122,"Заробітна плата, премії","Заробітна плата, лікарняні, вагітності, відрядження, компенсації",357888,Центральний офіс,39181335,Україна,Заробітна плата за грудень 2019р.,26004100001777,state,3191.47,Мацукевич Христина Романівна,,фізична особа
НАРОДНИЙ ФРОНТ,,84,2019-12-24,11122,"Заробітна плата, премії","Заробітна плата, лікарняні, вагітності, відрядження, компенсації",357887,Центральний офіс,39181335,Україна,Заробітна плата за грудень 2019р.,26004100001777,state,9800.93,Махновець Віктор Петрович,,фізична особа
НАРОДНИЙ ФРОНТ,,84,2019-12-24,17122,"Заробітна плата, премії","Заробітна плата, лікарняні, вагітності, відрядження, компенсації",357886,Центральний офіс,39181335,Україна,Заробітна плата за грудень 2019р.,26004100001777,state,11998.96,Малухіна Оксана Юріївна,,фізична особа
НАРОДНИЙ ФРОНТ,,84,2019-12-24,1122,"Заробітна плата, премії","Заробітна плата, лікарняні, вагітності, відрядження, компенсації",357885,Центральний офіс,39181335,Україна,Заробітна плата за грудень 2019р.,26004100001777,state,4797.80,Койляк Галина Ігорівна,,фізична особа
НАРОДНИЙ ФРОНТ,,84,2019-12-24,1122,"Заробітна плата, премії","Заробітна плата, лікарняні, вагітності, відрядження, компенсації",357884,Центральний офіс,39181335,Україна,Заробітна плата за грудень 2019р.,26004100001777,state,9583.33,Колганова Олена Валеріївна,,фізична особа
НАРОДНИЙ ФРОНТ,,84,2019-12-24,1122,"Заробітна плата, премії","Заробітна плата, лікарняні, вагітності, відрядження, компенсації",357883,Центральний офіс,39181335,Україна,Заробітна плата за грудень 2019р.,26004100001777,state,4791.67,Корчик Віталій Андрійович,,фізична особа
НАРОДНИЙ ФРОНТ,,84,2019-12-24,1122,"Заробітна плата, премії","Заробітна плата, лікарняні, вагітності, відрядження, компенсації",357882,Центральний офіс,39181335,Україна,Заробітна плата за грудень 2019р.,26004100001777,state,7283.34,Кулібаба Наталія Юріївна,,фізична особа
НАРОДНИЙ ФРОНТ,,84,2019-12-24,1122,"Заробітна плата, премії","Заробітна плата, лікарняні, вагітності, відрядження, компенсації",357881,Центральний офіс,39181335,Україна,Заробітна плата за грудень 2019р.,26004100001777,state,7283.34,Курас Лариса Петрівна,,фізична особа
НАРОДНИЙ ФРОНТ,,84,2019-12-24,1122,"Заробітна плата, премії","Заробітна плата, лікарняні, вагітності, відрядження, компенсації",357880,Центральний офіс,39181335,Україна,Заробітна плата за грудень 2019р.,26004100001777,state,7290.05,Лаппо Ольга Георгіївна,,фізична особа
НАРОДНИЙ ФРОНТ,,84,2019-12-24,1122,"Заробітна плата, премії","Заробітна плата, лікарняні, вагітності, відрядження, компенсації",357879,Центральний офіс,39181335,Україна,Заробітна плата за грудень 2019р.,26004100001777,state,4737.68,Лебедєв Микола Васильович,,фізична особа
НАРОДНИЙ ФРОНТ,,84,2019-12-24,1122,"Заробітна плата, премії","Заробітна плата, лікарняні, вагітності, відрядження, компенсації",357878,Центральний офіс,39181335,Україна,Заробітна плата за грудень 2019р.,26004100001777,state,11499.99,Ледовських Олена Володимирівна,,фізична особа
НАРОДНИЙ ФРОНТ,,84,2019-12-24,1122,"Заробітна плата, премії","Заробітна плата, лікарняні, вагітності, відрядження, компенсації",357877,Центральний офіс,39181335,Україна,Заробітна плата за грудень 2019р.,26004100001777,state,7386.42,Лимар Юрій Володимирович,,фізична особа
НАРОДНИЙ ФРОНТ,,84,2019-12-24,1122,"Заробітна плата, премії","Заробітна плата, лікарняні, вагітності, відрядження, компенсації",357876,Центральний офіс,39181335,Україна,Заробітна плата за грудень 2019р.,26004100001777,state,2640.02,Литвиненко Андрій Миколайович,,фізична особа
НАРОДНИЙ ФРОНТ,,84,2019-12-24,1122,"Заробітна плата, премії","Заробітна плата, лікарняні, вагітності, відрядження, компенсації",357875,Центральний офіс,39181335,Україна,Заробітна плата за грудень 2019р.,26004100001777,state,5218.11,Ляшенко Микола Миколайович,,фізична особа
НАРОДНИЙ ФРОНТ,,84,2019-12-24,1122,"Заробітна плата, премії","Заробітна плата, лікарняні, вагітності, відрядження, компенсації",357874,Центральний офіс,39181335,Україна,Заробітна плата за грудень 2019р.,26004100001777,state,2401.03,Коба Ольга Володимирівна,,фізична особа
НАРОДНИЙ ФРОНТ,,84,2019-12-24,1122,"Заробітна плата, премії","Заробітна плата, лікарняні, вагітності, відрядження, компенсації",357873,Центральний офіс,39181335,Україна,Заробітна плата за грудень 2019р.,26004100001777,state,4798.37,Карасьов Дмитро Геннадійович,,фізична особа
НАРОДНИЙ ФРОНТ,,84,2019-12-24,1122,"Заробітна плата, премії","Заробітна плата, лікарняні, вагітності, відрядження, компенсації",357872,Центральний офіс,39181335,Україна,Заробітна плата за грудень 2019р.,26004100001777,state,16079.53,Данилюк Марина Миколаївна,,фізична особа
НАРОДНИЙ ФРОНТ,,84,2019-12-24,1122,"Заробітна плата, премії","Заробітна плата, лікарняні, вагітності, відрядження, компенсації",357871,Центральний офіс,39181335,Україна,Заробітна плата за грудень 2019р.,26004100001777,state,16291.69,Гринь Костянтин Андрійович,,фізична особа
НАРОДНИЙ ФРОНТ,,84,2019-12-24,1122,"Заробітна плата, премії","Заробітна плата, лікарняні, вагітності, відрядження, компенсації",357870,Центральний офіс,39181335,Україна,Заробітна плата за грудень 2019р.,26004100001777,state,4798.37,Валявська Ольга Дмитрівна,,фізична особа
НАРОДНИЙ ФРОНТ,,84,2019-12-24,1122,"Заробітна плата, премії","Заробітна плата, лікарняні, вагітності, відрядження, компенсації",357869,Центральний офіс,39181335,Україна,Заробітна плата за грудень 2019р.,26004100001777,state,2396.07,Боєчко Наталія Мирославівна,,фізична особа
НАРОДНИЙ ФРОНТ,,84,2019-12-24,1122,"Заробітна плата, премії","Заробітна плата, лікарняні, вагітності, відрядження, компенсації",357868,Центральний офіс,39181335,Україна,Заробітна плата за грудень 2019р.,26004100001777,state,7283.34,Боднарюк Тетяна Григорівна,,фізична особа
НАРОДНИЙ ФРОНТ,,84,2019-12-24,1122,"Заробітна плата, премії","Заробітна плата, лікарняні, вагітності, відрядження, компенсації",357867,Центральний офіс,39181335,Україна,Заробітна плата за грудень 2019р.,26004100001777,state,4794.87,Білан Ірина Борисівна,,фізична особа
НАРОДНИЙ ФРОНТ,,84,2019-12-24,1122,"Заробітна плата, премії","Заробітна плата, лікарняні, вагітності, відрядження, компенсації",357866,Центральний офіс,39181335,Україна,Заробітна плата за грудень 2019р.,26004100001777,state,4791.67,Бендюженко Федір Володимирович,,фізична особа
НАРОДНИЙ ФРОНТ,,84,2019-12-24,1122,"Заробітна плата, премії","Заробітна плата, лікарняні, вагітності, відрядження, компенсації",357865,Центральний офіс,39181335,Україна,Заробітна плата за грудень 2019р.,26004100001777,state,8602.35,Баранов Віктор Петрович,,фізична особа
НАРОДНИЙ ФРОНТ,,84,2019-12-24,1122,"Заробітна плата, премії","Заробітна плата, лікарняні, вагітності, відрядження, компенсації",357864,Центральний офіс,39181335,Україна,Заробітна плата за грудень 2019р.,26004100001777,state,3836.54,Якобчук Андрій Миколайович,,фізична особа
НАРОДНИЙ ФРОНТ,,84,2019-12-24,1122,"Заробітна плата, премії","Заробітна плата, лікарняні, вагітності, відрядження, компенсації",357863,Центральний офіс,39181335,Україна,Заробітна плата за грудень 2019р.,26004100001777,state,4798.38,Якименко Світлана Олександрівна,,фізична особа
НАРОДНИЙ ФРОНТ,,84,2019-12-24,1122,"Заробітна плата, премії","Заробітна плата, лікарняні, вагітності, відрядження, компенсації",357862,Центральний офіс,39181335,Україна,Заробітна плата за грудень 2019р.,26004100001777,state,8539.57,Явецький Андрій Олександрович,,фізична особа
НАРОДНИЙ ФРОНТ,,84,2019-12-24,1122,"Заробітна плата, премії","Заробітна плата, лікарняні, вагітності, відрядження, компенсації",357861,Центральний офіс,39181335,Україна,Заробітна плата за грудень 2019р.,26004100001777,state,24146.76,Шевченко Наталія Анатоліївна,,фізична особа
НАРОДНИЙ ФРОНТ,,84,2019-12-24,1122,"Заробітна плата, премії","Заробітна плата, лікарняні, вагітності, відрядження, компенсації",357860,Центральний офіс,39181335,Україна,Заробітна плата за грудень 2019р.,26004100001777,state,14949.97,Шевченко Євгеній Віталійович,,фізична особа
НАРОДНИЙ ФРОНТ,,84,2019-12-24,1122,"Заробітна плата, премії","Заробітна плата, лікарняні, вагітності, відрядження, компенсації",357859,Центральний офіс,39181335,Україна,Заробітна плата за грудень 2019р.,26004100001777,state,4791.66,Чигрин Дмитро Володимирович,,фізична особа
НАРОДНИЙ ФРОНТ,,84,2019-12-24,1122,"Заробітна плата, премії","Заробітна плата, лікарняні, вагітності, відрядження, компенсації",357858,Центральний офіс,39181335,Україна,Заробітна плата за грудень 2019р.,26004100001777,state,13077.14,Сулейманов Ернест Фахритович,,фізична особа
НАРОДНИЙ ФРОНТ,,84,2019-12-24,1122,"Заробітна плата, премії","Заробітна плата, лікарняні, вагітності, відрядження, компенсації",357857,Центральний офіс,39181335,Україна,Заробітна плата за грудень 2019р.,26004100001777,state,9583.33,Сочка Олександр Олександрович,,фізична особа
НАРОДНИЙ ФРОНТ,,84,2019-12-24,1122,"Заробітна плата, премії","Заробітна плата, лікарняні, вагітності, відрядження, компенсації",357856,Центральний офіс,39181335,Україна,Заробітна плата за грудень 2019р.,26004100001777,state,7290.05,Соловйов Олексій Володимирович,,фізична особа
НАРОДНИЙ ФРОНТ,,84,2019-12-24,1122,"Заробітна плата, премії","Заробітна плата, лікарняні, вагітності, відрядження, компенсації",357855,Центральний офіс,39181335,Україна,Заробітна плата за грудень 2019р.,26004100001777,state,4798.37,Сичова Катерина Сергіївна,,фізична особа
НАРОДНИЙ ФРОНТ,,84,2019-12-24,1122,"Заробітна плата, премії","Заробітна плата, лікарняні, вагітності, відрядження, компенсації",357854,Центральний офіс,39181335,Україна,Заробітна плата за грудень 2019р.,26004100001777,state,7475.02,Рижков Дмитро Ігорович,,фізична особа
НАРОДНИЙ ФРОНТ,,84,2019-12-24,1122,"Заробітна плата, премії","Заробітна плата, лікарняні, вагітності, відрядження, компенсації",357853,Центральний офіс,39181335,Україна,Заробітна плата за грудень 2019р.,26004100001777,state,7287.14,Пономаренко Сергій Володимирович,,фізична особа
НАРОДНИЙ ФРОНТ,,84,2019-12-24,1122,"Заробітна плата, премії","Заробітна плата, лікарняні, вагітності, відрядження, компенсації",357852,Центральний офіс,39181335,Україна,Заробітна плата за грудень 2019р.,26004100001777,state,4795.47,Пономаренко Ганна Василівна,,фізична особа
НАРОДНИЙ ФРОНТ,,84,2019-12-24,1122,"Заробітна плата, премії","Заробітна плата, лікарняні, вагітності, відрядження, компенсації",357851,Центральний офіс,39181335,Україна,Заробітна плата за грудень 2019р.,26004100001777,state,3837.13,Полюшко Володимир Миколайович,,фізична особа
НАРОДНИЙ ФРОНТ,,84,2019-12-24,1122,"Заробітна плата, премії","Заробітна плата, лікарняні, вагітності, відрядження, компенсації",357850,Центральний офіс,39181335,Україна,Заробітна плата за грудень 2019р.,26004100001777,state,4791.66,Побочіх Михайло Олександрович,,фізична особа
НАРОДНИЙ ФРОНТ,,84,2019-12-24,1122,"Заробітна плата, премії","Заробітна плата, лікарняні, вагітності, відрядження, компенсації",357849,Центральний офіс,39181335,Україна,Заробітна плата за грудень 2019р.,26004100001777,state,4062.93,Петренко Любов Володимирівна,,фізична особа
НАРОДНИЙ ФРОНТ,,84,2019-12-24,1122,"Заробітна плата, премії","Заробітна плата, лікарняні, вагітності, відрядження, компенсації",357848,Центральний офіс,39181335,Україна,Заробітна плата за грудень 2019р.,26004100001777,state,2424.13,Панькова Лідія Василівна,,фізична особа
НАРОДНИЙ ФРОНТ,,84,2019-12-24,1122,"Заробітна плата, премії","Заробітна плата, лікарняні, вагітності, відрядження, компенсації",357847,Центральний офіс,39181335,Україна,Заробітна плата за грудень 2019р.,26004100001777,state,7283.34,Особський Вадим Володимирович,,фізична особа
НАРОДНИЙ ФРОНТ,,84,2019-12-24,1122,"Заробітна плата, премії","Заробітна плата, лікарняні, вагітності, відрядження, компенсації",357846,Центральний офіс,39181335,Україна,Заробітна плата за грудень 2019р.,26004100001777,state,11446.44,Мольдерф Валентина Григорівна,,фізична особа
НАРОДНИЙ ФРОНТ,,84,2019-12-24,1122,"Заробітна плата, премії","Заробітна плата, лікарняні, вагітності, відрядження, компенсації",357845,Центральний офіс,39181335,Україна,Заробітна плата за грудень 2019р.,26004100001777,state,2640.49,Махорін Вʼячеслав Сергійович,,фізична особа
НАРОДНИЙ ФРОНТ,,84,2019-12-24,1120,"Заробітна плата, премії","Заробітна плата, лікарняні, вагітності, відрядження, компенсації",357844,Центральний офіс,39181335,Україна,Заробітна плата за час щорічної відпустки,26004100001777,state,5366.64,Бендюженко Федір Володимирович,,фізична особа
НАРОДНИЙ ФРОНТ,,84,2019-12-24,1120,"Заробітна плата, премії","Заробітна плата, лікарняні, вагітності, відрядження, компенсації",357843,Центральний офіс,39181335,Україна,Заробітна плата за час щорічної відпустки,26004100001777,state,4322.45,Койляк Галина Ігорівна,,фізична особа
НАРОДНИЙ ФРОНТ,,84,2019-12-24,1120,"Заробітна плата, премії","Заробітна плата, лікарняні, вагітності, відрядження, компенсації",357842,Центральний офіс,39181335,Україна,Заробітна плата за час щорічної відпустки,26004100001777,state,5366.64,Корчик Віталій Андрійович,,фізична особа
НАРОДНИЙ ФРОНТ,,84,2019-12-24,1120,"Заробітна плата, премії","Заробітна плата, лікарняні, вагітності, відрядження, компенсації",357841,Центральний офіс,39181335,Україна,Заробітна плата за час щорічної відпустки,26004100001777,state,4738.13,Пономаренко Ганна Василівна,,фізична особа
НАРОДНИЙ ФРОНТ,,84,2019-12-24,1120,"Заробітна плата, премії","Заробітна плата, лікарняні, вагітності, відрядження, компенсації",357840,Центральний офіс,39181335,Україна,Заробітна плата за час щорічної відпустки,26004100001777,state,3718.70,Якименко Світлана Олександрівна,,фізична особа
НАРОДНИЙ ФРОНТ,,84,2019-12-24,2123,"Заробітна плата, премії","Заробітна плата, лікарняні, вагітності, відрядження, компенсації",357839,Центральний офіс,39181335,Україна,Премія за 2019 рік,26004100001777,state,12075.00,Заєць Тетяна Петрівна,,фізична особа
НАРОДНИЙ ФРОНТ,,84,2019-12-24,9123,"Заробітна плата, премії","Заробітна плата, лікарняні, вагітності, відрядження, компенсації",357838,Центральний офіс,39181335,Україна,Премія за 2019 рік,26004100001777,state,8050.00,Зуєнко Людмила Миколаївна,,фізична особа
НАРОДНИЙ ФРОНТ,,84,2019-12-24,1123,"Заробітна плата, премії","Заробітна плата, лікарняні, вагітності, відрядження, компенсації",357837,Центральний офіс,39181335,Україна,Премія за 2019 рік,26004100001777,state,10062.50,Карасьов Дмитро Геннадійович,,фізична особа
НАРОДНИЙ ФРОНТ,,84,2019-12-24,5123,"Заробітна плата, премії","Заробітна плата, лікарняні, вагітності, відрядження, компенсації",357836,Центральний офіс,39181335,Україна,Премія за 2019 рік,26004100001777,state,8050.00,Карач Юлія Іванівна,,фізична особа
НАРОДНИЙ ФРОНТ,,84,2019-12-24,18123,"Заробітна плата, премії","Заробітна плата, лікарняні, вагітності, відрядження, компенсації",357835,Центральний офіс,39181335,Україна,Премія за 2019 рік,26004100001777,state,6440.00,Кирій Олеся Миколаївна,,фізична особа
НАРОДНИЙ ФРОНТ,,84,2019-12-24,1123,"Заробітна плата, премії","Заробітна плата, лікарняні, вагітності, відрядження, компенсації",357834,Центральний офіс,39181335,Україна,Премія за 2019 рік,26004100001777,state,4025.00,Коба Ольга Володимирівна,,фізична особа
НАРОДНИЙ ФРОНТ,,84,2019-12-24,15123,"Заробітна плата, премії","Заробітна плата, лікарняні, вагітності, відрядження, компенсації",357833,Центральний офіс,39181335,Україна,Премія за 2019 рік,26004100001777,state,8050.00,Кожан Олександр Васильович,,фізична особа
НАРОДНИЙ ФРОНТ,,84,2019-12-24,1123,"Заробітна плата, премії","Заробітна плата, лікарняні, вагітності, відрядження, компенсації",357832,Центральний офіс,39181335,Україна,Премія за 2019 рік,26004100001777,state,20125.00,Койляк Галина Ігорівна,,фізична особа
НАРОДНИЙ ФРОНТ,,84,2019-12-24,1123,"Заробітна плата, премії","Заробітна плата, лікарняні, вагітності, відрядження, компенсації",357831,Центральний офіс,39181335,Україна,Премія за 2019 рік,26004100001777,state,20125.00,Колганова Олена Валеріївна,,фізична особа
НАРОДНИЙ ФРОНТ,,84,2019-12-24,8123,"Заробітна плата, премії","Заробітна плата, лікарняні, вагітності, відрядження, компенсації",357830,Центральний офіс,39181335,Україна,Премія за 2019 рік,26004100001777,state,9660.00,Корольчук Людмила Кирилівна,,фізична особа
НАРОДНИЙ ФРОНТ,,84,2019-12-24,1123,"Заробітна плата, премії","Заробітна плата, лікарняні, вагітності, відрядження, компенсації",357829,Центральний офіс,39181335,Україна,Премія за 2019 рік,26004100001777,state,20125.00,Корчик Віталій Андрійович,,фізична особа
НАРОДНИЙ ФРОНТ,,84,2019-12-24,19123,"Заробітна плата, премії","Заробітна плата, лікарняні, вагітності, відрядження, компенсації",357828,Центральний офіс,39181335,Україна,Премія за 2019 рік,26004100001777,state,8050.00,Кравець Вікторія Валеріївна,,фізична особа
НАРОДНИЙ ФРОНТ,,84,2019-12-24,1123,"Заробітна плата, премії","Заробітна плата, лікарняні, вагітності, відрядження, компенсації",357827,Центральний офіс,39181335,Україна,Премія за 2019 рік,26004100001777,state,15295.00,Кулібаба Наталія Юріївна,,фізична особа
НАРОДНИЙ ФРОНТ,,84,2019-12-24,1123,"Заробітна плата, премії","Заробітна плата, лікарняні, вагітності, відрядження, компенсації",357826,Центральний офіс,39181335,Україна,Премія за 2019 рік,26004100001777,state,15295.00,Курас Лариса Петрівна,,фізична особа
НАРОДНИЙ ФРОНТ,,84,2019-12-24,1123,"Заробітна плата, премії","Заробітна плата, лікарняні, вагітності, відрядження, компенсації",357825,Центральний офіс,39181335,Україна,Премія за 2019 рік,26004100001777,state,15295.00,Лаппо Ольга Георгіївна,,фізична особа
НАРОДНИЙ ФРОНТ,,84,2019-12-24,1123,"Заробітна плата, премії","Заробітна плата, лікарняні, вагітності, відрядження, компенсації",357824,Центральний офіс,39181335,Україна,Премія за 2019 рік,26004100001777,state,10062.50,Лебедєв Микола Васильович,,фізична особа
НАРОДНИЙ ФРОНТ,,84,2019-12-24,1123,"Заробітна плата, премії","Заробітна плата, лікарняні, вагітності, відрядження, компенсації",357823,Центральний офіс,39181335,Україна,Премія за 2019 рік,26004100001777,state,24150.00,Ледовських Олена Володимирівна,,фізична особа
НАРОДНИЙ ФРОНТ,,84,2019-12-24,1123,"Заробітна плата, премії","Заробітна плата, лікарняні, вагітності, відрядження, компенсації",357822,Центральний офіс,39181335,Україна,Премія за 2019 рік,26004100001777,state,6037.50,Лимар Юрій Володимирович,,фізична особа
НАРОДНИЙ ФРОНТ,,84,2019-12-24,1123,"Заробітна плата, премії","Заробітна плата, лікарняні, вагітності, відрядження, компенсації",357821,Центральний офіс,39181335,Україна,Премія за 2019 рік,26004100001777,state,20125.00,Бендюженко Федір Володимирович,,фізична особа
НАРОДНИЙ ФРОНТ,,84,2019-12-24,13123,"Заробітна плата, премії","Заробітна плата, лікарняні, вагітності, відрядження, компенсації",357820,Центральний офіс,39181335,Україна,Премія за 2019 рік,26004100001777,state,12075.00,Беспалова Марія Петрівна,,фізична особа
НАРОДНИЙ ФРОНТ,,84,2019-12-24,1123,"Заробітна плата, премії","Заробітна плата, лікарняні, вагітності, відрядження, компенсації",357819,Центральний офіс,39181335,Україна,Премія за 2019 рік,26004100001777,state,10062.50,Білан Ірина Борисівна,,фізична особа
НАРОДНИЙ ФРОНТ,,84,2019-12-24,8123,"Заробітна плата, премії","Заробітна плата, лікарняні, вагітності, відрядження, компенсації",357818,Центральний офіс,39181335,Україна,Премія за 2019 рік,26004100001777,state,9660.00,Білецька Тетяна Вадимівна,,фізична особа
НАРОДНИЙ ФРОНТ,,84,2019-12-24,1123,"Заробітна плата, премії","Заробітна плата, лікарняні, вагітності, відрядження, компенсації",357817,Центральний офіс,39181335,Україна,Премія за 2019 рік,26004100001777,state,15295.00,Боднарюк Тетяна Григорівна,,фізична особа
НАРОДНИЙ ФРОНТ,,84,2019-12-24,1123,"Заробітна плата, премії","Заробітна плата, лікарняні, вагітності, відрядження, компенсації",357816,Центральний офіс,39181335,Україна,Премія за 2019 рік,26004100001777,state,4025.00,Боєчко Наталія Мирославівна,,фізична особа
НАРОДНИЙ ФРОНТ,,84,2019-12-24,25123,"Заробітна плата, премії","Заробітна плата, лікарняні, вагітності, відрядження, компенсації",357815,Центральний офіс,39181335,Україна,Премія за 2019 рік,26004100001777,state,12075.00,Бруй Юлія Віталіївна,,фізична особа
НАРОДНИЙ ФРОНТ,,84,2019-12-24,1123,"Заробітна плата, премії","Заробітна плата, лікарняні, вагітності, відрядження, компенсації",357814,Центральний офіс,39181335,Україна,Премія за 2019 рік,26004100001777,state,10062.50,Валявська Ольга Дмитрівна,,фізична особа
НАРОДНИЙ ФРОНТ,,84,2019-12-24,24123,"Заробітна плата, премії","Заробітна плата, лікарняні, вагітності, відрядження, компенсації",357813,Центральний офіс,39181335,Україна,Премія за 2019 рік,26004100001777,state,12075.00,Ватаманюк Людмила Іванівна,,фізична особа
НАРОДНИЙ ФРОНТ,,84,2019-12-24,21123,"Заробітна плата, премії","Заробітна плата, лікарняні, вагітності, відрядження, компенсації",357812,Центральний офіс,39181335,Україна,Премія за 2019 рік,26004100001777,state,8050.00,Виноградова Ольга Олександрівна,,фізична особа
НАРОДНИЙ ФРОНТ,,84,2019-12-24,24123,"Заробітна плата, премії","Заробітна плата, лікарняні, вагітності, відрядження, компенсації",357811,Центральний офіс,39181335,Україна,Премія за 2019 рік,26004100001777,state,8050.00,Вишневська Світлана Петрівна,,фізична особа
НАРОДНИЙ ФРОНТ,,84,2019-12-24,17123,"Заробітна плата, премії","Заробітна плата, лікарняні, вагітності, відрядження, компенсації",357810,Центральний офіс,39181335,Україна,Премія за 2019 рік,26004100001777,state,8050.00,Генеральчук Ніна Миколаївна,,фізична особа
НАРОДНИЙ ФРОНТ,,84,2019-12-24,1123,"Заробітна плата, премії","Заробітна плата, лікарняні, вагітності, відрядження, компенсації",357809,Центральний офіс,39181335,Україна,Премія за 2019 рік,26004100001777,state,20125.00,Гринь Костянтин Андрійович,,фізична особа
НАРОДНИЙ ФРОНТ,,84,2019-12-24,7123,"Заробітна плата, премії","Заробітна плата, лікарняні, вагітності, відрядження, компенсації",357808,Центральний офіс,39181335,Україна,Премія за 2019 рік,26004100001777,state,8050.00,Данилюк Ірина Степанівна,,фізична особа
НАРОДНИЙ ФРОНТ,,84,2019-12-24,22123,"Заробітна плата, премії","Заробітна плата, лікарняні, вагітності, відрядження, компенсації",357807,Центральний офіс,39181335,Україна,Премія за 2019 рік,26004100001777,state,12075.00,Дроздик Анатолій Вячеславович,,фізична особа
НАРОДНИЙ ФРОНТ,,84,2019-12-24,15123,"Заробітна плата, премії","Заробітна плата, лікарняні, вагітності, відрядження, компенсації",357806,Центральний офіс,39181335,Україна,Премія за 2019 рік,26004100001777,state,9660.00,Ємсенко Владислава Володимирівна,,фізична особа
НАРОДНИЙ ФРОНТ,,84,2019-12-24,14123,"Заробітна плата, премії","Заробітна плата, лікарняні, вагітності, відрядження, компенсації",357805,Центральний офіс,39181335,Україна,Премія за 2019 рік,26004100001777,state,8050.00,Єрофєєва Оксана Петрівна,,фізична особа
НАРОДНИЙ ФРОНТ,,84,2019-12-24,1123,"Заробітна плата, премії","Заробітна плата, лікарняні, вагітності, відрядження, компенсації",357804,Центральний офіс,39181335,Україна,Премія за 2019 рік,26004100001777,state,15295.00,Пономаренко Сергій Володимирович,,фізична особа
НАРОДНИЙ ФРОНТ,,84,2019-12-24,10123,"Заробітна плата, премії","Заробітна плата, лікарняні, вагітності, відрядження, компенсації",357803,Центральний офіс,39181335,Україна,Премія за 2019 рік,26004100001777,state,12075.00,Савчин Андрій Якимович,,фізична особа
НАРОДНИЙ ФРОНТ,,84,2019-12-24,12123,"Заробітна плата, премії","Заробітна плата, лікарняні, вагітності, відрядження, компенсації",357802,Центральний офіс,39181335,Україна,Премія за 2019 рік,26004100001777,state,8050.00,Самойленко Анна Олександрівна,,фізична особа
НАРОДНИЙ ФРОНТ,,84,2019-12-24,12123,"Заробітна плата, премії","Заробітна плата, лікарняні, вагітності, відрядження, компенсації",357801,Центральний офіс,39181335,Україна,Премія за 2019 рік,26004100001777,state,9660.00,Сарафанова Наталія Василівна,,фізична особа
НАРОДНИЙ ФРОНТ,,84,2019-12-24,1123,"Заробітна плата, премії","Заробітна плата, лікарняні, вагітності, відрядження, компенсації",357800,Центральний офіс,39181335,Україна,Премія за 2019 рік,26004100001777,state,10062.50,Сичова Катерина Сергіївна,,фізична особа
НАРОДНИЙ ФРОНТ,,84,2019-12-24,1123,"Заробітна плата, премії","Заробітна плата, лікарняні, вагітності, відрядження, компенсації",357799,Центральний офіс,39181335,Україна,Премія за 2019 рік,26004100001777,state,15295.00,Соловйов Олексій Володимирович,,фізична особа
НАРОДНИЙ ФРОНТ,,84,2019-12-24,23123,"Заробітна плата, премії","Заробітна плата, лікарняні, вагітності, відрядження, компенсації",357798,Центральний офіс,39181335,Україна,Премія за 2019 рік,26004100001777,state,8050.00,Соловйова Вікторія Владиславівна,,фізична особа
НАРОДНИЙ ФРОНТ,,84,2019-12-24,1123,"Заробітна плата, премії","Заробітна плата, лікарняні, вагітності, відрядження, компенсації",357797,Центральний офіс,39181335,Україна,Премія за 2019 рік,26004100001777,state,20125.00,Сочка Олександр Олександрович,,фізична особа
НАРОДНИЙ ФРОНТ,,84,2019-12-24,11123,"Заробітна плата, премії","Заробітна плата, лікарняні, вагітності, відрядження, компенсації",357796,Центральний офіс,39181335,Україна,Премія за 2019 рік,26004100001777,state,5635.00,Фролов Микола Володимирович,,фізична особа
НАРОДНИЙ ФРОНТ,,84,2019-12-24,23123,"Заробітна плата, премії","Заробітна плата, лікарняні, вагітності, відрядження, компенсації",357795,Центральний офіс,39181335,Україна,Премія за 2019 рік,26004100001777,state,9660.00,Фурса Оксана Володимирівна,,фізична особа
НАРОДНИЙ ФРОНТ,,84,2019-12-24,22123,"Заробітна плата, премії","Заробітна плата, лікарняні, вагітності, відрядження, компенсації",357794,Центральний офіс,39181335,Україна,Премія за 2019 рік,26004100001777,state,9660.00,Цоміна Тетяна Михайлівна,,фізична особа
НАРОДНИЙ ФРОНТ,,84,2019-12-24,1123,"Заробітна плата, премії","Заробітна плата, лікарняні, вагітності, відрядження, компенсації",357793,Центральний офіс,39181335,Україна,Премія за 2019 рік,26004100001777,state,10062.50,Чигрин Дмитро Володимирович,,фізична особа
НАРОДНИЙ ФРОНТ,,84,2019-12-24,7123,"Заробітна плата, премії","Заробітна плата, лікарняні, вагітності, відрядження, компенсації",357792,Центральний офіс,39181335,Україна,Премія за 2019 рік,26004100001777,state,8050.00,Шатківський Дмитро Олександрович,,фізична особа
НАРОДНИЙ ФРОНТ,,84,2019-12-24,1123,"Заробітна плата, премії","Заробітна плата, лікарняні, вагітності, відрядження, компенсації",357791,Центральний офіс,39181335,Україна,Премія за 2019 рік,26004100001777,state,20125.00,Шевченко Наталія Анатоліївна,,фізична особа
НАРОДНИЙ ФРОНТ,,84,2019-12-24,1123,"Заробітна плата, премії","Заробітна плата, лікарняні, вагітності, відрядження, компенсації",357790,Центральний офіс,39181335,Україна,Премія за 2019 рік,26004100001777,state,20125.00,Якименко Світлана Олександрівна,,фізична особа
НАРОДНИЙ ФРОНТ,,84,2019-12-24,1123,"Заробітна плата, премії","Заробітна плата, лікарняні, вагітності, відрядження, компенсації",357789,Центральний офіс,39181335,Україна,Премія за 2019 рік,26004100001777,state,8050.00,Якобчук Андрій Миколайович,,фізична особа
НАРОДНИЙ ФРОНТ,,84,2019-12-24,20123,"Заробітна плата, премії","Заробітна плата, лікарняні, вагітності, відрядження, компенсації",357788,Центральний офіс,39181335,Україна,Премія за 2019 рік,26004100001777,state,8050.00,Ярошенко Євген Станіславович,,фізична особа
НАРОДНИЙ ФРОНТ,,84,2019-12-24,1123,"Заробітна плата, премії","Заробітна плата, лікарняні, вагітності, відрядження, компенсації",357787,Центральний офіс,39181335,Україна,Премія за 2019 рік,26004100001777,state,5635.00,Литвиненко Андрій Миколайович,,фізична особа
НАРОДНИЙ ФРОНТ,,84,2019-12-24,25123,"Заробітна плата, премії","Заробітна плата, лікарняні, вагітності, відрядження, компенсації",357786,Центральний офіс,39181335,Україна,Премія за 2019 рік,26004100001777,state,8050.00,Литовченко Валерій Олексійович,,фізична особа
НАРОДНИЙ ФРОНТ,,84,2019-12-24,17123,"Заробітна плата, премії","Заробітна плата, лікарняні, вагітності, відрядження, компенсації",357785,Центральний офіс,39181335,Україна,Премія за 2019 рік,26004100001777,state,9660.00,Малухіна Оксана Юріївна,,фізична особа
НАРОДНИЙ ФРОНТ,,84,2019-12-24,11123,"Заробітна плата, премії","Заробітна плата, лікарняні, вагітності, відрядження, компенсації",357784,Центральний офіс,39181335,Україна,Премія за 2019 рік,26004100001777,state,12075.00,Махновець Віктор Петрович,,фізична особа
НАРОДНИЙ ФРОНТ,,84,2019-12-24,1123,"Заробітна плата, премії","Заробітна плата, лікарняні, вагітності, відрядження, компенсації",357783,Центральний офіс,39181335,Україна,Премія за 2019 рік,26004100001777,state,5635.00,Махорін Вʼячеслав Сергійович,,фізична особа
НАРОДНИЙ ФРОНТ,,84,2019-12-24,13123,"Заробітна плата, премії","Заробітна плата, лікарняні, вагітності, відрядження, компенсації",357782,Центральний офіс,39181335,Україна,Премія за 2019 рік,26004100001777,state,8050.00,Мацукевич Христина Романівна,,фізична особа
НАРОДНИЙ ФРОНТ,,84,2019-12-24,20123,"Заробітна плата, премії","Заробітна плата, лікарняні, вагітності, відрядження, компенсації",357781,Центральний офіс,39181335,Україна,Премія за 2019 рік,26004100001777,state,12075.00,Мих Олександр Вікторович,,фізична особа
НАРОДНИЙ ФРОНТ,,84,2019-12-24,19123,"Заробітна плата, премії","Заробітна плата, лікарняні, вагітності, відрядження, компенсації",357780,Центральний офіс,39181335,Україна,Премія за 2019 рік,26004100001777,state,9660.00,Михайлюк Віктор Іванович,,фізична особа
НАРОДНИЙ ФРОНТ,,84,2019-12-24,5123,"Заробітна плата, премії","Заробітна плата, лікарняні, вагітності, відрядження, компенсації",357779,Центральний офіс,39181335,Україна,Премія за 2019 рік,26004100001777,state,9660.00,Обез Марина Іванівна,,фізична особа
НАРОДНИЙ ФРОНТ,,84,2019-12-24,18123,"Заробітна плата, премії","Заробітна плата, лікарняні, вагітності, відрядження, компенсації",357778,Центральний офіс,39181335,Україна,Премія за 2019 рік,26004100001777,state,9660.00,Ольшанський Олег Вікторович,,фізична особа
НАРОДНИЙ ФРОНТ,,84,2019-12-24,1123,"Заробітна плата, премії","Заробітна плата, лікарняні, вагітності, відрядження, компенсації",357777,Центральний офіс,39181335,Україна,Премія за 2019 рік,26004100001777,state,15295.00,Особський Вадим Володимирович,,фізична особа
НАРОДНИЙ ФРОНТ,,84,2019-12-24,9123,"Заробітна плата, премії","Заробітна плата, лікарняні, вагітності, відрядження, компенсації",357776,Центральний офіс,39181335,Україна,Премія за 2019 рік,26004100001777,state,9660.00,Останькович Олена Миколаївна,,фізична особа
НАРОДНИЙ ФРОНТ,,84,2019-12-24,1123,"Заробітна плата, премії","Заробітна плата, лікарняні, вагітності, відрядження, компенсації",357775,Центральний офіс,39181335,Україна,Премія за 2019 рік,26004100001777,state,5635.00,Панькова Лідія Василівна,,фізична особа
НАРОДНИЙ ФРОНТ,,84,2019-12-24,1123,"Заробітна плата, премії","Заробітна плата, лікарняні, вагітності, відрядження, компенсації",357774,Центральний офіс,39181335,Україна,Премія за 2019 рік,26004100001777,state,5635.00,Петренко Любов Володимирівна,,фізична особа
НАРОДНИЙ ФРОНТ,,84,2019-12-24,1123,"Заробітна плата, премії","Заробітна плата, лікарняні, вагітності, відрядження, компенсації",357773,Центральний офіс,39181335,Україна,Премія за 2019 рік,26004100001777,state,10062.50,Побочіх Михайло Олександрович,,фізична особа
НАРОДНИЙ ФРОНТ,,84,2019-12-24,1123,"Заробітна плата, премії","Заробітна плата, лікарняні, вагітності, відрядження, компенсації",357772,Центральний офіс,39181335,Україна,Премія за 2019 рік,26004100001777,state,8050.00,Полюшко Володимир Миколайович,,фізична особа
НАРОДНИЙ ФРОНТ,,84,2019-12-24,1123,"Заробітна плата, премії","Заробітна плата, лікарняні, вагітності, відрядження, компенсації",357771,Центральний офіс,39181335,Україна,Премія за 2019 рік,26004100001777,state,20125.00,Пономаренко Ганна Василівна,,фізична особа
НАРОДНИЙ ФРОНТ,,84,2019-12-24,4014,"Заробітна плата, премії","Заробітна плата, лікарняні, вагітності, відрядження, компенсації",357770,Центральний офіс,39181335,Україна,Премія за 2019 рік,26004100001777,state,12075.00,Добровольська Оксана Володимирівна,,фізична особа
НАРОДНИЙ ФРОНТ,,84,2019-12-24,4015,"Заробітна плата, премії","Заробітна плата, лікарняні, вагітності, відрядження, компенсації",357769,Центральний офіс,39181335,Україна,Заробітна плата за грудень 2019р.,26004100001777,state,8970.03,Добровольська Оксана Володимирівна,,фізична особа
НАРОДНИЙ ФРОНТ,,79,2019-12-24,4021,"Оренда будинків і приміщень та експлуатаційні витрати (прибирання, страхування орендованих будинків, охорона, сигналізація, ремонт, вивіз сміття, тощо)",Оренда нерухомості,357768,Центральний офіс,39181335,Україна,Відшкодування вартості комунальних послуг за грудень 2019р.,26004100001777,state,14319.73,Яценко Дарʼя Володимирівна,,фізична особа
НАРОДНИЙ ФРОНТ,,84,2019-12-24,4013,"Заробітна плата, премії","Заробітна плата, лікарняні, вагітності, відрядження, компенсації",357767,Центральний офіс,39181335,Україна,Заробітна плата за грудень 2019р.,26004100001777,state,6133.34,Данілін Владислав Юрійович,,фізична особа
НАРОДНИЙ ФРОНТ,,79,2019-12-24,4008,"Оренда будинків і приміщень та експлуатаційні витрати (прибирання, страхування орендованих будинків, охорона, сигналізація, ремонт, вивіз сміття, тощо)",Оренда нерухомості,357766,Центральний офіс,39181335,Україна,Відшкодування вартості комунальних послуг за грудень 2019р.,26004100001777,state,3872.92,Нежурбіда Галина Григорівна,,фізична особа
НАРОДНИЙ ФРОНТ,,79,2019-12-24,4007,"Оренда будинків і приміщень та експлуатаційні витрати (прибирання, страхування орендованих будинків, охорона, сигналізація, ремонт, вивіз сміття, тощо)",Оренда нерухомості,357765,Центральний офіс,39181335,Україна,Відшкодування вартості комунальних послуг за грудень 2019р.,26004100001777,state,2055.44,Лупой Станіслав Петрович,,фізична особа
НАРОДНИЙ ФРОНТ,,79,2019-12-24,4006,"Оренда будинків і приміщень та експлуатаційні витрати (прибирання, страхування орендованих будинків, охорона, сигналізація, ремонт, вивіз сміття, тощо)",Оренда нерухомості,357764,Центральний офіс,39181335,Україна,Відшкодування вартості комунальних послуг за грудень 2019р.,26004100001777,state,3895.34,Аббакумова Галина Олександрівна,,фізична особа
НАРОДНИЙ ФРОНТ,,79,2019-12-24,4004,"Оренда будинків і приміщень та експлуатаційні витрати (прибирання, страхування орендованих будинків, охорона, сигналізація, ремонт, вивіз сміття, тощо)",Оренда нерухомості,357763,Центральний офіс,39181335,Україна,Відшкодування вартості експлуатаційних витрат за грудень 2019р.,26004100001777,state,1119.45,Шкварилюк Марта Володимирівна,,фізична особа
НАРОДНИЙ ФРОНТ,,79,2019-12-24,4003,"Оренда будинків і приміщень та експлуатаційні витрати (прибирання, страхування орендованих будинків, охорона, сигналізація, ремонт, вивіз сміття, тощо)",Оренда нерухомості,357762,Центральний офіс,39181335,Україна,Відшкодування вартості комунальних послуг за грудень 2019р.,26004100001777,state,5056.32,Шкварилюк Марта Володимирівна,,фізична особа
НАРОДНИЙ ФРОНТ,,79,2019-12-24,4002,"Оренда будинків і приміщень та експлуатаційні витрати (прибирання, страхування орендованих будинків, охорона, сигналізація, ремонт, вивіз сміття, тощо)",Оренда нерухомості,357761,Центральний офіс,39181335,Україна,Відшкодування вартості комунальних послуг за грудень 2019р.,26004100001777,state,1366.02,Мануйлова Олена Степанівна,,фізична особа
НАРОДНИЙ ФРОНТ,,79,2019-12-24,4000,"Оренда будинків і приміщень та експлуатаційні витрати (прибирання, страхування орендованих будинків, охорона, сигналізація, ремонт, вивіз сміття, тощо)",Оренда нерухомості,357760,Центральний офіс,39181335,Україна,Відшкодування вартості комунальних послуг за грудень 2019р.,26004100001777,state,3643.62,Гулямова Олена Олександрівна,,фізична особа
НАРОДНИЙ ФРОНТ,,79,2019-12-24,3999,"Оренда будинків і приміщень та експлуатаційні витрати (прибирання, страхування орендованих будинків, охорона, сигналізація, ремонт, вивіз сміття, тощо)",Оренда нерухомості,357759,Центральний офіс,39181335,Україна,Відшкодування вартості комунальних послуг за листопад 2019р.,26004100001777,state,3699.00,Гулямова Олена Олександрівна,,фізична особа
НАРОДНИЙ ФРОНТ,"Київ, вулиця Кирилівська, 23",51,2019-12-24,56,Оплата ефірного часу на ТБ,Телереклама,357188,Центральний офіс,39181335,Україна,Оплата за розміщення інформаційних матеріалів на телебаченні,26008300001777,current,900000.00,"ТОВ ""ТРК ""Студія 1+1""",23729809,юридична особа
НАРОДНИЙ ФРОНТ,"Київ, вулиця Богдана Хмельницького, 52",81,2019-12-20,3993,Аудит,"Гонорари, в тому числі за надані консультаційні послуги",358124,Центральний офіс,39181335,Україна,Оплата за послуги з виконання зовнішнього незалежного фінансового аудиту,26004100001777,state,198480.00,"ТОВ ""Аудиторська фірма “ПКФ Аудит-фінанси”",34619277,юридична особа
НАРОДНИЙ ФРОНТ,,79,2019-12-20,57,"Оренда будинків і приміщень та експлуатаційні витрати (прибирання, страхування орендованих будинків, охорона, сигналізація, ремонт, вивіз сміття, тощо)",Оренда нерухомості,357185,Центральний офіс,39181335,Україна,Орендна плата за лютий 2020р,26008300001777,current,237640.03,Яценко Дарʼя Володимирівна,,фізична особа
НАРОДНИЙ ФРОНТ,,79,2019-12-20,56,"Оренда будинків і приміщень та експлуатаційні витрати (прибирання, страхування орендованих будинків, охорона, сигналізація, ремонт, вивіз сміття, тощо)",Оренда нерухомості,357184,Центральний офіс,39181335,Україна,Орендна плата за січень 2020р,26008300001777,current,237640.03,Яценко Дарʼя Володимирівна,,фізична особа
НАРОДНИЙ ФРОНТ,"Київ, Бехтеревський провулок, 14",79,2019-12-19,3991,"Оренда будинків і приміщень та експлуатаційні витрати (прибирання, страхування орендованих будинків, охорона, сигналізація, ремонт, вивіз сміття, тощо)",Оренда нерухомості,358123,Центральний офіс,39181335,Україна,Відшкодування витрат за опалення за листопад 2019р.,26004100001777,state,2662.50,"ТОВ ""Житло-Сервіс""",30167045,юридична особа
НАРОДНИЙ ФРОНТ,"Київ, Бехтеревський провулок, 14",79,2019-12-19,3990,"Оренда будинків і приміщень та експлуатаційні витрати (прибирання, страхування орендованих будинків, охорона, сигналізація, ремонт, вивіз сміття, тощо)",Оренда нерухомості,358122,Центральний офіс,39181335,Україна,Відшкодування витрат за передану електроенергію за листопад 2019р.,26004100001777,state,20256.29,"ТОВ ""Житло-Сервіс""",30167045,юридична особа
НАРОДНИЙ ФРОНТ,"Київ, Бехтеревський провулок, 14",79,2019-12-19,3989,"Оренда будинків і приміщень та експлуатаційні витрати (прибирання, страхування орендованих будинків, охорона, сигналізація, ремонт, вивіз сміття, тощо)",Оренда нерухомості,358121,Центральний офіс,39181335,Україна,Оплата за обсуговування та утримання будинку за листопад 2019р.,26004100001777,state,4572.37,"ТОВ ""Житло-Сервіс""",30167045,юридична особа
НАРОДНИЙ ФРОНТ,Київ,61,2019-12-19,3988,Військовий збір,Податкові платежі,358120,Центральний офіс,39181335,Україна,Військовий збір,26004100001777,state,9047.39,УДКСУ в Дарницькому районі,38021179,юридична особа
НАРОДНИЙ ФРОНТ,Київ,63,2019-12-19,3987,Податок на доходи,Податкові платежі,358119,Центральний офіс,39181335,Україна,Податок на доходи фізичних осіб,26004100001777,state,108568.80,УДКСУ в Дарницькому районі,38021179,юридична особа
НАРОДНИЙ ФРОНТ,"Київ, вулиця Волоська, 55-57",79,2019-12-19,3982,"Оренда будинків і приміщень та експлуатаційні витрати (прибирання, страхування орендованих будинків, охорона, сигналізація, ремонт, вивіз сміття, тощо)",Оренда нерухомості,358118,Центральний офіс,39181335,Україна,Відшкодування вартості комунальних послуг за листопад 2019р.,26004100001777,state,4850.85,"ТОВ ""ПАКТА-ЛЕГЕТІМА""",37037083,юридична особа
НАРОДНИЙ ФРОНТ,"Житомирська область, Житомир, вулиця Велика Бердичівська, 19",79,2019-12-19,3978,"Оренда будинків і приміщень та експлуатаційні витрати (прибирання, страхування орендованих будинків, охорона, сигналізація, ремонт, вивіз сміття, тощо)",Оренда нерухомості,358117,Центральний офіс,39181335,Україна,Відшкодування вартості комунальних послуг за листопад 2019р.,26004100001777,state,5544.63,"ТОВ ""Ростмедіа.ТВ""",37671921,юридична особа
НАРОДНИЙ ФРОНТ,,79,2019-12-19,3985,"Оренда будинків і приміщень та експлуатаційні витрати (прибирання, страхування орендованих будинків, охорона, сигналізація, ремонт, вивіз сміття, тощо)",Оренда нерухомості,357758,Центральний офіс,39181335,Україна,Відшкодування вартості комунальних послуг за листопад 2019р.,26004100001777,state,10263.76,Яценко Дарʼя Володимирівна,,фізична особа
НАРОДНИЙ ФРОНТ,,79,2019-12-19,3983,"Оренда будинків і приміщень та експлуатаційні витрати (прибирання, страхування орендованих будинків, охорона, сигналізація, ремонт, вивіз сміття, тощо)",Оренда нерухомості,357757,Центральний офіс,39181335,Україна,Відшкодування вартості комунальних послуг за листопад 2019р.,26004100001777,state,3153.60,Нежурбіда Галина Григорівна,,фізична особа
НАРОДНИЙ ФРОНТ,,79,2019-12-19,3981,"Оренда будинків і приміщень та експлуатаційні витрати (прибирання, страхування орендованих будинків, охорона, сигналізація, ремонт, вивіз сміття, тощо)",Оренда нерухомості,357756,Центральний офіс,39181335,Україна,Відшкодування вартості експлуатаційних витрат за листопад 2019р.,26004100001777,state,1119.45,Шкварилюк Марта Володимирівна,,фізична особа
НАРОДНИЙ ФРОНТ,,79,2019-12-19,3980,"Оренда будинків і приміщень та експлуатаційні витрати (прибирання, страхування орендованих будинків, охорона, сигналізація, ремонт, вивіз сміття, тощо)",Оренда нерухомості,357755,Центральний офіс,39181335,Україна,Відшкодування вартості комунальних послуг за листопад 2019р.,26004100001777,state,1052.44,Шкварилюк Марта Володимирівна,,фізична особа
НАРОДНИЙ ФРОНТ,,79,2019-12-19,3979,"Оренда будинків і приміщень та експлуатаційні витрати (прибирання, страхування орендованих будинків, охорона, сигналізація, ремонт, вивіз сміття, тощо)",Оренда нерухомості,357754,Центральний офіс,39181335,Україна,Відшкодування вартості комунальних послуг за листопад 2019р.,26004100001777,state,1366.02,Мануйлова Олена Степанівна,,фізична особа
НАРОДНИЙ ФРОНТ,,79,2019-12-19,3977,"Оренда будинків і приміщень та експлуатаційні витрати (прибирання, страхування орендованих будинків, охорона, сигналізація, ремонт, вивіз сміття, тощо)",Оренда нерухомості,357753,Центральний офіс,39181335,Україна,Відшкодування вартості комунальних послуг за листопад 2019р.,26004100001777,state,1217.92,Аббакумова Галина Олександрівна,,фізична особа
НАРОДНИЙ ФРОНТ,"Київ, бульвар Вацлава Гавела, 4",48,2019-12-18,3976,Публікування матеріалів у мережі Інтернет,Реклама в інтернеті,358116,Центральний офіс,39181335,Україна,Оплата за розміщення реклами на сайті Gazeta.ua,26004100001777,state,14040.00,"ТОВ ""Рекламно-інформаційна агенція ""КРАЇНА""",41693663,юридична особа
НАРОДНИЙ ФРОНТ,Київ,61,2019-12-18,3975,Військовий збір,Податкові платежі,358115,Центральний офіс,39181335,Україна,Військовий збір,26004100001777,state,9000.00,УДКСУ в Дарницькому районі,38021179,юридична особа
НАРОДНИЙ ФРОНТ,Київ,63,2019-12-18,3974,Податок на доходи,Податкові платежі,358114,Центральний офіс,39181335,Україна,Податок на доходи фізичних осіб,26004100001777,state,108000.00,УДКСУ в Дарницькому районі,38021179,юридична особа
НАРОДНИЙ ФРОНТ,Київ,62,2019-12-18,3973,Сплата ЄСВ,Податкові платежі,358113,Центральний офіс,39181335,Україна,Єдиний соціальний внесок,26004100001777,state,132000.00,ГУ ДФС у м. Києві,43141267,юридична особа
НАРОДНИЙ ФРОНТ,"Київ, вулиця Госпітальна, 12Г",70,2019-12-18,5386283711,Банківські послуги,Інші витрати,358112,Центральний офіс,39181335,Україна,Комісія банку за виплату заробітної плати,26004100001777,state,2343.31,"АТ ""Ощадбанк""",00032129,юридична особа
НАРОДНИЙ ФРОНТ,,84,2019-12-18,20071,"Заробітна плата, премії","Заробітна плата, лікарняні, вагітності, відрядження, компенсації",357752,Центральний офіс,39181335,Україна,Заробітна плата за липень 2019р.,26004100001777,state,462.00,Головіна Лариса Андріївна,,фізична особа
НАРОДНИЙ ФРОНТ,,84,2019-12-18,20071,"Заробітна плата, премії","Заробітна плата, лікарняні, вагітності, відрядження, компенсації",357751,Центральний офіс,39181335,Україна,Заробітна плата за липень 2019р.,26004100001777,state,539.00,Григоренко Геннадій Вікторович,,фізична особа
НАРОДНИЙ ФРОНТ,,84,2019-12-18,3072,"Заробітна плата, премії","Заробітна плата, лікарняні, вагітності, відрядження, компенсації",357750,Центральний офіс,39181335,Україна,Заробітна плата за липень 2019р.,26004100001777,state,118.44,Дідух Інна Василівна,,фізична особа
НАРОДНИЙ ФРОНТ,,84,2019-12-18,13072,"Заробітна плата, премії","Заробітна плата, лікарняні, вагітності, відрядження, компенсації",357749,Центральний офіс,39181335,Україна,Заробітна плата за липень 2019р.,26004100001777,state,798.01,Музичко Ярослав Йосипович,,фізична особа
НАРОДНИЙ ФРОНТ,,84,2019-12-18,3072,"Заробітна плата, премії","Заробітна плата, лікарняні, вагітності, відрядження, компенсації",357748,Центральний офіс,39181335,Україна,Заробітна плата за липень 2019р.,26004100001777,state,160.40,Терещук Орися Василівна,,фізична особа
НАРОДНИЙ ФРОНТ,,84,2019-12-18,19121,"Заробітна плата, премії","Заробітна плата, лікарняні, вагітності, відрядження, компенсації",357747,Центральний офіс,39181335,Україна,Заробітна плата за 1 половину грудня 2019р.,26004100001777,state,4216.67,Кравець Вікторія Валеріївна,,фізична особа
НАРОДНИЙ ФРОНТ,,84,2019-12-18,8121,"Заробітна плата, премії","Заробітна плата, лікарняні, вагітності, відрядження, компенсації",357746,Центральний офіс,39181335,Україна,Заробітна плата за 1 половину грудня 2019р.,26004100001777,state,5059.99,Корольчук Людмила Кирилівна,,фізична особа
НАРОДНИЙ ФРОНТ,,84,2019-12-18,15121,"Заробітна плата, премії","Заробітна плата, лікарняні, вагітності, відрядження, компенсації",357745,Центральний офіс,39181335,Україна,Заробітна плата за 1 половину грудня 2019р.,26004100001777,state,4216.67,Кожан Олександр Васильович,,фізична особа
НАРОДНИЙ ФРОНТ,,84,2019-12-18,18121,"Заробітна плата, премії","Заробітна плата, лікарняні, вагітності, відрядження, компенсації",357744,Центральний офіс,39181335,Україна,Заробітна плата за 1 половину грудня 2019р.,26004100001777,state,3373.33,Кирій Олеся Миколаївна,,фізична особа
НАРОДНИЙ ФРОНТ,,84,2019-12-18,5121,"Заробітна плата, премії","Заробітна плата, лікарняні, вагітності, відрядження, компенсації",357743,Центральний офіс,39181335,Україна,Заробітна плата за 1 половину грудня 2019р.,26004100001777,state,4216.67,Карач Юлія Іванівна,,фізична особа
НАРОДНИЙ ФРОНТ,,84,2019-12-18,9121,"Заробітна плата, премії","Заробітна плата, лікарняні, вагітності, відрядження, компенсації",357742,Центральний офіс,39181335,Україна,Заробітна плата за 1 половину грудня 2019р.,26004100001777,state,4216.67,Зуєнко Людмила Миколаївна,,фізична особа
НАРОДНИЙ ФРОНТ,,84,2019-12-18,2121,"Заробітна плата, премії","Заробітна плата, лікарняні, вагітності, відрядження, компенсації",357741,Центральний офіс,39181335,Україна,Заробітна плата за 1 половину грудня 2019р.,26004100001777,state,6324.99,Заєць Тетяна Петрівна,,фізична особа
НАРОДНИЙ ФРОНТ,,84,2019-12-18,14121,"Заробітна плата, премії","Заробітна плата, лікарняні, вагітності, відрядження, компенсації",357740,Центральний офіс,39181335,Україна,Заробітна плата за 1 половину грудня 2019р.,26004100001777,state,4216.67,Єрофєєва Оксана Петрівна,,фізична особа
НАРОДНИЙ ФРОНТ,,84,2019-12-18,15121,"Заробітна плата, премії","Заробітна плата, лікарняні, вагітності, відрядження, компенсації",357739,Центральний офіс,39181335,Україна,Заробітна плата за 1 половину грудня 2019р.,26004100001777,state,5059.99,Ємсенко Владислава Володимирівна,,фізична особа
НАРОДНИЙ ФРОНТ,,84,2019-12-18,22121,"Заробітна плата, премії","Заробітна плата, лікарняні, вагітності, відрядження, компенсації",357738,Центральний офіс,39181335,Україна,Заробітна плата за 1 половину грудня 2019р.,26004100001777,state,6324.99,Дроздик Анатолій Вячеславович,,фізична особа
НАРОДНИЙ ФРОНТ,,84,2019-12-18,7121,"Заробітна плата, премії","Заробітна плата, лікарняні, вагітності, відрядження, компенсації",357737,Центральний офіс,39181335,Україна,Заробітна плата за 1 половину грудня 2019р.,26004100001777,state,5059.99,Данилюк Ірина Степанівна,,фізична особа
НАРОДНИЙ ФРОНТ,,84,2019-12-18,17121,"Заробітна плата, премії","Заробітна плата, лікарняні, вагітності, відрядження, компенсації",357736,Центральний офіс,39181335,Україна,Заробітна плата за 1 половину грудня 2019р.,26004100001777,state,4216.67,Генеральчук Ніна Миколаївна,,фізична особа
НАРОДНИЙ ФРОНТ,,84,2019-12-18,24121,"Заробітна плата, премії","Заробітна плата, лікарняні, вагітності, відрядження, компенсації",357735,Центральний офіс,39181335,Україна,Заробітна плата за 1 половину грудня 2019р.,26004100001777,state,4216.67,Вишневська Світлана Петрівна,,фізична особа
НАРОДНИЙ ФРОНТ,,84,2019-12-18,21121,"Заробітна плата, премії","Заробітна плата, лікарняні, вагітності, відрядження, компенсації",357734,Центральний офіс,39181335,Україна,Заробітна плата за 1 половину грудня 2019р.,26004100001777,state,4216.67,Виноградова Ольга Олександрівна,,фізична особа
НАРОДНИЙ ФРОНТ,,84,2019-12-18,24121,"Заробітна плата, премії","Заробітна плата, лікарняні, вагітності, відрядження, компенсації",357733,Центральний офіс,39181335,Україна,Заробітна плата за 1 половину грудня 2019р.,26004100001777,state,6324.99,Ватаманюк Людмила Іванівна,,фізична особа
НАРОДНИЙ ФРОНТ,,84,2019-12-18,25121,"Заробітна плата, премії","Заробітна плата, лікарняні, вагітності, відрядження, компенсації",357732,Центральний офіс,39181335,Україна,Заробітна плата за 1 половину грудня 2019р.,26004100001777,state,6324.99,Бруй Юлія Віталіївна,,фізична особа
НАРОДНИЙ ФРОНТ,,84,2019-12-18,8121,"Заробітна плата, премії","Заробітна плата, лікарняні, вагітності, відрядження, компенсації",357731,Центральний офіс,39181335,Україна,Заробітна плата за 1 половину грудня 2019р.,26004100001777,state,5059.99,Білецька Тетяна Вадимівна,,фізична особа
НАРОДНИЙ ФРОНТ,,84,2019-12-18,13121,"Заробітна плата, премії","Заробітна плата, лікарняні, вагітності, відрядження, компенсації",357730,Центральний офіс,39181335,Україна,Заробітна плата за 1 половину грудня 2019р.,26004100001777,state,6324.99,Беспалова Марія Петрівна,,фізична особа
НАРОДНИЙ ФРОНТ,,84,2019-12-18,20121,"Заробітна плата, премії","Заробітна плата, лікарняні, вагітності, відрядження, компенсації",357729,Центральний офіс,39181335,Україна,Заробітна плата за 1 половину грудня 2019р.,26004100001777,state,4216.67,Ярошенко Євген Станіславович,,фізична особа
НАРОДНИЙ ФРОНТ,,84,2019-12-18,7121,"Заробітна плата, премії","Заробітна плата, лікарняні, вагітності, відрядження, компенсації",357728,Центральний офіс,39181335,Україна,Заробітна плата за 1 половину грудня 2019р.,26004100001777,state,4216.67,Шатківський Дмитро Олександрович,,фізична особа
НАРОДНИЙ ФРОНТ,,84,2019-12-18,22121,"Заробітна плата, премії","Заробітна плата, лікарняні, вагітності, відрядження, компенсації",357727,Центральний офіс,39181335,Україна,Заробітна плата за 1 половину грудня 2019р.,26004100001777,state,5059.99,Цоміна Тетяна Михайлівна,,фізична особа
НАРОДНИЙ ФРОНТ,,84,2019-12-18,23121,"Заробітна плата, премії","Заробітна плата, лікарняні, вагітності, відрядження, компенсації",357726,Центральний офіс,39181335,Україна,Заробітна плата за 1 половину грудня 2019р.,26004100001777,state,5059.99,Фурса Оксана Володимирівна,,фізична особа
НАРОДНИЙ ФРОНТ,,84,2019-12-18,11121,"Заробітна плата, премії","Заробітна плата, лікарняні, вагітності, відрядження, компенсації",357725,Центральний офіс,39181335,Україна,Заробітна плата за 1 половину грудня 2019р.,26004100001777,state,2951.67,Фролов Микола Володимирович,,фізична особа
НАРОДНИЙ ФРОНТ,,84,2019-12-18,23121,"Заробітна плата, премії","Заробітна плата, лікарняні, вагітності, відрядження, компенсації",357724,Центральний офіс,39181335,Україна,Заробітна плата за 1 половину грудня 2019р.,26004100001777,state,4216.67,Соловйова Вікторія Владиславівна,,фізична особа
НАРОДНИЙ ФРОНТ,,84,2019-12-18,12121,"Заробітна плата, премії","Заробітна плата, лікарняні, вагітності, відрядження, компенсації",357723,Центральний офіс,39181335,Україна,Заробітна плата за 1 половину грудня 2019р.,26004100001777,state,5059.99,Сарафанова Наталія Василівна,,фізична особа
НАРОДНИЙ ФРОНТ,,84,2019-12-18,12121,"Заробітна плата, премії","Заробітна плата, лікарняні, вагітності, відрядження, компенсації",357722,Центральний офіс,39181335,Україна,Заробітна плата за 1 половину грудня 2019р.,26004100001777,state,5059.99,Самойленко Анна Олександрівна,,фізична особа
НАРОДНИЙ ФРОНТ,,84,2019-12-18,10121,"Заробітна плата, премії","Заробітна плата, лікарняні, вагітності, відрядження, компенсації",357721,Центральний офіс,39181335,Україна,Заробітна плата за 1 половину грудня 2019р.,26004100001777,state,6324.99,Савчин Андрій Якимович,,фізична особа
НАРОДНИЙ ФРОНТ,,84,2019-12-18,9121,"Заробітна плата, премії","Заробітна плата, лікарняні, вагітності, відрядження, компенсації",357720,Центральний офіс,39181335,Україна,Заробітна плата за 1 половину грудня 2019р.,26004100001777,state,5059.99,Останькович Олена Миколаївна,,фізична особа
НАРОДНИЙ ФРОНТ,,84,2019-12-18,18121,"Заробітна плата, премії","Заробітна плата, лікарняні, вагітності, відрядження, компенсації",357719,Центральний офіс,39181335,Україна,Заробітна плата за 1 половину грудня 2019р.,26004100001777,state,5059.99,Ольшанський Олег Вікторович,,фізична особа
НАРОДНИЙ ФРОНТ,,84,2019-12-18,5121,"Заробітна плата, премії","Заробітна плата, лікарняні, вагітності, відрядження, компенсації",357718,Центральний офіс,39181335,Україна,Заробітна плата за 1 половину грудня 2019р.,26004100001777,state,5059.99,Обез Марина Іванівна,,фізична особа
НАРОДНИЙ ФРОНТ,,84,2019-12-18,19121,"Заробітна плата, премії","Заробітна плата, лікарняні, вагітності, відрядження, компенсації",357717,Центральний офіс,39181335,Україна,Заробітна плата за 1 половину грудня 2019р.,26004100001777,state,5059.99,Михайлюк Віктор Іванович,,фізична особа
НАРОДНИЙ ФРОНТ,,84,2019-12-18,20121,"Заробітна плата, премії","Заробітна плата, лікарняні, вагітності, відрядження, компенсації",357716,Центральний офіс,39181335,Україна,Заробітна плата за 1 половину грудня 2019р.,26004100001777,state,6324.99,Мих Олександр Вікторович,,фізична особа
НАРОДНИЙ ФРОНТ,,84,2019-12-18,13121,"Заробітна плата, премії","Заробітна плата, лікарняні, вагітності, відрядження, компенсації",357715,Центральний офіс,39181335,Україна,Заробітна плата за 1 половину грудня 2019р.,26004100001777,state,3066.67,Мацукевич Христина Романівна,,фізична особа
НАРОДНИЙ ФРОНТ,,84,2019-12-18,11121,"Заробітна плата, премії","Заробітна плата, лікарняні, вагітності, відрядження, компенсації",357714,Центральний офіс,39181335,Україна,Заробітна плата за 1 половину грудня 2019р.,26004100001777,state,6324.99,Махновець Віктор Петрович,,фізична особа
НАРОДНИЙ ФРОНТ,,84,2019-12-18,17121,"Заробітна плата, премії","Заробітна плата, лікарняні, вагітності, відрядження, компенсації",357713,Центральний офіс,39181335,Україна,Заробітна плата за 1 половину грудня 2019р.,26004100001777,state,5059.99,Малухіна Оксана Юріївна,,фізична особа
НАРОДНИЙ ФРОНТ,,84,2019-12-18,25121,"Заробітна плата, премії","Заробітна плата, лікарняні, вагітності, відрядження, компенсації",357712,Центральний офіс,39181335,Україна,Заробітна плата за 1 половину грудня 2019р.,26004100001777,state,4216.67,Литовченко Валерій Олексійович,,фізична особа
НАРОДНИЙ ФРОНТ,,84,2019-12-18,1121,"Заробітна плата, премії","Заробітна плата, лікарняні, вагітності, відрядження, компенсації",357711,Центральний офіс,39181335,Україна,Заробітна плата за 1 половину грудня 2019р.,26004100001777,state,10541.67,Койляк Галина Ігорівна,,фізична особа
НАРОДНИЙ ФРОНТ,,84,2019-12-18,1121,"Заробітна плата, премії","Заробітна плата, лікарняні, вагітності, відрядження, компенсації",357710,Центральний офіс,39181335,Україна,Заробітна плата за 1 половину грудня 2019р.,26004100001777,state,10541.67,Колганова Олена Валеріївна,,фізична особа
НАРОДНИЙ ФРОНТ,,84,2019-12-18,1121,"Заробітна плата, премії","Заробітна плата, лікарняні, вагітності, відрядження, компенсації",357709,Центральний офіс,39181335,Україна,Заробітна плата за 1 половину грудня 2019р.,26004100001777,state,10541.67,Корчик Віталій Андрійович,,фізична особа
НАРОДНИЙ ФРОНТ,,84,2019-12-18,1121,"Заробітна плата, премії","Заробітна плата, лікарняні, вагітності, відрядження, компенсації",357708,Центральний офіс,39181335,Україна,Заробітна плата за 1 половину грудня 2019р.,26004100001777,state,8011.66,Кулібаба Наталія Юріївна,,фізична особа
НАРОДНИЙ ФРОНТ,,84,2019-12-18,1121,"Заробітна плата, премії","Заробітна плата, лікарняні, вагітності, відрядження, компенсації",357707,Центральний офіс,39181335,Україна,Заробітна плата за 1 половину грудня 2019р.,26004100001777,state,8011.66,Курас Лариса Петрівна,,фізична особа
НАРОДНИЙ ФРОНТ,,84,2019-12-18,1121,"Заробітна плата, премії","Заробітна плата, лікарняні, вагітності, відрядження, компенсації",357706,Центральний офіс,39181335,Україна,Заробітна плата за 1 половину грудня 2019р.,26004100001777,state,8011.66,Лаппо Ольга Георгіївна,,фізична особа
НАРОДНИЙ ФРОНТ,,84,2019-12-18,1121,"Заробітна плата, премії","Заробітна плата, лікарняні, вагітності, відрядження, компенсації",357705,Центральний офіс,39181335,Україна,Заробітна плата за 1 половину грудня 2019р.,26004100001777,state,5270.84,Лебедєв Микола Васильович,,фізична особа
НАРОДНИЙ ФРОНТ,,84,2019-12-18,1121,"Заробітна плата, премії","Заробітна плата, лікарняні, вагітності, відрядження, компенсації",357704,Центральний офіс,39181335,Україна,Заробітна плата за 1 половину грудня 2019р.,26004100001777,state,12650.01,Ледовських Олена Володимирівна,,фізична особа
НАРОДНИЙ ФРОНТ,,84,2019-12-18,1121,"Заробітна плата, премії","Заробітна плата, лікарняні, вагітності, відрядження, компенсації",357703,Центральний офіс,39181335,Україна,Заробітна плата за 1 половину грудня 2019р.,26004100001777,state,3162.50,Лимар Юрій Володимирович,,фізична особа
НАРОДНИЙ ФРОНТ,,84,2019-12-18,1121,"Заробітна плата, премії","Заробітна плата, лікарняні, вагітності, відрядження, компенсації",357702,Центральний офіс,39181335,Україна,Заробітна плата за 1 половину грудня 2019р.,26004100001777,state,2951.67,Литвиненко Андрій Миколайович,,фізична особа
НАРОДНИЙ ФРОНТ,,84,2019-12-18,1121,"Заробітна плата, премії","Заробітна плата, лікарняні, вагітності, відрядження, компенсації",357701,Центральний офіс,39181335,Україна,Заробітна плата за 1 половину грудня 2019р.,26004100001777,state,4743.76,Ляшенко Микола Миколайович,,фізична особа
НАРОДНИЙ ФРОНТ,,84,2019-12-18,1121,"Заробітна плата, премії","Заробітна плата, лікарняні, вагітності, відрядження, компенсації",357700,Центральний офіс,39181335,Україна,Заробітна плата за 1 половину грудня 2019р.,26004100001777,state,2108.33,Коба Ольга Володимирівна,,фізична особа
НАРОДНИЙ ФРОНТ,,84,2019-12-18,1121,"Заробітна плата, премії","Заробітна плата, лікарняні, вагітності, відрядження, компенсації",357699,Центральний офіс,39181335,Україна,Заробітна плата за 1 половину грудня 2019р.,26004100001777,state,5270.84,Карасьов Дмитро Геннадійович,,фізична особа
НАРОДНИЙ ФРОНТ,,84,2019-12-18,1121,"Заробітна плата, премії","Заробітна плата, лікарняні, вагітності, відрядження, компенсації",357698,Центральний офіс,39181335,Україна,Заробітна плата за 1 половину грудня 2019р.,26004100001777,state,8011.66,Данилюк Марина Миколаївна,,фізична особа
НАРОДНИЙ ФРОНТ,,84,2019-12-18,1121,"Заробітна плата, премії","Заробітна плата, лікарняні, вагітності, відрядження, компенсації",357697,Центральний офіс,39181335,Україна,Заробітна плата за 1 половину грудня 2019р.,26004100001777,state,10541.67,Гринь Костянтин Андрійович,,фізична особа
НАРОДНИЙ ФРОНТ,,84,2019-12-18,1121,"Заробітна плата, премії","Заробітна плата, лікарняні, вагітності, відрядження, компенсації",357696,Центральний офіс,39181335,Україна,Заробітна плата за 1 половину грудня 2019р.,26004100001777,state,5270.84,Валявська Ольга Дмитрівна,,фізична особа
НАРОДНИЙ ФРОНТ,,84,2019-12-18,1121,"Заробітна плата, премії","Заробітна плата, лікарняні, вагітності, відрядження, компенсації",357695,Центральний офіс,39181335,Україна,Заробітна плата за 1 половину грудня 2019р.,26004100001777,state,2108.33,Боєчко Наталія Мирославівна,,фізична особа
НАРОДНИЙ ФРОНТ,,84,2019-12-18,1121,"Заробітна плата, премії","Заробітна плата, лікарняні, вагітності, відрядження, компенсації",357694,Центральний офіс,39181335,Україна,Заробітна плата за 1 половину грудня 2019р.,26004100001777,state,8011.66,Боднарюк Тетяна Григорівна,,фізична особа
НАРОДНИЙ ФРОНТ,,84,2019-12-18,1121,"Заробітна плата, премії","Заробітна плата, лікарняні, вагітності, відрядження, компенсації",357693,Центральний офіс,39181335,Україна,Заробітна плата за 1 половину грудня 2019р.,26004100001777,state,5270.84,Білан Ірина Борисівна,,фізична особа
НАРОДНИЙ ФРОНТ,,84,2019-12-18,1121,"Заробітна плата, премії","Заробітна плата, лікарняні, вагітності, відрядження, компенсації",357692,Центральний офіс,39181335,Україна,Заробітна плата за 1 половину грудня 2019р.,26004100001777,state,10541.67,Бендюженко Федір Володимирович,,фізична особа
НАРОДНИЙ ФРОНТ,,84,2019-12-18,1121,"Заробітна плата, премії","Заробітна плата, лікарняні, вагітності, відрядження, компенсації",357691,Центральний офіс,39181335,Україна,Заробітна плата за 1 половину грудня 2019р.,26004100001777,state,8011.66,Баранов Віктор Петрович,,фізична особа
НАРОДНИЙ ФРОНТ,,84,2019-12-18,1121,"Заробітна плата, премії","Заробітна плата, лікарняні, вагітності, відрядження, компенсації",357690,Центральний офіс,39181335,Україна,Заробітна плата за 1 половину грудня 2019р.,26004100001777,state,4216.67,Якобчук Андрій Миколайович,,фізична особа
НАРОДНИЙ ФРОНТ,,84,2019-12-18,1121,"Заробітна плата, премії","Заробітна плата, лікарняні, вагітності, відрядження, компенсації",357689,Центральний офіс,39181335,Україна,Заробітна плата за 1 половину грудня 2019р.,26004100001777,state,10541.67,Якименко Світлана Олександрівна,,фізична особа
НАРОДНИЙ ФРОНТ,,84,2019-12-18,1121,"Заробітна плата, премії","Заробітна плата, лікарняні, вагітності, відрядження, компенсації",357688,Центральний офіс,39181335,Україна,Заробітна плата за 1 половину грудня 2019р.,26004100001777,state,8011.66,Явецький Андрій Олександрович,,фізична особа
НАРОДНИЙ ФРОНТ,,84,2019-12-18,1121,"Заробітна плата, премії","Заробітна плата, лікарняні, вагітності, відрядження, компенсації",357687,Центральний офіс,39181335,Україна,Заробітна плата за 1 половину грудня 2019р.,26004100001777,state,10541.67,Шевченко Наталія Анатоліївна,,фізична особа
НАРОДНИЙ ФРОНТ,,84,2019-12-18,1121,"Заробітна плата, премії","Заробітна плата, лікарняні, вагітності, відрядження, компенсації",357686,Центральний офіс,39181335,Україна,Заробітна плата за 1 половину грудня 2019р.,26004100001777,state,10541.67,Шевченко Євгеній Віталійович,,фізична особа
НАРОДНИЙ ФРОНТ,,84,2019-12-18,1121,"Заробітна плата, премії","Заробітна плата, лікарняні, вагітності, відрядження, компенсації",357685,Центральний офіс,39181335,Україна,Заробітна плата за 1 половину грудня 2019р.,26004100001777,state,5270.84,Чигрин Дмитро Володимирович,,фізична особа
НАРОДНИЙ ФРОНТ,,84,2019-12-18,1121,"Заробітна плата, премії","Заробітна плата, лікарняні, вагітності, відрядження, компенсації",357684,Центральний офіс,39181335,Україна,Заробітна плата за 1 половину грудня 2019р.,26004100001777,state,9487.49,Сулейманов Ернест Фахритович,,фізична особа
НАРОДНИЙ ФРОНТ,,84,2019-12-18,1121,"Заробітна плата, премії","Заробітна плата, лікарняні, вагітності, відрядження, компенсації",357683,Центральний офіс,39181335,Україна,Заробітна плата за 1 половину грудня 2019р.,26004100001777,state,10541.67,Сочка Олександр Олександрович,,фізична особа
НАРОДНИЙ ФРОНТ,,84,2019-12-18,1121,"Заробітна плата, премії","Заробітна плата, лікарняні, вагітності, відрядження, компенсації",357682,Центральний офіс,39181335,Україна,Заробітна плата за 1 половину грудня 2019р.,26004100001777,state,8011.66,Соловйов Олексій Володимирович,,фізична особа
НАРОДНИЙ ФРОНТ,,84,2019-12-18,1121,"Заробітна плата, премії","Заробітна плата, лікарняні, вагітності, відрядження, компенсації",357681,Центральний офіс,39181335,Україна,Заробітна плата за 1 половину грудня 2019р.,26004100001777,state,5270.84,Сичова Катерина Сергіївна,,фізична особа
НАРОДНИЙ ФРОНТ,,84,2019-12-18,1121,"Заробітна плата, премії","Заробітна плата, лікарняні, вагітності, відрядження, компенсації",357680,Центральний офіс,39181335,Україна,Заробітна плата за 1 половину грудня 2019р.,26004100001777,state,5270.84,Рижков Дмитро Ігорович,,фізична особа
НАРОДНИЙ ФРОНТ,,84,2019-12-18,1121,"Заробітна плата, премії","Заробітна плата, лікарняні, вагітності, відрядження, компенсації",357679,Центральний офіс,39181335,Україна,Заробітна плата за 1 половину грудня 2019р.,26004100001777,state,8011.66,Пономаренко Сергій Володимирович,,фізична особа
НАРОДНИЙ ФРОНТ,,84,2019-12-18,1121,"Заробітна плата, премії","Заробітна плата, лікарняні, вагітності, відрядження, компенсації",357678,Центральний офіс,39181335,Україна,Заробітна плата за 1 половину грудня 2019р.,26004100001777,state,10541.67,Пономаренко Ганна Василівна,,фізична особа
НАРОДНИЙ ФРОНТ,,84,2019-12-18,1121,"Заробітна плата, премії","Заробітна плата, лікарняні, вагітності, відрядження, компенсації",357677,Центральний офіс,39181335,Україна,Заробітна плата за 1 половину грудня 2019р.,26004100001777,state,4216.67,Полюшко Володимир Миколайович,,фізична особа
НАРОДНИЙ ФРОНТ,,84,2019-12-18,1121,"Заробітна плата, премії","Заробітна плата, лікарняні, вагітності, відрядження, компенсації",357676,Центральний офіс,39181335,Україна,Заробітна плата за 1 половину грудня 2019р.,26004100001777,state,5270.84,Побочіх Михайло Олександрович,,фізична особа
НАРОДНИЙ ФРОНТ,,84,2019-12-18,1121,"Заробітна плата, премії","Заробітна плата, лікарняні, вагітності, відрядження, компенсації",357675,Центральний офіс,39181335,Україна,Заробітна плата за 1 половину грудня 2019р.,26004100001777,state,2951.67,Петренко Любов Володимирівна,,фізична особа
НАРОДНИЙ ФРОНТ,,84,2019-12-18,1121,"Заробітна плата, премії","Заробітна плата, лікарняні, вагітності, відрядження, компенсації",357674,Центральний офіс,39181335,Україна,Заробітна плата за 1 половину грудня 2019р.,26004100001777,state,2951.67,Панькова Лідія Василівна,,фізична особа
НАРОДНИЙ ФРОНТ,,84,2019-12-18,1121,"Заробітна плата, премії","Заробітна плата, лікарняні, вагітності, відрядження, компенсації",357673,Центральний офіс,39181335,Україна,Заробітна плата за 1 половину грудня 2019р.,26004100001777,state,8011.66,Особський Вадим Володимирович,,фізична особа
НАРОДНИЙ ФРОНТ,,84,2019-12-18,1121,"Заробітна плата, премії","Заробітна плата, лікарняні, вагітності, відрядження, компенсації",357672,Центральний офіс,39181335,Україна,Заробітна плата за 1 половину грудня 2019р.,26004100001777,state,8011.66,Мольдерф Валентина Григорівна,,фізична особа
НАРОДНИЙ ФРОНТ,,84,2019-12-18,1121,"Заробітна плата, премії","Заробітна плата, лікарняні, вагітності, відрядження, компенсації",357671,Центральний офіс,39181335,Україна,Заробітна плата за 1 половину грудня 2019р.,26004100001777,state,2951.67,Махорін Вʼячеслав Сергійович,,фізична особа
НАРОДНИЙ ФРОНТ,,84,2019-12-18,3970,"Заробітна плата, премії","Заробітна плата, лікарняні, вагітності, відрядження, компенсації",357670,Центральний офіс,39181335,Україна,Заробітна плата за 1 половину грудня 2019р.,26004100001777,state,6324.99,Добровольська Оксана Володимирівна,,фізична особа
НАРОДНИЙ ФРОНТ,,84,2019-12-18,3969,"Заробітна плата, премії","Заробітна плата, лікарняні, вагітності, відрядження, компенсації",357669,Центральний офіс,39181335,Україна,Заробітна плата за 1 половину грудня 2019р..,26004100001777,state,5270.84,Данілін Владислав Юрійович,,фізична особа
НАРОДНИЙ ФРОНТ,"Закарпатська область, Ужгород, вулиця Крилова, 10",51,2019-12-16,3968,Оплата ефірного часу на ТБ,Телереклама,358111,Центральний офіс,39181335,Україна,Оплата за розміщення інформаційних матеріалів на телебаченні,26004100001777,state,49572.00,"Приватне мале підприємство ""Телерадіокомпанія ДАНІО""",20430464,юридична особа
НАРОДНИЙ ФРОНТ,"Закарпатська область, Мукачево, вулиця Івана Франка, 132",51,2019-12-16,3967,Оплата ефірного часу на ТБ,Телереклама,358110,Центральний офіс,39181335,Україна,Оплата за розміщення інформаційних матеріалів на телебаченні,26004100001777,state,43200.00,"ДП ""Телерадіокомпаня ""Мукачево"" ВК ТОВ ""Продюсер""",22082346,юридична особа
НАРОДНИЙ ФРОНТ,"Запорізька область, Запоріжжя, проспект Моторобудівників, 48",51,2019-12-13,3966,Оплата ефірного часу на ТБ,Телереклама,358109,Центральний офіс,39181335,Україна,Оплата за розміщення інформаційних матеріалів на телебаченні,26004100001777,state,120000.00,"ТОВ ""МедіаГРУП Алекс.Юа""",24451003,юридична особа
НАРОДНИЙ ФРОНТ,"Івано-Франківська область, Івано-Франківськ, вулиця Михайла Грушевського, 21, 701",51,2019-12-13,3965,Оплата ефірного часу на ТБ,Телереклама,358108,Центральний офіс,39181335,Україна,Оплата за розміщення інформаційних матеріалів на телебаченні,26004100001777,state,60000.00,"Івано-Франківське обласне телебачення ""Галичина""",13641427,юридична особа
НАРОДНИЙ ФРОНТ,"Вінницька область, Вінниця, вулиця Соборна, 59",51,2019-12-13,3964,Оплата ефірного часу на ТБ,Телереклама,358107,Центральний офіс,39181335,Україна,Оплата за розміщення інформаційних матеріалів на телебаченні,26004100001777,state,216000.00,"Міське КП ""Інформаційно-телевізійне агентство ""Віта""",13341352,юридична особа
НАРОДНИЙ ФРОНТ,,66,2019-12-13,52,Повернення внесків приватних внесків (донорам),Повернення приватних внесків (донорам),357180,Центральний офіс,39181335,Україна,"п. 8 ч.1 ст.15 та ч.7 ст.15 Закону України ""Про політичні партії в Україні""",26005300002745,current,43697.81,Лисенко Вікторія Володимирівна,,фізична особа
НАРОДНИЙ ФРОНТ,,66,2019-12-13,51,Повернення внесків приватних внесків (донорам),Повернення приватних внесків (донорам),357179,Центральний офіс,39181335,Україна,"п. 8 ч.1 ст.15 та ч.7 ст.15 Закону України ""Про політичні партії в Україні""",26005300002745,current,27000.00,Ляшко Олександр Васильович,,фізична особа
НАРОДНИЙ ФРОНТ,"Чернівецька область, Чернівці, вулиця 28-го Червня, 44",51,2019-12-12,3963,Оплата ефірного часу на ТБ,Телереклама,358106,Центральний офіс,39181335,Україна,Оплата за розміщення інформаційних матеріалів на телебаченні,26004100001777,state,216000.00,"ТОВ ""ТЕЛЕРАДІОКОМПАНІЯ ""ТВА""",14260868,юридична особа
НАРОДНИЙ ФРОНТ,"Черкаська область, Черкаси, вулиця Юрія Іллєнка, 27",51,2019-12-12,3962,Оплата ефірного часу на ТБ,Телереклама,358105,Центральний офіс,39181335,Україна,Оплата за розміщення інформаційних матеріалів на телебаченні,26004100001777,state,54000.00,"ТОВ ""ТРК ""Вікка""",21385292,юридична особа
НАРОДНИЙ ФРОНТ,"Хмельницька область, Хмельницький, Кам'янецька вулиця, 23",51,2019-12-12,3961,Оплата ефірного часу на ТБ,Телереклама,358104,Центральний офіс,39181335,Україна,Оплата за розміщення інформаційних матеріалів на телебаченні,26004100001777,state,240000.00,"ДП ""Дитяче телевізійне агентство""",23843362,юридична особа
НАРОДНИЙ ФРОНТ,"Херсонська область, Херсон, вулиця Богородицька, 10, 4",51,2019-12-12,3960,Оплата ефірного часу на ТБ,Телереклама,358103,Центральний офіс,39181335,Україна,Оплата за розміщення інформаційних матеріалів на телебаченні,26004100001777,state,86400.00,"ПП ""ТРК ВТВ-плюс """,24959285,юридична особа
НАРОДНИЙ ФРОНТ,"Харківська область, Харків, вулиця Ярослава Мудрого, 3",51,2019-12-12,3959,Оплата ефірного часу на ТБ,Телереклама,358102,Центральний офіс,39181335,Україна,Оплата за розміщення інформаційних матеріалів на телебаченні,26004100001777,state,36000.00,"ПАТ ""ТЕЛЕРАДЮКОМПАНІЯ ""ПРАВО А/ТВК""",22722874,юридична особа
НАРОДНИЙ ФРОНТ,"Харківська область, Харків, майдан Свободи, 7",51,2019-12-12,3958,Оплата ефірного часу на ТБ,Телереклама,358101,Центральний офіс,39181335,Україна,Оплата за розміщення інформаційних матеріалів на телебаченні,26004100001777,state,144000.00,ТОВ 'Медіа група 'Обʼєктив',34468048,юридична особа
НАРОДНИЙ ФРОНТ,"Миколаївська область, Миколаїв, вулиця Чкалова, 30",51,2019-12-12,3957,Оплата ефірного часу на ТБ,Телереклама,358100,Центральний офіс,39181335,Україна,Оплата за розміщення інформаційних матеріалів на телебаченні,26004100001777,state,77760.00,"ТОВ ТРК ""НІС-ТВ""",20874043,юридична особа
НАРОДНИЙ ФРОНТ,"Львівська область, Львів, вулиця Підвальна, 3",51,2019-12-12,3956,Оплата ефірного часу на ТБ,Телереклама,358099,Центральний офіс,39181335,Україна,Оплата за розміщення інформаційних матеріалів на телебаченні,26004100001777,state,259200.00,"КП ""Телекомпанія ""Львів-ТБ""",31074340,юридична особа
НАРОДНИЙ ФРОНТ,"Кіровоградська область, Кропивницький",51,2019-12-12,3955,Оплата ефірного часу на ТБ,Телереклама,358098,Центральний офіс,39181335,Україна,Оплата за розміщення інформаційних матеріалів на телебаченні,26004100001777,state,86400.00,"ТОВ ""Телерадіокомпанія ТТV""",13745760,юридична особа
НАРОДНИЙ ФРОНТ,"Тернопільська область, Тернопіль, вулиця Руська, 44",51,2019-12-12,3954,Оплата ефірного часу на ТБ,Телереклама,358097,Центральний офіс,39181335,Україна,Оплата за розміщення інформаційних матеріалів на телебаченні,26004100001777,state,144000.00,"ПП ""ТРК ""Смайл""Телеканал ""ІНТБ""",34473456,юридична особа
НАРОДНИЙ ФРОНТ,"Сумська область, Суми, вулиця Харківська, 5",51,2019-12-12,3953,Оплата ефірного часу на ТБ,Телереклама,358096,Центральний офіс,39181335,Україна,Оплата за розміщення інформаційних матеріалів на телебаченні,26004100001777,state,77760.00,"ТОВ ""Телерадіокомпанія ""Дельта""",36550338,юридична особа
НАРОДНИЙ ФРОНТ,"Рівненська область, Рівне, вулиця Міцкевича, 11",51,2019-12-12,3952,Оплата ефірного часу на ТБ,Телереклама,358095,Центральний офіс,39181335,Україна,Оплата за розміщення інформаційних матеріалів на телебаченні,26004100001777,state,24000.00,"ТРК ""Сфера-ТВ2""",33910609,юридична особа
НАРОДНИЙ ФРОНТ,"Рівненська область, Рівне, вулиця Данила Галицького, 19, 701",51,2019-12-12,3951,Оплата ефірного часу на ТБ,Телереклама,358094,Центральний офіс,39181335,Україна,Оплата за розміщення інформаційних матеріалів на телебаченні,26004100001777,state,86400.00,"ТОВ ""Телерадіокомпанія Рівне 1""",22573340,юридична особа
НАРОДНИЙ ФРОНТ,"Полтавська область, Полтава, вулиця Конституції, 4",51,2019-12-12,3950,Оплата ефірного часу на ТБ,Телереклама,358093,Центральний офіс,39181335,Україна,Оплата за розміщення інформаційних матеріалів на телебаченні,26004100001777,state,30000.00,"ТОВ ""ТРК ""ІРТ-Полтава""",35026331,юридична особа
НАРОДНИЙ ФРОНТ,"Полтавська область, Полтава, вулиця Конституції, 4",51,2019-12-12,3949,Оплата ефірного часу на ТБ,Телереклама,358092,Центральний офіс,39181335,Україна,Оплата за розміщення інформаційних матеріалів на телебаченні,26004100001777,state,30000.00,"ТОВ ""ТРК ""ІРТ-Полтава""",35026331,юридична особа
НАРОДНИЙ ФРОНТ,"Одеська область, Одеса, вулиця Канатна, 10",51,2019-12-12,3948,Оплата ефірного часу на ТБ,Телереклама,358091,Центральний офіс,39181335,Україна,Оплата за розміщення інформаційних матеріалів на телебаченні,26004100001777,state,72000.00,"ТОВ ТРК ""Моя Одеса""",31068509,юридична особа
НАРОДНИЙ ФРОНТ,"Житомирська область, Житомир, вулиця Велика Бердичівська, 72",51,2019-12-12,3947,Оплата ефірного часу на ТБ,Телереклама,358090,Центральний офіс,39181335,Україна,Оплата за розміщення інформаційних матеріалів на телебаченні,26004100001777,state,60000.00,"ТОВ ""Медіа-проспект""",38500053,юридична особа
НАРОДНИЙ ФРОНТ,"Дніпропетровська область, Дніпро́, вулиця Воскресенська, 14",51,2019-12-12,3946,Оплата ефірного часу на ТБ,Телереклама,358089,Центральний офіс,39181335,Україна,Оплата за розміщення інформаційних матеріалів на телебаченні,26004100001777,state,108000.00,"ПрАТ ""Телевізійна служба Дніпропетровська""",20264089,юридична особа
НАРОДНИЙ ФРОНТ,"Дніпропетровська область, Дніпро́, вулиця Писаржевського, 1А",51,2019-12-12,3945,Оплата ефірного часу на ТБ,Телереклама,358088,Центральний офіс,39181335,Україна,Оплата за розміщення інформаційних матеріалів на телебаченні,26004100001777,state,96000.00,"ДП ""ТРК ""Стерх""",24434223,юридична особа
НАРОДНИЙ ФРОНТ,"Волинська область, Луцьк, вулиця Електроапаратна, 3",51,2019-12-12,3944,Оплата ефірного часу на ТБ,Телереклама,358087,Центральний офіс,39181335,Україна,Оплата за розміщення інформаційних матеріалів на телебаченні,26004100001777,state,403920.00,"ТРК ""Аверс""",21755180,юридична особа
НАРОДНИЙ ФРОНТ,"Вінницька область, Вінниця, вулиця Театральна, 15",51,2019-12-12,3943,Оплата ефірного часу на ТБ,Телереклама,358086,Центральний офіс,39181335,Україна,Оплата за розміщення інформаційних матеріалів на телебаченні,26004100001777,state,86400.00,"Обласна асоціація ""Вінницька громадська телерадіокомпанія ""Вінниччина""",31473359,юридична особа
НАРОДНИЙ ФРОНТ,"Івано-Франківська область, Галицький район, Бурштин, вулиця Січових Стрільців, 27",51,2019-12-12,3942,Оплата ефірного часу на ТБ,Телереклама,358085,Центральний офіс,39181335,Україна,Оплата за розміщення інформаційних матеріалів на телебаченні,26004100001777,state,57600.00,"ТОВ ""Телерадіокомпанія ""РАІ""",36983355,юридична особа
НАРОДНИЙ ФРОНТ,"Чернігівська область, Чернігів",51,2019-12-12,3941,Оплата ефірного часу на ТБ,Телереклама,358084,Центральний офіс,39181335,Україна,Оплата за розміщення інформаційних матеріалів на телебаченні,26004100001777,state,108000.00,"ТОВ ""Телерадіоорганізація ""Ліга""",24834454,юридична особа
НАРОДНИЙ ФРОНТ,,48,2019-12-12,3939,Публікування матеріалів у мережі Інтернет,Реклама в інтернеті,357668,Центральний офіс,39181335,Україна,Оплата за розміщення інформаційних матеріалів в мережі Інтернет,26004100001777,state,2105263.16,Богатчук Юрій Якович,,фізична особа
НАРОДНИЙ ФРОНТ,"Київ, вулиця Героїв Космосу, 4",51,2019-12-11,3938,Оплата ефірного часу на ТБ,Телереклама,358083,Центральний офіс,39181335,Україна,Оплата за послуги з розміщення інформаційних матеріалів на телебаченні,26004100001777,state,604800.00,"ТОВ ""Медіа парнерство баінг""",38990495,юридична особа
НАРОДНИЙ ФРОНТ,"Київ, вулиця Героїв Космосу, 4",48,2019-12-11,3936,Публікування матеріалів у мережі Інтернет,Реклама в інтернеті,358082,Центральний офіс,39181335,Україна,Оплата за рекламні послуги в мережі Інтернет,26004100001777,state,14400.00,"ТОВ ""Медіа парнерство баінг""",38990495,юридична особа
НАРОДНИЙ ФРОНТ,"Сумська область, Суми, вулиця Данила Галицького, 27",79,2019-12-10,3937,"Оренда будинків і приміщень та експлуатаційні витрати (прибирання, страхування орендованих будинків, охорона, сигналізація, ремонт, вивіз сміття, тощо)",Оренда нерухомості,358081,Центральний офіс,39181335,Україна,Орендна плата за грудень 2019р.,26004100001777,state,22500.00,"ТОВ ""Видавничо-торговий дім ""Університетська книга""",31209206,юридична особа
НАРОДНИЙ ФРОНТ,"Житомирська область, Житомир, вулиця Велика Бердичівська, 19",79,2019-12-10,3936,"Оренда будинків і приміщень та експлуатаційні витрати (прибирання, страхування орендованих будинків, охорона, сигналізація, ремонт, вивіз сміття, тощо)",Оренда нерухомості,358080,Центральний офіс,39181335,Україна,Орендна плата за грудень 2019р.,26004100001777,state,18286.00,"ТОВ ""Ростмедіа.ТВ""",37671921,юридична особа
НАРОДНИЙ ФРОНТ,Київ,61,2019-12-10,3935,Військовий збір,Податкові платежі,358079,Центральний офіс,39181335,Україна,Військовий збір,26004100001777,state,1000.00,УДКСУ в Дарницькому районі,38021179,юридична особа
НАРОДНИЙ ФРОНТ,Київ,63,2019-12-10,3934,Податок на доходи,Податкові платежі,358078,Центральний офіс,39181335,Україна,Податок на доходи фізичних осіб,26004100001777,state,12150.00,УДКСУ в Дарницькому районі,38021179,юридична особа
НАРОДНИЙ ФРОНТ,"Черкаська область, Черкаси, вулиця Смілянська, 118",79,2019-12-10,3929,"Оренда будинків і приміщень та експлуатаційні витрати (прибирання, страхування орендованих будинків, охорона, сигналізація, ремонт, вивіз сміття, тощо)",Оренда нерухомості,358077,Центральний офіс,39181335,Україна,Орендна плата за грудень 2019р.,26004100001777,state,22990.00,"ТОВ ""Черкаський проект""",36995025,юридична особа
НАРОДНИЙ ФРОНТ,"Херсонська область, Херсон, вулиця Миколи Куліша, 13",79,2019-12-10,3927,"Оренда будинків і приміщень та експлуатаційні витрати (прибирання, страхування орендованих будинків, охорона, сигналізація, ремонт, вивіз сміття, тощо)",Оренда нерухомості,358076,Центральний офіс,39181335,Україна,Орендна плата за грудень 2019р.,26004100001777,state,9900.00,"ТОВ ""СТО""БУКОВИНА.ЛТД""",36129911,юридична особа
НАРОДНИЙ ФРОНТ,"Харківська область, Харків, вулиця Сумська, 88",79,2019-12-10,3926,"Оренда будинків і приміщень та експлуатаційні витрати (прибирання, страхування орендованих будинків, охорона, сигналізація, ремонт, вивіз сміття, тощо)",Оренда нерухомості,358075,Центральний офіс,39181335,Україна,Орендна плата за грудень 2019р.,26004100001777,state,18000.00,"ПП ""Міністрі Плюс""",33205780,юридична особа
НАРОДНИЙ ФРОНТ,"Рівненська область, Рівне, вулиця Словацького, 4-6",79,2019-12-10,3924,"Оренда будинків і приміщень та експлуатаційні витрати (прибирання, страхування орендованих будинків, охорона, сигналізація, ремонт, вивіз сміття, тощо)",Оренда нерухомості,358074,Центральний офіс,39181335,Україна,Орендна плата за грудень 2019р.,26004100001777,state,9964.00,"ТОВ ""СЛОВАЦЬКЕ""",39112261,юридична особа
НАРОДНИЙ ФРОНТ,"Київ, вулиця Волоська, 55-57",79,2019-12-10,3922,"Оренда будинків і приміщень та експлуатаційні витрати (прибирання, страхування орендованих будинків, охорона, сигналізація, ремонт, вивіз сміття, тощо)",Оренда нерухомості,358073,Центральний офіс,39181335,Україна,Орендна плата за грудень 2019р.,26004100001777,state,28500.00,"ТОВ ""ПАКТА-ЛЕГЕТІМА""",37037083,юридична особа
НАРОДНИЙ ФРОНТ,"Закарпатська область, Ужгород, вулиця Корзо, 9, 5",79,2019-12-10,3919,"Оренда будинків і приміщень та експлуатаційні витрати (прибирання, страхування орендованих будинків, охорона, сигналізація, ремонт, вивіз сміття, тощо)",Оренда нерухомості,358072,Центральний офіс,39181335,Україна,Орендна плата за грудень 2019р.,26004100001777,state,42000.00,"ТОВ ""Автосервіс-Буд""",34489576,юридична особа
НАРОДНИЙ ФРОНТ,,79,2019-12-10,3933,"Оренда будинків і приміщень та експлуатаційні витрати (прибирання, страхування орендованих будинків, охорона, сигналізація, ремонт, вивіз сміття, тощо)",Оренда нерухомості,357667,Центральний офіс,39181335,Україна,Оплата за послуги зі зберігання майна за грудень 2019р.,26004100001777,state,41036.80,Устименко Олена Олександрівна,,фізична особа
НАРОДНИЙ ФРОНТ,"м. Чернігів, вул. Текстильників, буд. 11Б, кв. 12",79,2019-12-10,3932,"Оренда будинків і приміщень та експлуатаційні витрати (прибирання, страхування орендованих будинків, охорона, сигналізація, ремонт, вивіз сміття, тощо)",Оренда нерухомості,357666,Центральний офіс,39181335,Україна,Орендна плата за грудень 2019р.,26004100001777,state,10000.00,Старченко Сергій Володимирович,3007912112,фізична особа
НАРОДНИЙ ФРОНТ,,79,2019-12-10,3931,"Оренда будинків і приміщень та експлуатаційні витрати (прибирання, страхування орендованих будинків, охорона, сигналізація, ремонт, вивіз сміття, тощо)",Оренда нерухомості,357665,Центральний офіс,39181335,Україна,Орендна плата за грудень 2019р.,26004100001777,state,11155.00,Лупой Станіслав Петрович,,фізична особа
НАРОДНИЙ ФРОНТ,,79,2019-12-10,3930,"Оренда будинків і приміщень та експлуатаційні витрати (прибирання, страхування орендованих будинків, охорона, сигналізація, ремонт, вивіз сміття, тощо)",Оренда нерухомості,357664,Центральний офіс,39181335,Україна,Орендна плата за грудень 2019р.,26004100001777,state,13143.00,Нежурбіда Галина Григорівна,,фізична особа
НАРОДНИЙ ФРОНТ,,79,2019-12-10,3928,"Оренда будинків і приміщень та експлуатаційні витрати (прибирання, страхування орендованих будинків, охорона, сигналізація, ремонт, вивіз сміття, тощо)",Оренда нерухомості,357663,Центральний офіс,39181335,Україна,Орендна плата за грудень 2019р.,26004100001777,state,8009.75,Кравець Юрій Михайлович,,фізична особа
НАРОДНИЙ ФРОНТ,,79,2019-12-10,3925,"Оренда будинків і приміщень та експлуатаційні витрати (прибирання, страхування орендованих будинків, охорона, сигналізація, ремонт, вивіз сміття, тощо)",Оренда нерухомості,357662,Центральний офіс,39181335,Україна,Орендна плата за грудень 2019р.,26004100001777,state,23800.00,Цісельський Андрій Степанович,,фізична особа
НАРОДНИЙ ФРОНТ,"м. Миколаїв, вул. Веселинівська, буд. 6",79,2019-12-10,3923,"Оренда будинків і приміщень та експлуатаційні витрати (прибирання, страхування орендованих будинків, охорона, сигналізація, ремонт, вивіз сміття, тощо)",Оренда нерухомості,357661,Центральний офіс,39181335,Україна,Орендна плата за грудень 2019р.,26004100001777,state,14500.00,Мурлян Євген Анатолійович,3025319998,фізична особа
НАРОДНИЙ ФРОНТ,,79,2019-12-10,3921,"Оренда будинків і приміщень та експлуатаційні витрати (прибирання, страхування орендованих будинків, охорона, сигналізація, ремонт, вивіз сміття, тощо)",Оренда нерухомості,357660,Центральний офіс,39181335,Україна,Орендна плата за жовтень - грудень 2019р.,26004100001777,state,2.40,Шкварилюк Марта Володимирівна,,фізична особа
НАРОДНИЙ ФРОНТ,,79,2019-12-10,3920,"Оренда будинків і приміщень та експлуатаційні витрати (прибирання, страхування орендованих будинків, охорона, сигналізація, ремонт, вивіз сміття, тощо)",Оренда нерухомості,357659,Центральний офіс,39181335,Україна,Орендна плата за жовтень - грудень 2018р.,26004100001777,state,3.45,Мануйлова Олена Степанівна,,фізична особа
НАРОДНИЙ ФРОНТ,,79,2019-12-10,3918,"Оренда будинків і приміщень та експлуатаційні витрати (прибирання, страхування орендованих будинків, охорона, сигналізація, ремонт, вивіз сміття, тощо)",Оренда нерухомості,357658,Центральний офіс,39181335,Україна,Орендна плата за грудень 2019р.,26004100001777,state,23345.00,Куркуріна Світлана Вікторівна,,фізична особа
НАРОДНИЙ ФРОНТ,,79,2019-12-10,3917,"Оренда будинків і приміщень та експлуатаційні витрати (прибирання, страхування орендованих будинків, охорона, сигналізація, ремонт, вивіз сміття, тощо)",Оренда нерухомості,357657,Центральний офіс,39181335,Україна,Орендна плата за грудень 2019р.,26004100001777,state,64998.48,Гулямова Олена Олександрівна,,фізична особа
НАРОДНИЙ ФРОНТ,,79,2019-12-10,3916,"Оренда будинків і приміщень та експлуатаційні витрати (прибирання, страхування орендованих будинків, охорона, сигналізація, ремонт, вивіз сміття, тощо)",Оренда нерухомості,357656,Центральний офіс,39181335,Україна,Орендна плата за грудень 2019р.,26004100001777,state,16100.00,Корж Лариса Тимофіївна,,фізична особа
НАРОДНИЙ ФРОНТ,,79,2019-12-10,3915,"Оренда будинків і приміщень та експлуатаційні витрати (прибирання, страхування орендованих будинків, охорона, сигналізація, ремонт, вивіз сміття, тощо)",Оренда нерухомості,357655,Центральний офіс,39181335,Україна,Орендна плата за грудень 2019р.,26004100001777,state,22942.50,Аббакумова Галина Олександрівна,,фізична особа
НАРОДНИЙ ФРОНТ,Київ,61,2019-12-09,3914,Військовий збір,Податкові платежі,358071,Центральний офіс,39181335,Україна,Військовий збір,26004100001777,state,200.00,УДКСУ в Дарницькому районі,38021179,юридична особа
НАРОДНИЙ ФРОНТ,Київ,63,2019-12-09,3913,Податок на доходи,Податкові платежі,358070,Центральний офіс,39181335,Україна,Податок на доходи фізичних осіб,26004100001777,state,2200.00,УДКСУ в Дарницькому районі,38021179,юридична особа
НАРОДНИЙ ФРОНТ,Київ,62,2019-12-09,3912,Сплата ЄСВ,Податкові платежі,358069,Центральний офіс,39181335,Україна,Єдиний соціальний внесок,26004100001777,state,2700.00,ГУ ДФС у м. Києві,43141267,юридична особа
НАРОДНИЙ ФРОНТ,"Київ, вулиця Паньківська, 11",51,2019-12-09,3909,Оплата ефірного часу на ТБ,Телереклама,358068,Центральний офіс,39181335,Україна,Оплата за послуги з розміщення інформаційних матеріалів на телебаченні,26004100001777,state,4011840.00,"ТОВ ""СТАРЛАЙТ БРЕНД КОНТЕНТ""",35380148,юридична особа
НАРОДНИЙ ФРОНТ,"Київ, вулиця Госпітальна, 12Г",70,2019-12-09,553234311,Банківські послуги,Інші витрати,358067,Центральний офіс,39181335,Україна,Комісія банку за виплату заробітної плати,26004100001777,state,48.64,"АТ ""Ощадбанк""",00032129,юридична особа
НАРОДНИЙ ФРОНТ,,84,2019-12-09,6122,"Заробітна плата, премії","Заробітна плата, лікарняні, вагітності, відрядження, компенсації",357654,Центральний офіс,39181335,Україна,Заробітна плата за грудень 2019р.,26004100001777,state,9728.12,Буслов Віктор Юрійович,,фізична особа
НАРОДНИЙ ФРОНТ,"Харківська область, Харків, вулиця Сумська, 88",79,2019-12-06,3907,"Оренда будинків і приміщень та експлуатаційні витрати (прибирання, страхування орендованих будинків, охорона, сигналізація, ремонт, вивіз сміття, тощо)",Оренда нерухомості,358066,Центральний офіс,39181335,Україна,Відшкодування вартості комунальних послуг за жовтень 2019р.,26004100001777,state,17514.37,"ПП ""Міністрі Плюс""",33205780,юридична особа
НАРОДНИЙ ФРОНТ,"Київ, вулиця Волоська, 55-57",79,2019-12-06,3906,"Оренда будинків і приміщень та експлуатаційні витрати (прибирання, страхування орендованих будинків, охорона, сигналізація, ремонт, вивіз сміття, тощо)",Оренда нерухомості,358065,Центральний офіс,39181335,Україна,Відшкодування вартості комунальних послуг за жовтень 2019р.,26004100001777,state,3214.33,"ТОВ ""ПАКТА-ЛЕГЕТІМА""",37037083,юридична особа
НАРОДНИЙ ФРОНТ,"Київ, вулиця Героїв Космосу, 4",51,2019-12-06,3904,Оплата ефірного часу на ТБ,Телереклама,358064,Центральний офіс,39181335,Україна,Оплата за послуги з розміщення інформаційних матеріалів на телебаченні,26004100001777,state,3974400.00,"ТОВ ""Медіа парнерство баінг""",38990495,юридична особа
НАРОДНИЙ ФРОНТ,,79,2019-12-06,3908,"Оренда будинків і приміщень та експлуатаційні витрати (прибирання, страхування орендованих будинків, охорона, сигналізація, ремонт, вивіз сміття, тощо)",Оренда нерухомості,357653,Центральний офіс,39181335,Україна,Відшкодування вартості комунальних послуг за листопад 2019р.,26004100001777,state,2373.49,Лупой Станіслав Петрович,,фізична особа
НАРОДНИЙ ФРОНТ,,79,2019-12-06,3905,"Оренда будинків і приміщень та експлуатаційні витрати (прибирання, страхування орендованих будинків, охорона, сигналізація, ремонт, вивіз сміття, тощо)",Оренда нерухомості,357652,Центральний офіс,39181335,Україна,Відшкодування вартості комунальних послуг за жовтень 2019р.,26004100001777,state,2732.00,Гулямова Олена Олександрівна,,фізична особа
НАРОДНИЙ ФРОНТ,"Київ, вулиця Лейпцизька, 1А",79,2019-12-05,3903,"Оренда будинків і приміщень та експлуатаційні витрати (прибирання, страхування орендованих будинків, охорона, сигналізація, ремонт, вивіз сміття, тощо)",Оренда нерухомості,358063,Центральний офіс,39181335,Україна,Оплата за воду та водовідведення за серпень - листопад 2019р.,26004100001777,state,1100.00,"ПрАТ ""Акціонерна компанія ""Київводоканал""",03327629,юридична особа
НАРОДНИЙ ФРОНТ,"Київ, вулиця Глибочицька, 33/37",72,2019-12-05,3902,"Придбання, ремонт офісної техніки та програмного забезпечення (Бухгалтерські програми, Ліга.закон, домени)",Придбання офісної техніки та програмного забезпечення,358062,Центральний офіс,39181335,Україна,Оплата за заправку та відновлення картриджів,26004100001777,state,2160.00,"ТОВ ""Гелексі Плюс""",38688758,юридична особа
НАРОДНИЙ ФРОНТ,"Київ, вулиця Тропініна, 1",76,2019-12-05,3901,Послуги зв’язку,Послуги зв’язку,358061,Центральний офіс,39181335,Україна,Оплата за послуги телефонії за листопад 2019р.,26004100001777,state,1393.45,"ТОВ ""Космонова""",32074513,юридична особа
НАРОДНИЙ ФРОНТ,"Київ, вулиця Тропініна, 1",76,2019-12-05,3900,Послуги зв’язку,Послуги зв’язку,358060,Центральний офіс,39181335,Україна,Абонплата за Інтернет за грудень 2019р.,26004100001777,state,4000.00,"ТОВ ""Космонова""",32074513,юридична особа
НАРОДНИЙ ФРОНТ,"Київ, вулиця Велика Житомирська, 20",72,2019-12-05,3899,"Придбання, ремонт офісної техніки та програмного забезпечення (Бухгалтерські програми, Ліга.закон, домени)",Придбання офісної техніки та програмного забезпечення,358059,Центральний офіс,39181335,Україна,Плата за право використання сервісу моніторингу YouScan у грудні 2019р.,26004100001777,state,14500.00,"ТОВ ""Юскан Україна""",37025387,юридична особа
НАРОДНИЙ ФРОНТ,"Львівська область, Львів, вулиця Степана Бандери, 43",79,2019-12-05,3898,"Оренда будинків і приміщень та експлуатаційні витрати (прибирання, страхування орендованих будинків, охорона, сигналізація, ремонт, вивіз сміття, тощо)",Оренда нерухомості,358058,Центральний офіс,39181335,Україна,Орендна плата за грудень 2019р.,26004100001777,state,39000.00,"ТОВ ""Світ бізнесу""",25547981,юридична особа
НАРОДНИЙ ФРОНТ,Київ,61,2019-12-05,3897,Військовий збір,Податкові платежі,358057,Центральний офіс,39181335,Україна,Військовий збір,26004100001777,state,9058.88,УДКСУ в Дарницькому районі,38021179,юридична особа
НАРОДНИЙ ФРОНТ,Київ,63,2019-12-05,3896,Податок на доходи,Податкові платежі,358056,Центральний офіс,39181335,Україна,Податок на доходи фізичних осіб,26004100001777,state,108706.50,УДКСУ в Дарницькому районі,38021179,юридична особа
НАРОДНИЙ ФРОНТ,Київ,61,2019-12-05,3894,Військовий збір,Податкові платежі,358055,Центральний офіс,39181335,Україна,Військовий збір,26004100001777,state,4680.56,УДКСУ в Дарницькому районі,38021179,юридична особа
НАРОДНИЙ ФРОНТ,Київ,63,2019-12-05,3893,Податок на доходи,Податкові платежі,358054,Центральний офіс,39181335,Україна,Податок на доходи фізичних осіб,26004100001777,state,56166.75,УДКСУ в Дарницькому районі,38021179,юридична особа
НАРОДНИЙ ФРОНТ,Київ,61,2019-12-05,3891,Військовий збір,Податкові платежі,358053,Центральний офіс,39181335,Україна,Військовий збір,26004100001777,state,8150.00,УДКСУ в Дарницькому районі,38021179,юридична особа
НАРОДНИЙ ФРОНТ,Київ,63,2019-12-05,3890,Податок на доходи,Податкові платежі,358052,Центральний офіс,39181335,Україна,Податок на доходи фізичних осіб,26004100001777,state,98000.00,УДКСУ в Дарницькому районі,38021179,юридична особа
НАРОДНИЙ ФРОНТ,Київ,62,2019-12-05,3889,Сплата ЄСВ,Податкові платежі,358051,Центральний офіс,39181335,Україна,Єдиний соціальний внесок,26004100001777,state,120000.00,ГУ ДФС у м. Києві,43141267,юридична особа
НАРОДНИЙ ФРОНТ,"Київ, вулиця Госпітальна, 12Г",70,2019-12-05,8516728611,Банківські послуги,Інші витрати,358050,Центральний офіс,39181335,Україна,Комісія банку за виплату заробітної плати,26004100001777,state,2132.73,"АТ ""Ощадбанк""",00032129,юридична особа
НАРОДНИЙ ФРОНТ,,84,2019-12-05,3886,"Заробітна плата, премії","Заробітна плата, лікарняні, вагітності, відрядження, компенсації",357651,Центральний офіс,39181335,Україна,Заробітна плата за 2 половину листопада 2019р.,26004100001777,state,5750.01,Добровольська Оксана Володимирівна,,фізична особа
НАРОДНИЙ ФРОНТ,,84,2019-12-05,3885,"Заробітна плата, премії","Заробітна плата, лікарняні, вагітності, відрядження, компенсації",357650,Центральний офіс,39181335,Україна,Заробітна плата за 2 половину листопада 2019р.,26004100001777,state,4791.66,Данілін Владислав Юрійович,,фізична особа
НАРОДНИЙ ФРОНТ,,79,2019-12-05,3895,"Оренда будинків і приміщень та експлуатаційні витрати (прибирання, страхування орендованих будинків, охорона, сигналізація, ремонт, вивіз сміття, тощо)",Оренда нерухомості,357649,Центральний офіс,39181335,Україна,Орендна плата за грудень 2019р.,26004100001777,state,486159.62,Писаренко Валерій Володимирович,,фізична особа
НАРОДНИЙ ФРОНТ,,79,2019-12-05,3892,"Оренда будинків і приміщень та експлуатаційні витрати (прибирання, страхування орендованих будинків, охорона, сигналізація, ремонт, вивіз сміття, тощо)",Оренда нерухомості,357648,Центральний офіс,39181335,Україна,Орендна плата за грудень 2019р,26004100001777,state,251190.19,Яценко Дарʼя Володимирівна,,фізична особа
НАРОДНИЙ ФРОНТ,,84,2019-12-05,25112,"Заробітна плата, премії","Заробітна плата, лікарняні, вагітності, відрядження, компенсації",357647,Центральний офіс,39181335,Україна,Заробітна плата за 2 половину листопада 2019р.,26004100001777,state,3833.33,Литовченко Валерій Олексійович,,фізична особа
НАРОДНИЙ ФРОНТ,,84,2019-12-05,25112,"Заробітна плата, премії","Заробітна плата, лікарняні, вагітності, відрядження, компенсації",357646,Центральний офіс,39181335,Україна,Заробітна плата за 2 половину листопада 2019р.,26004100001777,state,1150.00,Бруй Юлія Віталіївна,,фізична особа
НАРОДНИЙ ФРОНТ,,84,2019-12-05,24112,"Заробітна плата, премії","Заробітна плата, лікарняні, вагітності, відрядження, компенсації",357645,Центральний офіс,39181335,Україна,Заробітна плата за 2 половину листопада 2019р.,26004100001777,state,5750.01,Ватаманюк Людмила Іванівна,,фізична особа
НАРОДНИЙ ФРОНТ,,84,2019-12-05,24112,"Заробітна плата, премії","Заробітна плата, лікарняні, вагітності, відрядження, компенсації",357644,Центральний офіс,39181335,Україна,Заробітна плата за 2 половину листопада 2019р.,26004100001777,state,3833.33,Вишневська Світлана Петрівна,,фізична особа
НАРОДНИЙ ФРОНТ,,84,2019-12-05,23112,"Заробітна плата, премії","Заробітна плата, лікарняні, вагітності, відрядження, компенсації",357643,Центральний офіс,39181335,Україна,Заробітна плата за 2 половину листопада 2019р.,26004100001777,state,4600.01,Фурса Оксана Володимирівна,,фізична особа
НАРОДНИЙ ФРОНТ,,84,2019-12-05,23112,"Заробітна плата, премії","Заробітна плата, лікарняні, вагітності, відрядження, компенсації",357642,Центральний офіс,39181335,Україна,Заробітна плата за 2 половину листопада 2019р.,26004100001777,state,3833.33,Соловйова Вікторія Владиславівна,,фізична особа
НАРОДНИЙ ФРОНТ,,84,2019-12-05,22112,"Заробітна плата, премії","Заробітна плата, лікарняні, вагітності, відрядження, компенсації",357641,Центральний офіс,39181335,Україна,Заробітна плата за 2 половину листопада 2019р.,26004100001777,state,4600.01,Цоміна Тетяна Михайлівна,,фізична особа
НАРОДНИЙ ФРОНТ,,84,2019-12-05,22112,"Заробітна плата, премії","Заробітна плата, лікарняні, вагітності, відрядження, компенсації",357640,Центральний офіс,39181335,Україна,Заробітна плата за 2 половину листопада 2019р.,26004100001777,state,5750.01,Дроздик Анатолій Вячеславович,,фізична особа
НАРОДНИЙ ФРОНТ,,84,2019-12-05,21112,"Заробітна плата, премії","Заробітна плата, лікарняні, вагітності, відрядження, компенсації",357639,Центральний офіс,39181335,Україна,Заробітна плата за 2 половину листопада 2019р.,26004100001777,state,3833.33,Виноградова Ольга Олександрівна,,фізична особа
НАРОДНИЙ ФРОНТ,,84,2019-12-05,20112,"Заробітна плата, премії","Заробітна плата, лікарняні, вагітності, відрядження, компенсації",357638,Центральний офіс,39181335,Україна,Заробітна плата за 2 половину листопада 2019р.,26004100001777,state,3833.33,Ярошенко Євген Станіславович,,фізична особа
НАРОДНИЙ ФРОНТ,,84,2019-12-05,20112,"Заробітна плата, премії","Заробітна плата, лікарняні, вагітності, відрядження, компенсації",357637,Центральний офіс,39181335,Україна,Заробітна плата за 2 половину листопада 2019р.,26004100001777,state,5750.01,Мих Олександр Вікторович,,фізична особа
НАРОДНИЙ ФРОНТ,,84,2019-12-05,19112,"Заробітна плата, премії","Заробітна плата, лікарняні, вагітності, відрядження, компенсації",357636,Центральний офіс,39181335,Україна,Заробітна плата за 2 половину листопада 2019р.,26004100001777,state,4600.01,Михайлюк Віктор Іванович,,фізична особа
НАРОДНИЙ ФРОНТ,,84,2019-12-05,19112,"Заробітна плата, премії","Заробітна плата, лікарняні, вагітності, відрядження, компенсації",357635,Центральний офіс,39181335,Україна,Заробітна плата за 2 половину листопада 2019р.,26004100001777,state,3833.33,Кравець Вікторія Валеріївна,,фізична особа
НАРОДНИЙ ФРОНТ,,84,2019-12-05,18112,"Заробітна плата, премії","Заробітна плата, лікарняні, вагітності, відрядження, компенсації",357634,Центральний офіс,39181335,Україна,Заробітна плата за 2 половину листопада 2019р.,26004100001777,state,4600.01,Ольшанський Олег Вікторович,,фізична особа
НАРОДНИЙ ФРОНТ,,84,2019-12-05,18112,"Заробітна плата, премії","Заробітна плата, лікарняні, вагітності, відрядження, компенсації",357633,Центральний офіс,39181335,Україна,Заробітна плата за 2 половину листопада 2019р.,26004100001777,state,3066.67,Кирій Олеся Миколаївна,,фізична особа
НАРОДНИЙ ФРОНТ,,84,2019-12-05,17112,"Заробітна плата, премії","Заробітна плата, лікарняні, вагітності, відрядження, компенсації",357632,Центральний офіс,39181335,Україна,Заробітна плата за 2 половину листопада 2019р.,26004100001777,state,3833.33,Генеральчук Ніна Миколаївна,,фізична особа
НАРОДНИЙ ФРОНТ,,84,2019-12-05,17112,"Заробітна плата, премії","Заробітна плата, лікарняні, вагітності, відрядження, компенсації",357631,Центральний офіс,39181335,Україна,Заробітна плата за 2 половину листопада 2019р.,26004100001777,state,4600.01,Малухіна Оксана Юріївна,,фізична особа
НАРОДНИЙ ФРОНТ,,84,2019-12-05,15112,"Заробітна плата, премії","Заробітна плата, лікарняні, вагітності, відрядження, компенсації",357630,Центральний офіс,39181335,Україна,Заробітна плата за 2 половину листопада 2019р.,26004100001777,state,3833.33,Кожан Олександр Васильович,,фізична особа
НАРОДНИЙ ФРОНТ,,84,2019-12-05,15112,"Заробітна плата, премії","Заробітна плата, лікарняні, вагітності, відрядження, компенсації",357629,Центральний офіс,39181335,Україна,Заробітна плата за 2 половину листопада 2019р.,26004100001777,state,4600.01,Ємсенко Владислава Володимирівна,,фізична особа
НАРОДНИЙ ФРОНТ,,84,2019-12-05,14112,"Заробітна плата, премії","Заробітна плата, лікарняні, вагітності, відрядження, компенсації",357628,Центральний офіс,39181335,Україна,Заробітна плата за 2 половину листопада 2019р.,26004100001777,state,3833.33,Єрофєєва Оксана Петрівна,,фізична особа
НАРОДНИЙ ФРОНТ,,84,2019-12-05,13112,"Заробітна плата, премії","Заробітна плата, лікарняні, вагітності, відрядження, компенсації",357627,Центральний офіс,39181335,Україна,Заробітна плата за 2 половину листопада 2019р.,26004100001777,state,3833.33,Мацукевич Христина Романівна,,фізична особа
НАРОДНИЙ ФРОНТ,,84,2019-12-05,13112,"Заробітна плата, премії","Заробітна плата, лікарняні, вагітності, відрядження, компенсації",357626,Центральний офіс,39181335,Україна,Заробітна плата за 2 половину листопада 2019р.,26004100001777,state,5750.01,Беспалова Марія Петрівна,,фізична особа
НАРОДНИЙ ФРОНТ,,84,2019-12-05,12112,"Заробітна плата, премії","Заробітна плата, лікарняні, вагітності, відрядження, компенсації",357625,Центральний офіс,39181335,Україна,Заробітна плата за 2 половину листопада 2019р.,26004100001777,state,4600.01,Сарафанова Наталія Василівна,,фізична особа
НАРОДНИЙ ФРОНТ,,84,2019-12-05,12112,"Заробітна плата, премії","Заробітна плата, лікарняні, вагітності, відрядження, компенсації",357624,Центральний офіс,39181335,Україна,Заробітна плата за 2 половину листопада 2019р.,26004100001777,state,4600.01,Самойленко Анна Олександрівна,,фізична особа
НАРОДНИЙ ФРОНТ,,84,2019-12-05,11112,"Заробітна плата, премії","Заробітна плата, лікарняні, вагітності, відрядження, компенсації",357623,Центральний офіс,39181335,Україна,Заробітна плата за 2 половину листопада 2019р.,26004100001777,state,5750.01,Махновець Віктор Петрович,,фізична особа
НАРОДНИЙ ФРОНТ,,84,2019-12-05,11112,"Заробітна плата, премії","Заробітна плата, лікарняні, вагітності, відрядження, компенсації",357622,Центральний офіс,39181335,Україна,Заробітна плата за 2 половину листопада 2019р.,26004100001777,state,3127.63,Фролов Микола Володимирович,,фізична особа
НАРОДНИЙ ФРОНТ,,84,2019-12-05,2112,"Заробітна плата, премії","Заробітна плата, лікарняні, вагітності, відрядження, компенсації",357621,Центральний офіс,39181335,Україна,Заробітна плата за 2 половину листопада 2019р.,26004100001777,state,5750.01,Заєць Тетяна Петрівна,,фізична особа
НАРОДНИЙ ФРОНТ,,84,2019-12-05,10112,"Заробітна плата, премії","Заробітна плата, лікарняні, вагітності, відрядження, компенсації",357620,Центральний офіс,39181335,Україна,Заробітна плата за 2 половину листопада 2019р.,26004100001777,state,5750.01,Савчин Андрій Якимович,,фізична особа
НАРОДНИЙ ФРОНТ,,84,2019-12-05,9112,"Заробітна плата, премії","Заробітна плата, лікарняні, вагітності, відрядження, компенсації",357619,Центральний офіс,39181335,Україна,Заробітна плата за 2 половину листопада 2019р.,26004100001777,state,4600.01,Останькович Олена Миколаївна,,фізична особа
НАРОДНИЙ ФРОНТ,,84,2019-12-05,9112,"Заробітна плата, премії","Заробітна плата, лікарняні, вагітності, відрядження, компенсації",357618,Центральний офіс,39181335,Україна,Заробітна плата за 2 половину листопада 2019р.,26004100001777,state,3833.33,Зуєнко Людмила Миколаївна,,фізична особа
НАРОДНИЙ ФРОНТ,,84,2019-12-05,8112,"Заробітна плата, премії","Заробітна плата, лікарняні, вагітності, відрядження, компенсації",357617,Центральний офіс,39181335,Україна,Заробітна плата за 2 половину листопада 2019р.,26004100001777,state,4600.01,Корольчук Людмила Кирилівна,,фізична особа
НАРОДНИЙ ФРОНТ,,84,2019-12-05,8112,"Заробітна плата, премії","Заробітна плата, лікарняні, вагітності, відрядження, компенсації",357616,Центральний офіс,39181335,Україна,Заробітна плата за 2 половину листопада 2019р.,26004100001777,state,4600.01,Білецька Тетяна Вадимівна,,фізична особа
НАРОДНИЙ ФРОНТ,,84,2019-12-05,7112,"Заробітна плата, премії","Заробітна плата, лікарняні, вагітності, відрядження, компенсації",357615,Центральний офіс,39181335,Україна,Заробітна плата за 2 половину листопада 2019р.,26004100001777,state,3833.33,Шатківський Дмитро Олександрович,,фізична особа
НАРОДНИЙ ФРОНТ,,84,2019-12-05,7112,"Заробітна плата, премії","Заробітна плата, лікарняні, вагітності, відрядження, компенсації",357614,Центральний офіс,39181335,Україна,Заробітна плата за 2 половину листопада 2019р.,26004100001777,state,4600.01,Данилюк Ірина Степанівна,,фізична особа
НАРОДНИЙ ФРОНТ,,84,2019-12-05,6112,"Заробітна плата, премії","Заробітна плата, лікарняні, вагітності, відрядження, компенсації",357613,Центральний офіс,39181335,Україна,Заробітна плата за 2 половину листопада 2019р.,26004100001777,state,4600.01,Буслов Віктор Юрійович,,фізична особа
НАРОДНИЙ ФРОНТ,,84,2019-12-05,5112,"Заробітна плата, премії","Заробітна плата, лікарняні, вагітності, відрядження, компенсації",357612,Центральний офіс,39181335,Україна,Заробітна плата за 2 половину листопада 2019р.,26004100001777,state,3833.33,Карач Юлія Іванівна,,фізична особа
НАРОДНИЙ ФРОНТ,,84,2019-12-05,5112,"Заробітна плата, премії","Заробітна плата, лікарняні, вагітності, відрядження, компенсації",357611,Центральний офіс,39181335,Україна,Заробітна плата за 2 половину листопада 2019р.,26004100001777,state,4600.01,Обез Марина Іванівна,,фізична особа
НАРОДНИЙ ФРОНТ,,84,2019-12-05,1112,"Заробітна плата, премії","Заробітна плата, лікарняні, вагітності, відрядження, компенсації",357610,Центральний офіс,39181335,Україна,Заробітна плата за 2 половину листопада 2019р.,26004100001777,state,4312.49,Ляшенко Микола Миколайович,,фізична особа
НАРОДНИЙ ФРОНТ,,84,2019-12-05,1112,"Заробітна плата, премії","Заробітна плата, лікарняні, вагітності, відрядження, компенсації",357609,Центральний офіс,39181335,Україна,Заробітна плата за 2 половину листопада 2019р.,26004100001777,state,2683.33,Литвиненко Андрій Миколайович,,фізична особа
НАРОДНИЙ ФРОНТ,,84,2019-12-05,1112,"Заробітна плата, премії","Заробітна плата, лікарняні, вагітності, відрядження, компенсації",357608,Центральний офіс,39181335,Україна,Заробітна плата за 2 половину листопада 2019р.,26004100001777,state,2875.00,Лимар Юрій Володимирович,,фізична особа
НАРОДНИЙ ФРОНТ,,84,2019-12-05,1112,"Заробітна плата, премії","Заробітна плата, лікарняні, вагітності, відрядження, компенсації",357607,Центральний офіс,39181335,Україна,Заробітна плата за 2 половину листопада 2019р.,26004100001777,state,11499.99,Ледовських Олена Володимирівна,,фізична особа
НАРОДНИЙ ФРОНТ,,84,2019-12-05,1112,"Заробітна плата, премії","Заробітна плата, лікарняні, вагітності, відрядження, компенсації",357606,Центральний офіс,39181335,Україна,Заробітна плата за 2 половину листопада 2019р.,26004100001777,state,4791.66,Лебедєв Микола Васильович,,фізична особа
НАРОДНИЙ ФРОНТ,,84,2019-12-05,1112,"Заробітна плата, премії","Заробітна плата, лікарняні, вагітності, відрядження, компенсації",357605,Центральний офіс,39181335,Україна,Заробітна плата за 2 половину листопада 2019р.,26004100001777,state,7283.34,Лаппо Ольга Георгіївна,,фізична особа
НАРОДНИЙ ФРОНТ,,84,2019-12-05,1112,"Заробітна плата, премії","Заробітна плата, лікарняні, вагітності, відрядження, компенсації",357604,Центральний офіс,39181335,Україна,Заробітна плата за 2 половину листопада 2019р.,26004100001777,state,7283.34,Курас Лариса Петрівна,,фізична особа
НАРОДНИЙ ФРОНТ,,84,2019-12-05,1112,"Заробітна плата, премії","Заробітна плата, лікарняні, вагітності, відрядження, компенсації",357603,Центральний офіс,39181335,Україна,Заробітна плата за 2 половину листопада 2019р.,26004100001777,state,7283.34,Кулібаба Наталія Юріївна,,фізична особа
НАРОДНИЙ ФРОНТ,,84,2019-12-05,1112,"Заробітна плата, премії","Заробітна плата, лікарняні, вагітності, відрядження, компенсації",357602,Центральний офіс,39181335,Україна,Заробітна плата за 2 половину листопада 2019р.,26004100001777,state,9583.33,Корчик Віталій Андрійович,,фізична особа
НАРОДНИЙ ФРОНТ,,84,2019-12-05,1112,"Заробітна плата, премії","Заробітна плата, лікарняні, вагітності, відрядження, компенсації",357601,Центральний офіс,39181335,Україна,Заробітна плата за 2 половину листопада 2019р.,26004100001777,state,9583.33,Колганова Олена Валеріївна,,фізична особа
НАРОДНИЙ ФРОНТ,,84,2019-12-05,1112,"Заробітна плата, премії","Заробітна плата, лікарняні, вагітності, відрядження, компенсації",357600,Центральний офіс,39181335,Україна,Заробітна плата за 2 половину листопада 2019р.,26004100001777,state,9583.33,Койляк Галина Ігорівна,,фізична особа
НАРОДНИЙ ФРОНТ,,84,2019-12-05,1112,"Заробітна плата, премії","Заробітна плата, лікарняні, вагітності, відрядження, компенсації",357599,Центральний офіс,39181335,Україна,Заробітна плата за 2 половину листопада 2019р.,26004100001777,state,2360.97,Коба Ольга Володимирівна,,фізична особа
НАРОДНИЙ ФРОНТ,,84,2019-12-05,1112,"Заробітна плата, премії","Заробітна плата, лікарняні, вагітності, відрядження, компенсації",357598,Центральний офіс,39181335,Україна,Заробітна плата за 2 половину листопада 2019р.,26004100001777,state,4791.66,Карасьов Дмитро Геннадійович,,фізична особа
НАРОДНИЙ ФРОНТ,,84,2019-12-05,1112,"Заробітна плата, премії","Заробітна плата, лікарняні, вагітності, відрядження, компенсації",357597,Центральний офіс,39181335,Україна,Заробітна плата за 2 половину листопада 2019р.,26004100001777,state,7283.34,Данилюк Марина Миколаївна,,фізична особа
НАРОДНИЙ ФРОНТ,,84,2019-12-05,1112,"Заробітна плата, премії","Заробітна плата, лікарняні, вагітності, відрядження, компенсації",357596,Центральний офіс,39181335,Україна,Заробітна плата за 2 половину листопада 2019р.,26004100001777,state,9583.33,Гринь Костянтин Андрійович,,фізична особа
НАРОДНИЙ ФРОНТ,,84,2019-12-05,1112,"Заробітна плата, премії","Заробітна плата, лікарняні, вагітності, відрядження, компенсації",357595,Центральний офіс,39181335,Україна,Заробітна плата за 2 половину листопада 2019р.,26004100001777,state,4791.66,Валявська Ольга Дмитрівна,,фізична особа
НАРОДНИЙ ФРОНТ,,84,2019-12-05,1112,"Заробітна плата, премії","Заробітна плата, лікарняні, вагітності, відрядження, компенсації",357594,Центральний офіс,39181335,Україна,Заробітна плата за 2 половину листопада 2019р.,26004100001777,state,2360.97,Боєчко Наталія Мирославівна,,фізична особа
НАРОДНИЙ ФРОНТ,,84,2019-12-05,1112,"Заробітна плата, премії","Заробітна плата, лікарняні, вагітності, відрядження, компенсації",357593,Центральний офіс,39181335,Україна,Заробітна плата за 2 половину листопада 2019р.,26004100001777,state,7283.34,Боднарюк Тетяна Григорівна,,фізична особа
НАРОДНИЙ ФРОНТ,,84,2019-12-05,1112,"Заробітна плата, премії","Заробітна плата, лікарняні, вагітності, відрядження, компенсації",357592,Центральний офіс,39181335,Україна,Заробітна плата за 2 половину листопада 2019р.,26004100001777,state,4791.66,Білан Ірина Борисівна,,фізична особа
НАРОДНИЙ ФРОНТ,,84,2019-12-05,1112,"Заробітна плата, премії","Заробітна плата, лікарняні, вагітності, відрядження, компенсації",357591,Центральний офіс,39181335,Україна,Заробітна плата за 2 половину листопада 2019р.,26004100001777,state,9583.33,Бендюженко Федір Володимирович,,фізична особа
НАРОДНИЙ ФРОНТ,,84,2019-12-05,1112,"Заробітна плата, премії","Заробітна плата, лікарняні, вагітності, відрядження, компенсації",357590,Центральний офіс,39181335,Україна,Заробітна плата за 2 половину листопада 2019р.,26004100001777,state,7283.34,Баранов Віктор Петрович,,фізична особа
НАРОДНИЙ ФРОНТ,,84,2019-12-05,1112,"Заробітна плата, премії","Заробітна плата, лікарняні, вагітності, відрядження, компенсації",357589,Центральний офіс,39181335,Україна,Заробітна плата за 2 половину листопада 2019р.,26004100001777,state,3833.33,Якобчук Андрій Миколайович,,фізична особа
НАРОДНИЙ ФРОНТ,,84,2019-12-05,1112,"Заробітна плата, премії","Заробітна плата, лікарняні, вагітності, відрядження, компенсації",357588,Центральний офіс,39181335,Україна,Заробітна плата за 2 половину листопада 2019р.,26004100001777,state,9583.33,Якименко Світлана Олександрівна,,фізична особа
НАРОДНИЙ ФРОНТ,,84,2019-12-05,1112,"Заробітна плата, премії","Заробітна плата, лікарняні, вагітності, відрядження, компенсації",357587,Центральний офіс,39181335,Україна,Заробітна плата за 2 половину листопада 2019р.,26004100001777,state,7283.34,Явецький Андрій Олександрович,,фізична особа
НАРОДНИЙ ФРОНТ,,84,2019-12-05,1112,"Заробітна плата, премії","Заробітна плата, лікарняні, вагітності, відрядження, компенсації",357586,Центральний офіс,39181335,Україна,Заробітна плата за 2 половину листопада 2019р.,26004100001777,state,9583.33,Шевченко Наталія Анатоліївна,,фізична особа
НАРОДНИЙ ФРОНТ,,84,2019-12-05,1112,"Заробітна плата, премії","Заробітна плата, лікарняні, вагітності, відрядження, компенсації",357585,Центральний офіс,39181335,Україна,Заробітна плата за 2 половину листопада 2019р.,26004100001777,state,9583.33,Шевченко Євгеній Віталійович,,фізична особа
НАРОДНИЙ ФРОНТ,,84,2019-12-05,1112,"Заробітна плата, премії","Заробітна плата, лікарняні, вагітності, відрядження, компенсації",357584,Центральний офіс,39181335,Україна,Заробітна плата за 2 половину листопада 2019р.,26004100001777,state,4791.66,Чигрин Дмитро Володимирович,,фізична особа
НАРОДНИЙ ФРОНТ,,84,2019-12-05,1112,"Заробітна плата, премії","Заробітна плата, лікарняні, вагітності, відрядження, компенсації",357583,Центральний офіс,39181335,Україна,Заробітна плата за 2 половину листопада 2019р.,26004100001777,state,8625.01,Сулейманов Ернест Фахритович,,фізична особа
НАРОДНИЙ ФРОНТ,,84,2019-12-05,1112,"Заробітна плата, премії","Заробітна плата, лікарняні, вагітності, відрядження, компенсації",357582,Центральний офіс,39181335,Україна,Заробітна плата за 2 половину листопада 2019р.,26004100001777,state,9583.33,Сочка Олександр Олександрович,,фізична особа
НАРОДНИЙ ФРОНТ,,84,2019-12-05,1112,"Заробітна плата, премії","Заробітна плата, лікарняні, вагітності, відрядження, компенсації",357581,Центральний офіс,39181335,Україна,Заробітна плата за 2 половину листопада 2019р.,26004100001777,state,7283.34,Соловйов Олексій Володимирович,,фізична особа
НАРОДНИЙ ФРОНТ,,84,2019-12-05,1112,"Заробітна плата, премії","Заробітна плата, лікарняні, вагітності, відрядження, компенсації",357580,Центральний офіс,39181335,Україна,Заробітна плата за 2 половину листопада 2019р.,26004100001777,state,4791.66,Сичова Катерина Сергіївна,,фізична особа
НАРОДНИЙ ФРОНТ,,84,2019-12-05,1112,"Заробітна плата, премії","Заробітна плата, лікарняні, вагітності, відрядження, компенсації",357579,Центральний офіс,39181335,Україна,Заробітна плата за 2 половину листопада 2019р.,26004100001777,state,4791.66,Рижков Дмитро Ігорович,,фізична особа
НАРОДНИЙ ФРОНТ,,84,2019-12-05,1112,"Заробітна плата, премії","Заробітна плата, лікарняні, вагітності, відрядження, компенсації",357578,Центральний офіс,39181335,Україна,Заробітна плата за 2 половину листопада 2019р.,26004100001777,state,7283.34,Пономаренко Сергій Володимирович,,фізична особа
НАРОДНИЙ ФРОНТ,,84,2019-12-05,1112,"Заробітна плата, премії","Заробітна плата, лікарняні, вагітності, відрядження, компенсації",357577,Центральний офіс,39181335,Україна,Заробітна плата за 2 половину листопада 2019р.,26004100001777,state,9583.33,Пономаренко Ганна Василівна,,фізична особа
НАРОДНИЙ ФРОНТ,,84,2019-12-05,1112,"Заробітна плата, премії","Заробітна плата, лікарняні, вагітності, відрядження, компенсації",357576,Центральний офіс,39181335,Україна,Заробітна плата за 2 половину листопада 2019р.,26004100001777,state,3833.33,Полюшко Володимир Миколайович,,фізична особа
НАРОДНИЙ ФРОНТ,,84,2019-12-05,1112,"Заробітна плата, премії","Заробітна плата, лікарняні, вагітності, відрядження, компенсації",357575,Центральний офіс,39181335,Україна,Заробітна плата за 2 половину листопада 2019р.,26004100001777,state,4791.66,Побочіх Михайло Олександрович,,фізична особа
НАРОДНИЙ ФРОНТ,,84,2019-12-05,1112,"Заробітна плата, премії","Заробітна плата, лікарняні, вагітності, відрядження, компенсації",357574,Центральний офіс,39181335,Україна,Заробітна плата за 2 половину листопада 2019р.,26004100001777,state,2683.33,Петренко Любов Володимирівна,,фізична особа
НАРОДНИЙ ФРОНТ,,84,2019-12-05,1112,"Заробітна плата, премії","Заробітна плата, лікарняні, вагітності, відрядження, компенсації",357573,Центральний офіс,39181335,Україна,Заробітна плата за 2 половину листопада 2019р.,26004100001777,state,2683.33,Панькова Лідія Василівна,,фізична особа
НАРОДНИЙ ФРОНТ,,84,2019-12-05,1112,"Заробітна плата, премії","Заробітна плата, лікарняні, вагітності, відрядження, компенсації",357572,Центральний офіс,39181335,Україна,Заробітна плата за 2 половину листопада 2019р.,26004100001777,state,7283.34,Особський Вадим Володимирович,,фізична особа
НАРОДНИЙ ФРОНТ,,84,2019-12-05,1112,"Заробітна плата, премії","Заробітна плата, лікарняні, вагітності, відрядження, компенсації",357571,Центральний офіс,39181335,Україна,Заробітна плата за 2 половину листопада 2019р.,26004100001777,state,7283.34,Мольдерф Валентина Григорівна,,фізична особа
НАРОДНИЙ ФРОНТ,,84,2019-12-05,1112,"Заробітна плата, премії","Заробітна плата, лікарняні, вагітності, відрядження, компенсації",357570,Центральний офіс,39181335,Україна,Заробітна плата за 2 половину листопада 2019р.,26004100001777,state,2683.33,Махорін Вʼячеслав Сергійович,,фізична особа
НАРОДНИЙ ФРОНТ,"Київ, вулиця Госпітальна, 12Г",70,2019-12-02,6149936901,Банківські послуги,Інші витрати,358049,Центральний офіс,39181335,Україна,Комiсія за розрахункове обслуговування рахункiв за листопад 2019 р,26004100001777,state,235.00,"АТ ""Ощадбанк""",00032129,юридична особа
НАРОДНИЙ ФРОНТ,"Київ, вулиця Госпітальна, 12Г",70,2019-12-02,6145831701,Банківські послуги,Інші витрати,358048,Центральний офіс,39181335,Україна,Списання щомісячної плати за обслуговування поточного рахунку за листопад 2019р,26004100001777,state,240.00,"АТ ""Ощадбанк""",00032129,юридична особа
НАРОДНИЙ ФРОНТ,"Київ, вулиця Госпітальна, 12Г",70,2019-12-02,6149938401,Банківські послуги,Інші витрати,358047,Центральний офіс,39181335,Україна,Списання щомісячної плати за виконання операцій за допомогою систем дистанційного обслуговування,26004100001777,state,70.00,"АТ ""Ощадбанк""",00032129,юридична особа
НАРОДНИЙ ФРОНТ,"Київ, вулиця Золотоустівська, 2/4, 11",55,2019-11-27,3884,Виготовлення аудіозаписів,Реклама (без класифікації),358046,Центральний офіс,39181335,Україна,Оплата за створення аудіовізуального твору,26004100001777,state,75000.00,"ТОВ ""ТТБ Студіо""",37199983,юридична особа
НАРОДНИЙ ФРОНТ,Київ,61,2019-11-27,3883,Військовий збір,Податкові платежі,358045,Центральний офіс,39181335,Україна,Військовий збір,26004100001777,state,133.13,УДКСУ в Дарницькому районі,38021179,юридична особа
НАРОДНИЙ ФРОНТ,Київ,63,2019-11-27,3882,Податок на доходи,Податкові платежі,358044,Центральний офіс,39181335,Україна,Податок на доходи фізичних осіб,26004100001777,state,1597.60,УДКСУ в Дарницькому районі,38021179,юридична особа
НАРОДНИЙ ФРОНТ,Київ,61,2019-11-27,3880,Військовий збір,Податкові платежі,358043,Центральний офіс,39181335,Україна,Військовий збір,26004100001777,state,120.00,УДКСУ в Дарницькому районі,38021179,юридична особа
НАРОДНИЙ ФРОНТ,Київ,63,2019-11-27,3879,Податок на доходи,Податкові платежі,358042,Центральний офіс,39181335,Україна,Податок на доходи фізичних осіб,26004100001777,state,1300.00,УДКСУ в Дарницькому районі,38021179,юридична особа
НАРОДНИЙ ФРОНТ,"Київ, Новопечерський провулок, 3, 9",72,2019-11-27,3878,"Придбання, ремонт офісної техніки та програмного забезпечення (Бухгалтерські програми, Ліга.закон, домени)",Придбання офісної техніки та програмного забезпечення,358041,Центральний офіс,39181335,Україна,"Оплата за послуги з керування, обслуговування, користування компʼютерним устаткуванням",26004100001777,state,1320.00,"ТОВ ""Перша Українська лізингова компан",37241308,юридична особа
НАРОДНИЙ ФРОНТ,"Київ, вулиця Волоська, 55-57",79,2019-11-27,3871,"Оренда будинків і приміщень та експлуатаційні витрати (прибирання, страхування орендованих будинків, охорона, сигналізація, ремонт, вивіз сміття, тощо)",Оренда нерухомості,358040,Центральний офіс,39181335,Україна,Відшкодування вартості комунальних послуг за вересень 2019р.,26004100001777,state,1677.68,"ТОВ ""ПАКТА-ЛЕГЕТІМА""",37037083,юридична особа
НАРОДНИЙ ФРОНТ,"Київ, Бехтеревський провулок, 14",79,2019-11-27,3868,"Оренда будинків і приміщень та експлуатаційні витрати (прибирання, страхування орендованих будинків, охорона, сигналізація, ремонт, вивіз сміття, тощо)",Оренда нерухомості,358039,Центральний офіс,39181335,Україна,Відшкодування витрат за передану електроенергію за жовтень 2019р.,26004100001777,state,11910.90,"ТОВ ""Житло-Сервіс""",30167045,юридична особа
НАРОДНИЙ ФРОНТ,"Київ, Бехтеревський провулок, 14",79,2019-11-27,3867,"Оренда будинків і приміщень та експлуатаційні витрати (прибирання, страхування орендованих будинків, охорона, сигналізація, ремонт, вивіз сміття, тощо)",Оренда нерухомості,358038,Центральний офіс,39181335,Україна,Оплата за обсуговування та утримання будинку за жовтень 2019р.,26004100001777,state,4572.37,"ТОВ ""Житло-Сервіс""",30167045,юридична особа
НАРОДНИЙ ФРОНТ,"Київ, Контрактова площа, 10А",79,2019-11-27,3866,"Оренда будинків і приміщень та експлуатаційні витрати (прибирання, страхування орендованих будинків, охорона, сигналізація, ремонт, вивіз сміття, тощо)",Оренда нерухомості,358037,Центральний офіс,39181335,Україна,Орендна плата за листопад 2019р.,26004100001777,state,4753.70,"ПАТ ""Діамантбанк""",23362711,юридична особа
НАРОДНИЙ ФРОНТ,"Київ, Контрактова площа, 10А",79,2019-11-27,3865,"Оренда будинків і приміщень та експлуатаційні витрати (прибирання, страхування орендованих будинків, охорона, сигналізація, ремонт, вивіз сміття, тощо)",Оренда нерухомості,358036,Центральний офіс,39181335,Україна,Відшкодування вартості комунальних послуг за жовтень 2019р.,26004100001777,state,332.34,"ПАТ ""Діамантбанк""",23362711,юридична особа
НАРОДНИЙ ФРОНТ,,79,2019-11-27,3881,"Оренда будинків і приміщень та експлуатаційні витрати (прибирання, страхування орендованих будинків, охорона, сигналізація, ремонт, вивіз сміття, тощо)",Оренда нерухомості,357569,Центральний офіс,39181335,Україна,Відшкодування вартості комунальних послуг за жовтень 2019р.,26004100001777,state,7144.81,Яценко Дарʼя Володимирівна,,фізична особа
НАРОДНИЙ ФРОНТ,,79,2019-11-27,3877,"Оренда будинків і приміщень та експлуатаційні витрати (прибирання, страхування орендованих будинків, охорона, сигналізація, ремонт, вивіз сміття, тощо)",Оренда нерухомості,357568,Центральний офіс,39181335,Україна,Оплата за послуги зі зберігання майна за листопад 2019р.,26004100001777,state,41036.80,Устименко Олена Олександрівна,,фізична особа
НАРОДНИЙ ФРОНТ,,79,2019-11-27,3876,"Оренда будинків і приміщень та експлуатаційні витрати (прибирання, страхування орендованих будинків, охорона, сигналізація, ремонт, вивіз сміття, тощо)",Оренда нерухомості,357567,Центральний офіс,39181335,Україна,Оплата за послуги зі зберігання майна за жовтень 2019р.,26004100001777,state,37036.80,Устименко Олена Олександрівна,,фізична особа
НАРОДНИЙ ФРОНТ,,79,2019-11-27,3875,"Оренда будинків і приміщень та експлуатаційні витрати (прибирання, страхування орендованих будинків, охорона, сигналізація, ремонт, вивіз сміття, тощо)",Оренда нерухомості,357566,Центральний офіс,39181335,Україна,Відшкодування вартості комунальних послуг за жовтень 2019р.,26004100001777,state,2478.27,Нежурбіда Галина Григорівна,,фізична особа
НАРОДНИЙ ФРОНТ,,79,2019-11-27,3874,"Оренда будинків і приміщень та експлуатаційні витрати (прибирання, страхування орендованих будинків, охорона, сигналізація, ремонт, вивіз сміття, тощо)",Оренда нерухомості,357565,Центральний офіс,39181335,Україна,Відшкодування вартості експлуатаційних витрат за жовтень 2019р.,26004100001777,state,1119.45,Шкварилюк Марта Володимирівна,,фізична особа
НАРОДНИЙ ФРОНТ,,79,2019-11-27,3873,"Оренда будинків і приміщень та експлуатаційні витрати (прибирання, страхування орендованих будинків, охорона, сигналізація, ремонт, вивіз сміття, тощо)",Оренда нерухомості,357564,Центральний офіс,39181335,Україна,Відшкодування вартості комунальних послуг за жовтень 2019р.,26004100001777,state,333.43,Шкварилюк Марта Володимирівна,,фізична особа
НАРОДНИЙ ФРОНТ,,79,2019-11-27,3872,"Оренда будинків і приміщень та експлуатаційні витрати (прибирання, страхування орендованих будинків, охорона, сигналізація, ремонт, вивіз сміття, тощо)",Оренда нерухомості,357563,Центральний офіс,39181335,Україна,Відшкодування вартості комунальних послуг за жовтень 2019р.,26004100001777,state,1199.90,Мануйлова Олена Степанівна,,фізична особа
НАРОДНИЙ ФРОНТ,,79,2019-11-27,3870,"Оренда будинків і приміщень та експлуатаційні витрати (прибирання, страхування орендованих будинків, охорона, сигналізація, ремонт, вивіз сміття, тощо)",Оренда нерухомості,357562,Центральний офіс,39181335,Україна,Відшкодування вартості комунальних послуг за жовтень 2019р.,26004100001777,state,324.60,Лупой Станіслав Петрович,,фізична особа
НАРОДНИЙ ФРОНТ,,79,2019-11-27,3869,"Оренда будинків і приміщень та експлуатаційні витрати (прибирання, страхування орендованих будинків, охорона, сигналізація, ремонт, вивіз сміття, тощо)",Оренда нерухомості,357561,Центральний офіс,39181335,Україна,Відшкодування вартості комунальних послуг за вересень 2019р.,26004100001777,state,233.80,Лупой Станіслав Петрович,,фізична особа
НАРОДНИЙ ФРОНТ,,79,2019-11-27,3864,"Оренда будинків і приміщень та експлуатаційні витрати (прибирання, страхування орендованих будинків, охорона, сигналізація, ремонт, вивіз сміття, тощо)",Оренда нерухомості,357560,Центральний офіс,39181335,Україна,Відшкодування вартості комунальних послуг за жовтень 2019р.,26004100001777,state,3818.78,Аббакумова Галина Олександрівна,,фізична особа
НАРОДНИЙ ФРОНТ,,79,2019-11-27,3863,"Оренда будинків і приміщень та експлуатаційні витрати (прибирання, страхування орендованих будинків, охорона, сигналізація, ремонт, вивіз сміття, тощо)",Оренда нерухомості,357559,Центральний офіс,39181335,Україна,Відшкодування вартості комунальних послуг за вересень 2019р.,26004100001777,state,562.16,Аббакумова Галина Олександрівна,,фізична особа
НАРОДНИЙ ФРОНТ,Київ,61,2019-11-25,3862,Військовий збір,Податкові платежі,358035,Центральний офіс,39181335,Україна,Військовий збір,26004100001777,state,1000.00,УДКСУ в Дарницькому районі,38021179,юридична особа
НАРОДНИЙ ФРОНТ,Київ,63,2019-11-25,3861,Податок на доходи,Податкові платежі,358034,Центральний офіс,39181335,Україна,Податок на доходи фізичних осіб,26004100001777,state,12200.00,УДКСУ в Дарницькому районі,38021179,юридична особа
НАРОДНИЙ ФРОНТ,"Черкаська область, Черкаси, вулиця Смілянська, 118",79,2019-11-25,3857,"Оренда будинків і приміщень та експлуатаційні витрати (прибирання, страхування орендованих будинків, охорона, сигналізація, ремонт, вивіз сміття, тощо)",Оренда нерухомості,358033,Центральний офіс,39181335,Україна,Орендна плата за листопад 2019р.,26004100001777,state,22990.00,"ТОВ ""Черкаський проект""",36995025,юридична особа
НАРОДНИЙ ФРОНТ,"Херсонська область, Херсон, вулиця Миколи Куліша, 13",79,2019-11-25,3855,"Оренда будинків і приміщень та експлуатаційні витрати (прибирання, страхування орендованих будинків, охорона, сигналізація, ремонт, вивіз сміття, тощо)",Оренда нерухомості,358032,Центральний офіс,39181335,Україна,Орендна плата за листопад 2019р.,26004100001777,state,9900.00,"ТОВ ""СТО""БУКОВИНА.ЛТД""",36129911,юридична особа
НАРОДНИЙ ФРОНТ,"Харківська область, Харків, вулиця Сумська, 88",79,2019-11-25,3854,"Оренда будинків і приміщень та експлуатаційні витрати (прибирання, страхування орендованих будинків, охорона, сигналізація, ремонт, вивіз сміття, тощо)",Оренда нерухомості,358031,Центральний офіс,39181335,Україна,Орендна плата за листопад 2019р.,26004100001777,state,18000.00,"ПП ""Міністрі Плюс""",33205780,юридична особа
НАРОДНИЙ ФРОНТ,"Рівненська область, Рівне, вулиця Словацького, 4-6",79,2019-11-25,3852,"Оренда будинків і приміщень та експлуатаційні витрати (прибирання, страхування орендованих будинків, охорона, сигналізація, ремонт, вивіз сміття, тощо)",Оренда нерухомості,358030,Центральний офіс,39181335,Україна,Орендна плата за листопад 2019р.,26004100001777,state,9964.00,"ТОВ ""СЛОВАЦЬКЕ""",39112261,юридична особа
НАРОДНИЙ ФРОНТ,"Київ, вулиця Волоська, 55-57",79,2019-11-25,3850,"Оренда будинків і приміщень та експлуатаційні витрати (прибирання, страхування орендованих будинків, охорона, сигналізація, ремонт, вивіз сміття, тощо)",Оренда нерухомості,358029,Центральний офіс,39181335,Україна,Орендна плата за листопад 2019р.,26004100001777,state,28500.00,"ТОВ ""ПАКТА-ЛЕГЕТІМА""",37037083,юридична особа
НАРОДНИЙ ФРОНТ,"Закарпатська область, Ужгород, вулиця Корзо, 9, 5",79,2019-11-25,3849,"Оренда будинків і приміщень та експлуатаційні витрати (прибирання, страхування орендованих будинків, охорона, сигналізація, ремонт, вивіз сміття, тощо)",Оренда нерухомості,358028,Центральний офіс,39181335,Україна,Орендна плата за листопад 2019р.,26004100001777,state,42000.00,"ТОВ ""Автосервіс-Буд""",34489576,юридична особа
НАРОДНИЙ ФРОНТ,"Житомирська область, Житомир, вулиця Велика Бердичівська, 19",79,2019-11-25,3844,"Оренда будинків і приміщень та експлуатаційні витрати (прибирання, страхування орендованих будинків, охорона, сигналізація, ремонт, вивіз сміття, тощо)",Оренда нерухомості,358027,Центральний офіс,39181335,Україна,Відшкодування вартості комунальних послуг за жовтень 2019р.,26004100001777,state,1854.25,"ТОВ ""Ростмедіа.ТВ""",37671921,юридична особа
НАРОДНИЙ ФРОНТ,"м. Чернігів, вул. Текстильників, буд. 11Б, кв. 12",79,2019-11-25,3860,"Оренда будинків і приміщень та експлуатаційні витрати (прибирання, страхування орендованих будинків, охорона, сигналізація, ремонт, вивіз сміття, тощо)",Оренда нерухомості,357558,Центральний офіс,39181335,Україна,Орендна плата за листопад 2019р.,26004100001777,state,10000.00,Старченко Сергій Володимирович,3007912112,фізична особа
НАРОДНИЙ ФРОНТ,,79,2019-11-25,3859,"Оренда будинків і приміщень та експлуатаційні витрати (прибирання, страхування орендованих будинків, охорона, сигналізація, ремонт, вивіз сміття, тощо)",Оренда нерухомості,357557,Центральний офіс,39181335,Україна,Орендна плата за листопад 2019р.,26004100001777,state,11155.00,Лупой Станіслав Петрович,,фізична особа
НАРОДНИЙ ФРОНТ,,79,2019-11-25,3858,"Оренда будинків і приміщень та експлуатаційні витрати (прибирання, страхування орендованих будинків, охорона, сигналізація, ремонт, вивіз сміття, тощо)",Оренда нерухомості,357556,Центральний офіс,39181335,Україна,Орендна плата за листопад 2019р.,26004100001777,state,13143.00,Нежурбіда Галина Григорівна,,фізична особа
НАРОДНИЙ ФРОНТ,,79,2019-11-25,3856,"Оренда будинків і приміщень та експлуатаційні витрати (прибирання, страхування орендованих будинків, охорона, сигналізація, ремонт, вивіз сміття, тощо)",Оренда нерухомості,357555,Центральний офіс,39181335,Україна,Орендна плата за листопад 2019р.,26004100001777,state,8009.75,Кравець Юрій Михайлович,,фізична особа
НАРОДНИЙ ФРОНТ,,79,2019-11-25,3853,"Оренда будинків і приміщень та експлуатаційні витрати (прибирання, страхування орендованих будинків, охорона, сигналізація, ремонт, вивіз сміття, тощо)",Оренда нерухомості,357554,Центральний офіс,39181335,Україна,Орендна плата за листопад 2019р.,26004100001777,state,23800.00,Цісельський Андрій Степанович,,фізична особа
НАРОДНИЙ ФРОНТ,"м. Миколаїв, вул. Веселинівська, буд. 6",79,2019-11-25,3851,"Оренда будинків і приміщень та експлуатаційні витрати (прибирання, страхування орендованих будинків, охорона, сигналізація, ремонт, вивіз сміття, тощо)",Оренда нерухомості,357553,Центральний офіс,39181335,Україна,Орендна плата за листопад 2019р.,26004100001777,state,14500.00,Мурлян Євген Анатолійович,3025319998,фізична особа
НАРОДНИЙ ФРОНТ,,79,2019-11-25,3848,"Оренда будинків і приміщень та експлуатаційні витрати (прибирання, страхування орендованих будинків, охорона, сигналізація, ремонт, вивіз сміття, тощо)",Оренда нерухомості,357552,Центральний офіс,39181335,Україна,Орендна плата за листопад 2019р.,26004100001777,state,23345.00,Куркуріна Світлана Вікторівна,,фізична особа
НАРОДНИЙ ФРОНТ,,79,2019-11-25,3847,"Оренда будинків і приміщень та експлуатаційні витрати (прибирання, страхування орендованих будинків, охорона, сигналізація, ремонт, вивіз сміття, тощо)",Оренда нерухомості,357551,Центральний офіс,39181335,Україна,Орендна плата за листопад 2019р.,26004100001777,state,64998.48,Гулямова Олена Олександрівна,,фізична особа
НАРОДНИЙ ФРОНТ,,79,2019-11-25,3846,"Оренда будинків і приміщень та експлуатаційні витрати (прибирання, страхування орендованих будинків, охорона, сигналізація, ремонт, вивіз сміття, тощо)",Оренда нерухомості,357550,Центральний офіс,39181335,Україна,Орендна плата за листопад 2019р.,26004100001777,state,16100.00,Корж Лариса Тимофіївна,,фізична особа
НАРОДНИЙ ФРОНТ,,79,2019-11-25,3845,"Оренда будинків і приміщень та експлуатаційні витрати (прибирання, страхування орендованих будинків, охорона, сигналізація, ремонт, вивіз сміття, тощо)",Оренда нерухомості,357549,Центральний офіс,39181335,Україна,Орендна плата за листопад 2019р.,26004100001777,state,22942.50,Аббакумова Галина Олександрівна,,фізична особа
НАРОДНИЙ ФРОНТ,"Сумська область, Суми, вулиця Данила Галицького, 27",79,2019-11-22,3843,"Оренда будинків і приміщень та експлуатаційні витрати (прибирання, страхування орендованих будинків, охорона, сигналізація, ремонт, вивіз сміття, тощо)",Оренда нерухомості,358026,Центральний офіс,39181335,Україна,Орендна плата за листопад 2019р.,26004100001777,state,22500.00,"ТОВ ""Видавничо-торговий дім ""Університетська книга""",31209206,юридична особа
НАРОДНИЙ ФРОНТ,"Сумська область, Суми, вулиця Данила Галицького, 27",79,2019-11-22,3842,"Оренда будинків і приміщень та експлуатаційні витрати (прибирання, страхування орендованих будинків, охорона, сигналізація, ремонт, вивіз сміття, тощо)",Оренда нерухомості,358025,Центральний офіс,39181335,Україна,Орендна плата за жовтень 2019р.,26004100001777,state,22500.00,"ТОВ ""Видавничо-торговий дім ""Університетська книга""",31209206,юридична особа
НАРОДНИЙ ФРОНТ,"Житомирська область, Житомир, вулиця Велика Бердичівська, 19",79,2019-11-22,3841,"Оренда будинків і приміщень та експлуатаційні витрати (прибирання, страхування орендованих будинків, охорона, сигналізація, ремонт, вивіз сміття, тощо)",Оренда нерухомості,358024,Центральний офіс,39181335,Україна,Орендна плата за листопад 2019р.,26004100001777,state,18286.00,"ТОВ ""Ростмедіа.ТВ""",37671921,юридична особа
НАРОДНИЙ ФРОНТ,Київ,61,2019-11-22,3848,Військовий збір,Податкові платежі,357187,Центральний офіс,39181335,Україна,Військовий збір,26005300002745,current,74.15,УДКСУ в Дарницькому районі,38021179,юридична особа
НАРОДНИЙ ФРОНТ,Київ,63,2019-11-22,3847,Податок на доходи,Податкові платежі,357186,Центральний офіс,39181335,Україна,Податок на доходи фізичних осіб,26005300002745,current,889.88,УДКСУ в Дарницькому районі,38021179,юридична особа
НАРОДНИЙ ФРОНТ,,83,2019-11-22,3846,"Виплати працівникам (не зарплата): лікарняні, вагітності, відрядження, компенсації ","Заробітна плата, лікарняні, вагітності, відрядження, компенсації",357183,Центральний офіс,39181335,Україна,Допомога у звʼязку з тимчасовою непрацездатністю,26042300001777,current,43317.00,Набойчик Олена Сергіївна,,фізична особа
НАРОДНИЙ ФРОНТ,,83,2019-11-22,3845,"Виплати працівникам (не зарплата): лікарняні, вагітності, відрядження, компенсації ","Заробітна плата, лікарняні, вагітності, відрядження, компенсації",357182,Центральний офіс,39181335,Україна,Допомога у звʼязку з тимчасовою непрацездатністю,26042300001777,current,2188.88,Набойчик Олена Сергіївна,,фізична особа
НАРОДНИЙ ФРОНТ,,83,2019-11-22,3844,"Виплати працівникам (не зарплата): лікарняні, вагітності, відрядження, компенсації ","Заробітна плата, лікарняні, вагітності, відрядження, компенсації",357181,Центральний офіс,39181335,Україна,Допомога у звʼязку з тимчасовою непрацездатністю,26042300001777,current,1790.89,Набойчик Олена Сергіївна,,фізична особа
НАРОДНИЙ ФРОНТ,Київ,61,2019-11-20,3840,Військовий збір,Податкові платежі,358023,Центральний офіс,39181335,Україна,Військовий збір,26004100001777,state,8900.00,УДКСУ в Дарницькому районі,38021179,юридична особа
НАРОДНИЙ ФРОНТ,Київ,63,2019-11-20,3839,Податок на доходи,Податкові платежі,358022,Центральний офіс,39181335,Україна,Податок на доходи фізичних осіб,26004100001777,state,107000.00,УДКСУ в Дарницькому районі,38021179,юридична особа
НАРОДНИЙ ФРОНТ,Київ,62,2019-11-20,3838,Сплата ЄСВ,Податкові платежі,358021,Центральний офіс,39181335,Україна,Єдиний соціальний внесок,26004100001777,state,130000.00,ГУ ДФС у м. Києві,43141267,юридична особа
НАРОДНИЙ ФРОНТ,"Київ, вулиця Госпітальна, 12Г",70,2019-11-20,151493411,Банківські послуги,Інші витрати,358020,Центральний офіс,39181335,Україна,Комісія банку за виплату заробітної плати,26004100001777,state,2317.25,"АТ ""Ощадбанк""",00032129,юридична особа
НАРОДНИЙ ФРОНТ,,84,2019-11-20,3835,"Заробітна плата, премії","Заробітна плата, лікарняні, вагітності, відрядження, компенсації",357548,Центральний офіс,39181335,Україна,Заробітна плата за 1 половину листопада 2019р.,26004100001777,state,6324.99,Добровольська Оксана Володимирівна,,фізична особа
НАРОДНИЙ ФРОНТ,,84,2019-11-20,3834,"Заробітна плата, премії","Заробітна плата, лікарняні, вагітності, відрядження, компенсації",357547,Центральний офіс,39181335,Україна,Заробітна плата за 1 половину листопада 2019р.,26004100001777,state,5270.84,Данілін Владислав Юрійович,,фізична особа
НАРОДНИЙ ФРОНТ,,84,2019-11-20,25111,"Заробітна плата, премії","Заробітна плата, лікарняні, вагітності, відрядження, компенсації",357546,Центральний офіс,39181335,Україна,Заробітна плата за 1 половину листопада 2019р.,26004100001777,state,4216.67,Литовченко Валерій Олексійович,,фізична особа
НАРОДНИЙ ФРОНТ,,84,2019-11-20,24111,"Заробітна плата, премії","Заробітна плата, лікарняні, вагітності, відрядження, компенсації",357545,Центральний офіс,39181335,Україна,Заробітна плата за 1 половину листопада 2019р.,26004100001777,state,6324.99,Ватаманюк Людмила Іванівна,,фізична особа
НАРОДНИЙ ФРОНТ,,84,2019-11-20,24111,"Заробітна плата, премії","Заробітна плата, лікарняні, вагітності, відрядження, компенсації",357544,Центральний офіс,39181335,Україна,Заробітна плата за 1 половину листопада 2019р.,26004100001777,state,4216.67,Вишневська Світлана Петрівна,,фізична особа
НАРОДНИЙ ФРОНТ,,84,2019-11-20,23111,"Заробітна плата, премії","Заробітна плата, лікарняні, вагітності, відрядження, компенсації",357543,Центральний офіс,39181335,Україна,Заробітна плата за 1 половину листопада 2019р.,26004100001777,state,5059.99,Фурса Оксана Володимирівна,,фізична особа
НАРОДНИЙ ФРОНТ,,84,2019-11-20,23111,"Заробітна плата, премії","Заробітна плата, лікарняні, вагітності, відрядження, компенсації",357542,Центральний офіс,39181335,Україна,Заробітна плата за 1 половину листопада 2019р.,26004100001777,state,4216.67,Соловйова Вікторія Владиславівна,,фізична особа
НАРОДНИЙ ФРОНТ,,84,2019-11-20,22111,"Заробітна плата, премії","Заробітна плата, лікарняні, вагітності, відрядження, компенсації",357541,Центральний офіс,39181335,Україна,Заробітна плата за 1 половину листопада 2019р.,26004100001777,state,5059.99,Цоміна Тетяна Михайлівна,,фізична особа
НАРОДНИЙ ФРОНТ,,84,2019-11-20,22111,"Заробітна плата, премії","Заробітна плата, лікарняні, вагітності, відрядження, компенсації",357540,Центральний офіс,39181335,Україна,Заробітна плата за 1 половину листопада 2019р.,26004100001777,state,6324.99,Дроздик Анатолій Вячеславович,,фізична особа
НАРОДНИЙ ФРОНТ,,84,2019-11-20,21111,"Заробітна плата, премії","Заробітна плата, лікарняні, вагітності, відрядження, компенсації",357539,Центральний офіс,39181335,Україна,Заробітна плата за 1 половину листопада 2019р.,26004100001777,state,4216.67,Виноградова Ольга Олександрівна,,фізична особа
НАРОДНИЙ ФРОНТ,,84,2019-11-20,20111,"Заробітна плата, премії","Заробітна плата, лікарняні, вагітності, відрядження, компенсації",357538,Центральний офіс,39181335,Україна,Заробітна плата за 1 половину листопада 2019р.,26004100001777,state,4216.67,Ярошенко Євген Станіславович,,фізична особа
НАРОДНИЙ ФРОНТ,,84,2019-11-20,20111,"Заробітна плата, премії","Заробітна плата, лікарняні, вагітності, відрядження, компенсації",357537,Центральний офіс,39181335,Україна,Заробітна плата за 1 половину листопада 2019р.,26004100001777,state,6324.99,Мих Олександр Вікторович,,фізична особа
НАРОДНИЙ ФРОНТ,,84,2019-11-20,19111,"Заробітна плата, премії","Заробітна плата, лікарняні, вагітності, відрядження, компенсації",357536,Центральний офіс,39181335,Україна,Заробітна плата за 1 половину листопада 2019р.,26004100001777,state,5059.99,Михайлюк Віктор Іванович,,фізична особа
НАРОДНИЙ ФРОНТ,,84,2019-11-20,19111,"Заробітна плата, премії","Заробітна плата, лікарняні, вагітності, відрядження, компенсації",357535,Центральний офіс,39181335,Україна,Заробітна плата за 1 половину листопада 2019р.,26004100001777,state,4216.67,Кравець Вікторія Валеріївна,,фізична особа
НАРОДНИЙ ФРОНТ,,84,2019-11-20,18111,"Заробітна плата, премії","Заробітна плата, лікарняні, вагітності, відрядження, компенсації",357534,Центральний офіс,39181335,Україна,Заробітна плата за 1 половину листопада 2019р.,26004100001777,state,3373.33,Кирій Олеся Миколаївна,,фізична особа
НАРОДНИЙ ФРОНТ,,84,2019-11-20,18111,"Заробітна плата, премії","Заробітна плата, лікарняні, вагітності, відрядження, компенсації",357533,Центральний офіс,39181335,Україна,Заробітна плата за 1 половину листопада 2019р.,26004100001777,state,5059.99,Ольшанський Олег Вікторович,,фізична особа
НАРОДНИЙ ФРОНТ,,84,2019-11-20,17111,"Заробітна плата, премії","Заробітна плата, лікарняні, вагітності, відрядження, компенсації",357532,Центральний офіс,39181335,Україна,Заробітна плата за 1 половину листопада 2019р.,26004100001777,state,4216.67,Генеральчук Ніна Миколаївна,,фізична особа
НАРОДНИЙ ФРОНТ,,84,2019-11-20,17111,"Заробітна плата, премії","Заробітна плата, лікарняні, вагітності, відрядження, компенсації",357531,Центральний офіс,39181335,Україна,Заробітна плата за 1 половину листопада 2019р.,26004100001777,state,5059.99,Малухіна Оксана Юріївна,,фізична особа
НАРОДНИЙ ФРОНТ,,84,2019-11-20,15111,"Заробітна плата, премії","Заробітна плата, лікарняні, вагітності, відрядження, компенсації",357530,Центральний офіс,39181335,Україна,Заробітна плата за 1 половину листопада 2019р.,26004100001777,state,5059.99,Ємсенко Владислава Володимирівна,,фізична особа
НАРОДНИЙ ФРОНТ,,84,2019-11-20,15111,"Заробітна плата, премії","Заробітна плата, лікарняні, вагітності, відрядження, компенсації",357529,Центральний офіс,39181335,Україна,Заробітна плата за 1 половину листопада 2019р.,26004100001777,state,4216.67,Кожан Олександр Васильович,,фізична особа
НАРОДНИЙ ФРОНТ,,84,2019-11-20,14111,"Заробітна плата, премії","Заробітна плата, лікарняні, вагітності, відрядження, компенсації",357528,Центральний офіс,39181335,Україна,Заробітна плата за 1 половину листопада 2019р.,26004100001777,state,4216.67,Єрофєєва Оксана Петрівна,,фізична особа
НАРОДНИЙ ФРОНТ,,84,2019-11-20,13111,"Заробітна плата, премії","Заробітна плата, лікарняні, вагітності, відрядження, компенсації",357527,Центральний офіс,39181335,Україна,Заробітна плата за 1 половину листопада 2019р.,26004100001777,state,6324.99,Беспалова Марія Петрівна,,фізична особа
НАРОДНИЙ ФРОНТ,,84,2019-11-20,13111,"Заробітна плата, премії","Заробітна плата, лікарняні, вагітності, відрядження, компенсації",357526,Центральний офіс,39181335,Україна,Заробітна плата за 1 половину листопада 2019р.,26004100001777,state,4216.67,Мацукевич Христина Романівна,,фізична особа
НАРОДНИЙ ФРОНТ,,84,2019-11-20,12111,"Заробітна плата, премії","Заробітна плата, лікарняні, вагітності, відрядження, компенсації",357525,Центральний офіс,39181335,Україна,Заробітна плата за 1 половину листопада 2019р.,26004100001777,state,5059.99,Самойленко Анна Олександрівна,,фізична особа
НАРОДНИЙ ФРОНТ,,84,2019-11-20,12111,"Заробітна плата, премії","Заробітна плата, лікарняні, вагітності, відрядження, компенсації",357524,Центральний офіс,39181335,Україна,Заробітна плата за 1 половину листопада 2019р.,26004100001777,state,5059.99,Сарафанова Наталія Василівна,,фізична особа
НАРОДНИЙ ФРОНТ,,84,2019-11-20,11111,"Заробітна плата, премії","Заробітна плата, лікарняні, вагітності, відрядження, компенсації",357523,Центральний офіс,39181335,Україна,Заробітна плата за 1 половину листопада 2019р.,26004100001777,state,6324.99,Махновець Віктор Петрович,,фізична особа
НАРОДНИЙ ФРОНТ,,84,2019-11-20,11111,"Заробітна плата, премії","Заробітна плата, лікарняні, вагітності, відрядження, компенсації",357522,Центральний офіс,39181335,Україна,Заробітна плата за 1 половину листопада 2019р.,26004100001777,state,2951.67,Фролов Микола Володимирович,,фізична особа
НАРОДНИЙ ФРОНТ,,84,2019-11-20,2111,"Заробітна плата, премії","Заробітна плата, лікарняні, вагітності, відрядження, компенсації",357521,Центральний офіс,39181335,Україна,Заробітна плата за 1 половину листопада 2019р.,26004100001777,state,6324.99,Заєць Тетяна Петрівна,,фізична особа
НАРОДНИЙ ФРОНТ,,84,2019-11-20,10111,"Заробітна плата, премії","Заробітна плата, лікарняні, вагітності, відрядження, компенсації",357520,Центральний офіс,39181335,Україна,Заробітна плата за 1 половину листопада 2019р.,26004100001777,state,6324.99,Савчин Андрій Якимович,,фізична особа
НАРОДНИЙ ФРОНТ,,84,2019-11-20,9111,"Заробітна плата, премії","Заробітна плата, лікарняні, вагітності, відрядження, компенсації",357519,Центральний офіс,39181335,Україна,Заробітна плата за 1 половину листопада 2019р.,26004100001777,state,4216.67,Зуєнко Людмила Миколаївна,,фізична особа
НАРОДНИЙ ФРОНТ,,84,2019-11-20,9111,"Заробітна плата, премії","Заробітна плата, лікарняні, вагітності, відрядження, компенсації",357518,Центральний офіс,39181335,Україна,Заробітна плата за 1 половину листопада 2019р.,26004100001777,state,5059.99,Останькович Олена Миколаївна,,фізична особа
НАРОДНИЙ ФРОНТ,,84,2019-11-20,8111,"Заробітна плата, премії","Заробітна плата, лікарняні, вагітності, відрядження, компенсації",357517,Центральний офіс,39181335,Україна,Заробітна плата за 1 половину листопада 2019р.,26004100001777,state,5059.99,Білецька Тетяна Вадимівна,,фізична особа
НАРОДНИЙ ФРОНТ,,84,2019-11-20,8111,"Заробітна плата, премії","Заробітна плата, лікарняні, вагітності, відрядження, компенсації",357516,Центральний офіс,39181335,Україна,Заробітна плата за 1 половину листопада 2019р.,26004100001777,state,5059.99,Корольчук Людмила Кирилівна,,фізична особа
НАРОДНИЙ ФРОНТ,,84,2019-11-20,7111,"Заробітна плата, премії","Заробітна плата, лікарняні, вагітності, відрядження, компенсації",357515,Центральний офіс,39181335,Україна,Заробітна плата за 1 половину листопада 2019р.,26004100001777,state,5059.99,Данилюк Ірина Степанівна,,фізична особа
НАРОДНИЙ ФРОНТ,,84,2019-11-20,7111,"Заробітна плата, премії","Заробітна плата, лікарняні, вагітності, відрядження, компенсації",357514,Центральний офіс,39181335,Україна,Заробітна плата за 1 половину листопада 2019р.,26004100001777,state,4216.67,Шатківський Дмитро Олександрович,,фізична особа
НАРОДНИЙ ФРОНТ,,84,2019-11-20,6111,"Заробітна плата, премії","Заробітна плата, лікарняні, вагітності, відрядження, компенсації",357513,Центральний офіс,39181335,Україна,Заробітна плата за 1 половину листопада 2019р.,26004100001777,state,5059.99,Буслов Віктор Юрійович,,фізична особа
НАРОДНИЙ ФРОНТ,,84,2019-11-20,5111,"Заробітна плата, премії","Заробітна плата, лікарняні, вагітності, відрядження, компенсації",357512,Центральний офіс,39181335,Україна,Заробітна плата за 1 половину листопада 2019р.,26004100001777,state,4216.67,Карач Юлія Іванівна,,фізична особа
НАРОДНИЙ ФРОНТ,,84,2019-11-20,5111,"Заробітна плата, премії","Заробітна плата, лікарняні, вагітності, відрядження, компенсації",357511,Центральний офіс,39181335,Україна,Заробітна плата за 1 половину листопада 2019р.,26004100001777,state,5059.99,Обез Марина Іванівна,,фізична особа
НАРОДНИЙ ФРОНТ,,84,2019-11-20,1111,"Заробітна плата, премії","Заробітна плата, лікарняні, вагітності, відрядження, компенсації",357510,Центральний офіс,39181335,Україна,Заробітна плата за 1 половину листопада 2019р.,26004100001777,state,2951.67,Литвиненко Андрій Миколайович,,фізична особа
НАРОДНИЙ ФРОНТ,,84,2019-11-20,1111,"Заробітна плата, премії","Заробітна плата, лікарняні, вагітності, відрядження, компенсації",357509,Центральний офіс,39181335,Україна,Заробітна плата за 1 половину листопада 2019р.,26004100001777,state,3162.50,Лимар Юрій Володимирович,,фізична особа
НАРОДНИЙ ФРОНТ,,84,2019-11-20,1111,"Заробітна плата, премії","Заробітна плата, лікарняні, вагітності, відрядження, компенсації",357508,Центральний офіс,39181335,Україна,Заробітна плата за 1 половину листопада 2019р.,26004100001777,state,12650.01,Ледовських Олена Володимирівна,,фізична особа
НАРОДНИЙ ФРОНТ,,84,2019-11-20,1111,"Заробітна плата, премії","Заробітна плата, лікарняні, вагітності, відрядження, компенсації",357507,Центральний офіс,39181335,Україна,Заробітна плата за 1 половину листопада 2019р.,26004100001777,state,5270.84,Лебедєв Микола Васильович,,фізична особа
НАРОДНИЙ ФРОНТ,,84,2019-11-20,1111,"Заробітна плата, премії","Заробітна плата, лікарняні, вагітності, відрядження, компенсації",357506,Центральний офіс,39181335,Україна,Заробітна плата за 1 половину листопада 2019р.,26004100001777,state,8011.66,Лаппо Ольга Георгіївна,,фізична особа
НАРОДНИЙ ФРОНТ,,84,2019-11-20,1111,"Заробітна плата, премії","Заробітна плата, лікарняні, вагітності, відрядження, компенсації",357505,Центральний офіс,39181335,Україна,Заробітна плата за 1 половину листопада 2019р.,26004100001777,state,8011.66,Курас Лариса Петрівна,,фізична особа
НАРОДНИЙ ФРОНТ,,84,2019-11-20,1111,"Заробітна плата, премії","Заробітна плата, лікарняні, вагітності, відрядження, компенсації",357504,Центральний офіс,39181335,Україна,Заробітна плата за 1 половину листопада 2019р.,26004100001777,state,8011.66,Кулібаба Наталія Юріївна,,фізична особа
НАРОДНИЙ ФРОНТ,,84,2019-11-20,1111,"Заробітна плата, премії","Заробітна плата, лікарняні, вагітності, відрядження, компенсації",357503,Центральний офіс,39181335,Україна,Заробітна плата за 1 половину листопада 2019р.,26004100001777,state,10541.67,Корчик Віталій Андрійович,,фізична особа
НАРОДНИЙ ФРОНТ,,84,2019-11-20,1111,"Заробітна плата, премії","Заробітна плата, лікарняні, вагітності, відрядження, компенсації",357502,Центральний офіс,39181335,Україна,Заробітна плата за 1 половину листопада 2019р.,26004100001777,state,10541.67,Колганова Олена Валеріївна,,фізична особа
НАРОДНИЙ ФРОНТ,,84,2019-11-20,1111,"Заробітна плата, премії","Заробітна плата, лікарняні, вагітності, відрядження, компенсації",357501,Центральний офіс,39181335,Україна,Заробітна плата за 1 половину листопада 2019р.,26004100001777,state,10541.67,Койляк Галина Ігорівна,,фізична особа
НАРОДНИЙ ФРОНТ,,84,2019-11-20,1111,"Заробітна плата, премії","Заробітна плата, лікарняні, вагітності, відрядження, компенсації",357500,Центральний офіс,39181335,Україна,Заробітна плата за 1 половину листопада 2019р.,26004100001777,state,2108.33,Коба Ольга Володимирівна,,фізична особа
НАРОДНИЙ ФРОНТ,,84,2019-11-20,1111,"Заробітна плата, премії","Заробітна плата, лікарняні, вагітності, відрядження, компенсації",357499,Центральний офіс,39181335,Україна,Заробітна плата за 1 половину листопада 2019р.,26004100001777,state,5270.84,Карасьов Дмитро Геннадійович,,фізична особа
НАРОДНИЙ ФРОНТ,,84,2019-11-20,1111,"Заробітна плата, премії","Заробітна плата, лікарняні, вагітності, відрядження, компенсації",357498,Центральний офіс,39181335,Україна,Заробітна плата за 1 половину листопада 2019р.,26004100001777,state,8011.66,Данилюк Марина Миколаївна,,фізична особа
НАРОДНИЙ ФРОНТ,,84,2019-11-20,1111,"Заробітна плата, премії","Заробітна плата, лікарняні, вагітності, відрядження, компенсації",357497,Центральний офіс,39181335,Україна,Заробітна плата за 1 половину листопада 2019р.,26004100001777,state,10541.67,Гринь Костянтин Андрійович,,фізична особа
НАРОДНИЙ ФРОНТ,,84,2019-11-20,1111,"Заробітна плата, премії","Заробітна плата, лікарняні, вагітності, відрядження, компенсації",357496,Центральний офіс,39181335,Україна,Заробітна плата за 1 половину листопада 2019р.,26004100001777,state,5270.84,Валявська Ольга Дмитрівна,,фізична особа
НАРОДНИЙ ФРОНТ,,84,2019-11-20,1111,"Заробітна плата, премії","Заробітна плата, лікарняні, вагітності, відрядження, компенсації",357495,Центральний офіс,39181335,Україна,Заробітна плата за 1 половину листопада 2019р.,26004100001777,state,2108.33,Боєчко Наталія Мирославівна,,фізична особа
НАРОДНИЙ ФРОНТ,,84,2019-11-20,1111,"Заробітна плата, премії","Заробітна плата, лікарняні, вагітності, відрядження, компенсації",357494,Центральний офіс,39181335,Україна,Заробітна плата за 1 половину листопада 2019р.,26004100001777,state,8011.66,Боднарюк Тетяна Григорівна,,фізична особа
НАРОДНИЙ ФРОНТ,,84,2019-11-20,1111,"Заробітна плата, премії","Заробітна плата, лікарняні, вагітності, відрядження, компенсації",357493,Центральний офіс,39181335,Україна,Заробітна плата за 1 половину листопада 2019р.,26004100001777,state,5270.84,Білан Ірина Борисівна,,фізична особа
НАРОДНИЙ ФРОНТ,,84,2019-11-20,1111,"Заробітна плата, премії","Заробітна плата, лікарняні, вагітності, відрядження, компенсації",357492,Центральний офіс,39181335,Україна,Заробітна плата за 1 половину листопада 2019р.,26004100001777,state,10541.67,Бендюженко Федір Володимирович,,фізична особа
НАРОДНИЙ ФРОНТ,,84,2019-11-20,1111,"Заробітна плата, премії","Заробітна плата, лікарняні, вагітності, відрядження, компенсації",357491,Центральний офіс,39181335,Україна,Заробітна плата за 1 половину листопада 2019р.,26004100001777,state,8011.66,Баранов Віктор Петрович,,фізична особа
НАРОДНИЙ ФРОНТ,,84,2019-11-20,1111,"Заробітна плата, премії","Заробітна плата, лікарняні, вагітності, відрядження, компенсації",357490,Центральний офіс,39181335,Україна,Заробітна плата за 1 половину листопада 2019р.,26004100001777,state,4216.67,Якобчук Андрій Миколайович,,фізична особа
НАРОДНИЙ ФРОНТ,,84,2019-11-20,1111,"Заробітна плата, премії","Заробітна плата, лікарняні, вагітності, відрядження, компенсації",357489,Центральний офіс,39181335,Україна,Заробітна плата за 1 половину листопада 2019р.,26004100001777,state,10541.67,Якименко Світлана Олександрівна,,фізична особа
НАРОДНИЙ ФРОНТ,,84,2019-11-20,1111,"Заробітна плата, премії","Заробітна плата, лікарняні, вагітності, відрядження, компенсації",357488,Центральний офіс,39181335,Україна,Заробітна плата за 1 половину листопада 2019р.,26004100001777,state,8011.66,Явецький Андрій Олександрович,,фізична особа
НАРОДНИЙ ФРОНТ,,84,2019-11-20,1111,"Заробітна плата, премії","Заробітна плата, лікарняні, вагітності, відрядження, компенсації",357487,Центральний офіс,39181335,Україна,Заробітна плата за 1 половину листопада 2019р.,26004100001777,state,10541.67,Шевченко Наталія Анатоліївна,,фізична особа
НАРОДНИЙ ФРОНТ,,84,2019-11-20,1111,"Заробітна плата, премії","Заробітна плата, лікарняні, вагітності, відрядження, компенсації",357486,Центральний офіс,39181335,Україна,Заробітна плата за 1 половину листопада 2019р.,26004100001777,state,10541.67,Шевченко Євгеній Віталійович,,фізична особа
НАРОДНИЙ ФРОНТ,,84,2019-11-20,1111,"Заробітна плата, премії","Заробітна плата, лікарняні, вагітності, відрядження, компенсації",357485,Центральний офіс,39181335,Україна,Заробітна плата за 1 половину листопада 2019р.,26004100001777,state,5270.84,Чигрин Дмитро Володимирович,,фізична особа
НАРОДНИЙ ФРОНТ,,84,2019-11-20,1111,"Заробітна плата, премії","Заробітна плата, лікарняні, вагітності, відрядження, компенсації",357484,Центральний офіс,39181335,Україна,Заробітна плата за 1 половину листопада 2019р.,26004100001777,state,9487.49,Сулейманов Ернест Фахритович,,фізична особа
НАРОДНИЙ ФРОНТ,,84,2019-11-20,1111,"Заробітна плата, премії","Заробітна плата, лікарняні, вагітності, відрядження, компенсації",357483,Центральний офіс,39181335,Україна,Заробітна плата за 1 половину листопада 2019р.,26004100001777,state,10541.67,Сочка Олександр Олександрович,,фізична особа
НАРОДНИЙ ФРОНТ,,84,2019-11-20,1111,"Заробітна плата, премії","Заробітна плата, лікарняні, вагітності, відрядження, компенсації",357482,Центральний офіс,39181335,Україна,Заробітна плата за 1 половину листопада 2019р.,26004100001777,state,8011.66,Соловйов Олексій Володимирович,,фізична особа
НАРОДНИЙ ФРОНТ,,84,2019-11-20,1111,"Заробітна плата, премії","Заробітна плата, лікарняні, вагітності, відрядження, компенсації",357481,Центральний офіс,39181335,Україна,Заробітна плата за 1 половину листопада 2019р.,26004100001777,state,5270.84,Сичова Катерина Сергіївна,,фізична особа
НАРОДНИЙ ФРОНТ,,84,2019-11-20,1111,"Заробітна плата, премії","Заробітна плата, лікарняні, вагітності, відрядження, компенсації",357480,Центральний офіс,39181335,Україна,Заробітна плата за 1 половину листопада 2019р.,26004100001777,state,5270.84,Рижков Дмитро Ігорович,,фізична особа
НАРОДНИЙ ФРОНТ,,84,2019-11-20,1111,"Заробітна плата, премії","Заробітна плата, лікарняні, вагітності, відрядження, компенсації",357479,Центральний офіс,39181335,Україна,Заробітна плата за 1 половину листопада 2019р.,26004100001777,state,1725.01,Ляшенко Микола Миколайович,,фізична особа
НАРОДНИЙ ФРОНТ,,84,2019-11-20,1111,"Заробітна плата, премії","Заробітна плата, лікарняні, вагітності, відрядження, компенсації",357478,Центральний офіс,39181335,Україна,Заробітна плата за 1 половину листопада 2019р.,26004100001777,state,2951.67,Махорін Вʼячеслав Сергійович,,фізична особа
НАРОДНИЙ ФРОНТ,,84,2019-11-20,1111,"Заробітна плата, премії","Заробітна плата, лікарняні, вагітності, відрядження, компенсації",357477,Центральний офіс,39181335,Україна,Заробітна плата за 1 половину листопада 2019р.,26004100001777,state,8011.66,Мольдерф Валентина Григорівна,,фізична особа
НАРОДНИЙ ФРОНТ,,84,2019-11-20,1111,"Заробітна плата, премії","Заробітна плата, лікарняні, вагітності, відрядження, компенсації",357476,Центральний офіс,39181335,Україна,Заробітна плата за 1 половину листопада 2019р.,26004100001777,state,8011.66,Особський Вадим Володимирович,,фізична особа
НАРОДНИЙ ФРОНТ,,84,2019-11-20,1111,"Заробітна плата, премії","Заробітна плата, лікарняні, вагітності, відрядження, компенсації",357475,Центральний офіс,39181335,Україна,Заробітна плата за 1 половину листопада 2019р.,26004100001777,state,2951.67,Панькова Лідія Василівна,,фізична особа
НАРОДНИЙ ФРОНТ,,84,2019-11-20,1111,"Заробітна плата, премії","Заробітна плата, лікарняні, вагітності, відрядження, компенсації",357474,Центральний офіс,39181335,Україна,Заробітна плата за 1 половину листопада 2019р.,26004100001777,state,2951.67,Петренко Любов Володимирівна,,фізична особа
НАРОДНИЙ ФРОНТ,,84,2019-11-20,1111,"Заробітна плата, премії","Заробітна плата, лікарняні, вагітності, відрядження, компенсації",357473,Центральний офіс,39181335,Україна,Заробітна плата за 1 половину листопада 2019р.,26004100001777,state,5270.84,Побочіх Михайло Олександрович,,фізична особа
НАРОДНИЙ ФРОНТ,,84,2019-11-20,1111,"Заробітна плата, премії","Заробітна плата, лікарняні, вагітності, відрядження, компенсації",357472,Центральний офіс,39181335,Україна,Заробітна плата за 1 половину листопада 2019р.,26004100001777,state,4216.67,Полюшко Володимир Миколайович,,фізична особа
НАРОДНИЙ ФРОНТ,,84,2019-11-20,1111,"Заробітна плата, премії","Заробітна плата, лікарняні, вагітності, відрядження, компенсації",357471,Центральний офіс,39181335,Україна,Заробітна плата за 1 половину листопада 2019р.,26004100001777,state,10541.67,Пономаренко Ганна Василівна,,фізична особа
НАРОДНИЙ ФРОНТ,,84,2019-11-20,1111,"Заробітна плата, премії","Заробітна плата, лікарняні, вагітності, відрядження, компенсації",357470,Центральний офіс,39181335,Україна,Заробітна плата за 1 половину листопада 2019р.,26004100001777,state,8011.66,Пономаренко Сергій Володимирович,,фізична особа
НАРОДНИЙ ФРОНТ,Київ,61,2019-11-18,3833,Військовий збір,Податкові платежі,358019,Центральний офіс,39181335,Україна,Військовий збір,26004100001777,state,200.00,УДКСУ в Дарницькому районі,38021179,юридична особа
НАРОДНИЙ ФРОНТ,Київ,63,2019-11-18,3832,Податок на доходи,Податкові платежі,358018,Центральний офіс,39181335,Україна,Податок на доходи фізичних осіб,26004100001777,state,2500.00,УДКСУ в Дарницькому районі,38021179,юридична особа
НАРОДНИЙ ФРОНТ,Київ,62,2019-11-18,3831,Сплата ЄСВ,Податкові платежі,358017,Центральний офіс,39181335,Україна,Єдиний соціальний внесок,26004100001777,state,3000.00,ГУ ДФС у м. Києві,43141267,юридична особа
НАРОДНИЙ ФРОНТ,"Київ, вулиця Госпітальна, 12Г",70,2019-11-18,8960268611,Банківські послуги,Інші витрати,358016,Центральний офіс,39181335,Україна,Комісія банку за виплату заробітної плати,26004100001777,state,54.13,"АТ ""Ощадбанк""",00032129,юридична особа
НАРОДНИЙ ФРОНТ,,84,2019-11-18,25110,"Заробітна плата, премії","Заробітна плата, лікарняні, вагітності, відрядження, компенсації",357469,Центральний офіс,39181335,Україна,Заробітна плата за час щорічної відпустки,26004100001777,state,2965.22,Бруй Юлія Віталіївна,,фізична особа
НАРОДНИЙ ФРОНТ,,84,2019-11-18,25111,"Заробітна плата, премії","Заробітна плата, лікарняні, вагітності, відрядження, компенсації",357468,Центральний офіс,39181335,Україна,Заробітна плата за 1 половину листопада 2019р.,26004100001777,state,6324.99,Бруй Юлія Віталіївна,,фізична особа
НАРОДНИЙ ФРОНТ,,84,2019-11-18,2112,"Заробітна плата, премії","Заробітна плата, лікарняні, вагітності, відрядження, компенсації",357467,Центральний офіс,39181335,Україна,Заробітна плата за листопад 2019р.,26004100001777,state,1534.93,Наваренко Софія Дмитрівна,,фізична особа
НАРОДНИЙ ФРОНТ,Київ,61,2019-11-12,3828,Військовий збір,Податкові платежі,358015,Центральний офіс,39181335,Україна,Військовий збір,26004100001777,state,150.00,УДКСУ в Дарницькому районі,38021179,юридична особа
НАРОДНИЙ ФРОНТ,Київ,63,2019-11-12,3827,Податок на доходи,Податкові платежі,358014,Центральний офіс,39181335,Україна,Податок на доходи фізичних осіб,26004100001777,state,1600.00,УДКСУ в Дарницькому районі,38021179,юридична особа
НАРОДНИЙ ФРОНТ,Київ,62,2019-11-12,3826,Сплата ЄСВ,Податкові платежі,358013,Центральний офіс,39181335,Україна,Єдиний соціальний внесок,26004100001777,state,2000.00,ГУ ДФС у м. Києві,43141267,юридична особа
НАРОДНИЙ ФРОНТ,"Київ, вулиця Госпітальна, 12Г",70,2019-11-12,6280376211,Банківські послуги,Інші витрати,358012,Центральний офіс,39181335,Україна,Комісія банку за виплату заробітної плати,26004100001777,state,34.25,"АТ ""Ощадбанк""",00032129,юридична особа
НАРОДНИЙ ФРОНТ,,84,2019-11-12,1111,"Заробітна плата, премії","Заробітна плата, лікарняні, вагітності, відрядження, компенсації",357466,Центральний офіс,39181335,Україна,Заробітна плата за листопад 2019р.,26004100001777,state,6850.71,Ляшенко Микола Миколайович,,фізична особа
НАРОДНИЙ ФРОНТ,,74,2019-11-08,3823,"Придбання канцтоварів, паперу, інших предметів і матеріалів, а також госп товари",Придбання канцтоварів та госп. товарів,357465,Центральний офіс,39181335,Україна,Оплата за господарські товари,26004100001777,state,53459.12,Шлапак Оксана Костянтинівна,,фізична особа
НАРОДНИЙ ФРОНТ,"Київська обл., Обухівський район, Обухів, вулиця Малишка, 1",74,2019-11-07,3822,"Придбання канцтоварів, паперу, інших предметів і матеріалів, а також госп товари",Придбання канцтоварів та госп. товарів,358011,Центральний офіс,39181335,Україна,Оплата за господарські товари,26004100001777,state,86623.27,"ТОВ ""Спіраль Україна""",39336967,юридична особа
НАРОДНИЙ ФРОНТ,Київ,61,2019-11-07,3821,Військовий збір,Податкові платежі,358010,Центральний офіс,39181335,Україна,Військовий збір,26004100001777,state,5000.00,УДКСУ в Дарницькому районі,38021179,юридична особа
НАРОДНИЙ ФРОНТ,Київ,63,2019-11-07,3820,Податок на доходи,Податкові платежі,358009,Центральний офіс,39181335,Україна,Податок на доходи фізичних осіб,26004100001777,state,50000.00,УДКСУ в Дарницькому районі,38021179,юридична особа
НАРОДНИЙ ФРОНТ,Київ,62,2019-11-07,3819,Сплата ЄСВ,Податкові платежі,358008,Центральний офіс,39181335,Україна,Єдиний соціальний внесок,26004100001777,state,75000.00,ГУ ДФС у м. Києві,43141267,юридична особа
НАРОДНИЙ ФРОНТ,"Київ, вулиця Тропініна, 1",76,2019-11-07,3818,Послуги зв’язку,Послуги зв’язку,358007,Центральний офіс,39181335,Україна,Оплата за послуги телефонії за жовтень 2019р.,26004100001777,state,719.25,"ТОВ ""Космонова""",32074513,юридична особа
НАРОДНИЙ ФРОНТ,"Київ, вулиця Тропініна, 1",76,2019-11-07,3817,Послуги зв’язку,Послуги зв’язку,358006,Центральний офіс,39181335,Україна,Абонплата за Інтернет за листопад 2019р.,26004100001777,state,4000.00,"ТОВ ""Космонова""",32074513,юридична особа
НАРОДНИЙ ФРОНТ,"Київ, вулиця Велика Житомирська, 20",72,2019-11-07,3816,"Придбання, ремонт офісної техніки та програмного забезпечення (Бухгалтерські програми, Ліга.закон, домени)",Придбання офісної техніки та програмного забезпечення,358005,Центральний офіс,39181335,Україна,Плата за право використання сервісу моніторингу YouScan у листопаді 2019р.,26004100001777,state,14500.00,"ТОВ ""Юскан Україна""",37025387,юридична особа
НАРОДНИЙ ФРОНТ,"Львівська область, Львів, вулиця Степана Бандери, 43",79,2019-11-07,3809,"Оренда будинків і приміщень та експлуатаційні витрати (прибирання, страхування орендованих будинків, охорона, сигналізація, ремонт, вивіз сміття, тощо)",Оренда нерухомості,358004,Центральний офіс,39181335,Україна,Орендна плата за листопад 2019р.,26004100001777,state,39000.00,"ТОВ ""Світ бізнесу""",25547981,юридична особа
НАРОДНИЙ ФРОНТ,,79,2019-11-07,3815,"Оренда будинків і приміщень та експлуатаційні витрати (прибирання, страхування орендованих будинків, охорона, сигналізація, ремонт, вивіз сміття, тощо)",Оренда нерухомості,357464,Центральний офіс,39181335,Україна,Відшкодування вартості комунальних послуг за червень 2019р.,26004100001777,state,50.00,Пархоменко Олександр Герасимович,,фізична особа
НАРОДНИЙ ФРОНТ,,79,2019-11-07,3814,"Оренда будинків і приміщень та експлуатаційні витрати (прибирання, страхування орендованих будинків, охорона, сигналізація, ремонт, вивіз сміття, тощо)",Оренда нерухомості,357463,Центральний офіс,39181335,Україна,Відшкодування вартості комунальних послуг за липень 2019р.,26004100001777,state,1085.38,Нежурбіда Галина Григорівна,,фізична особа
НАРОДНИЙ ФРОНТ,,79,2019-11-07,3813,"Оренда будинків і приміщень та експлуатаційні витрати (прибирання, страхування орендованих будинків, охорона, сигналізація, ремонт, вивіз сміття, тощо)",Оренда нерухомості,357462,Центральний офіс,39181335,Україна,Орендна плата за жовтень 2019р.,26004100001777,state,13143.00,Нежурбіда Галина Григорівна,,фізична особа
НАРОДНИЙ ФРОНТ,,79,2019-11-07,3812,"Оренда будинків і приміщень та експлуатаційні витрати (прибирання, страхування орендованих будинків, охорона, сигналізація, ремонт, вивіз сміття, тощо)",Оренда нерухомості,357461,Центральний офіс,39181335,Україна,Орендна плата за жовтень 2019р.,26004100001777,state,64998.48,Гулямова Олена Олександрівна,,фізична особа
НАРОДНИЙ ФРОНТ,,79,2019-11-07,3811,"Оренда будинків і приміщень та експлуатаційні витрати (прибирання, страхування орендованих будинків, охорона, сигналізація, ремонт, вивіз сміття, тощо)",Оренда нерухомості,357460,Центральний офіс,39181335,Україна,Відшкодування вартості комунальних послуг за вересень 2019р.,26004100001777,state,823.07,Гулямова Олена Олександрівна,,фізична особа
НАРОДНИЙ ФРОНТ,,79,2019-11-07,3810,"Оренда будинків і приміщень та експлуатаційні витрати (прибирання, страхування орендованих будинків, охорона, сигналізація, ремонт, вивіз сміття, тощо)",Оренда нерухомості,357459,Центральний офіс,39181335,Україна,Орендна плата за вересень 2019р.,26004100001777,state,58498.63,Гулямова Олена Олександрівна,,фізична особа
НАРОДНИЙ ФРОНТ,,84,2019-11-07,3808,"Заробітна плата, премії","Заробітна плата, лікарняні, вагітності, відрядження, компенсації",357458,Центральний офіс,39181335,Україна,Заробітна плата за жовтень 2019р.,26004100001777,state,12094.82,Данілін Владислав Юрійович,,фізична особа
НАРОДНИЙ ФРОНТ,Київ,61,2019-11-05,3807,Військовий збір,Податкові платежі,358003,Центральний офіс,39181335,Україна,Військовий збір,26004100001777,state,9369.37,УДКСУ в Дарницькому районі,38021179,юридична особа
НАРОДНИЙ ФРОНТ,Київ,63,2019-11-05,3806,Податок на доходи,Податкові платежі,358002,Центральний офіс,39181335,Україна,Податок на доходи фізичних осіб,26004100001777,state,112432.50,УДКСУ в Дарницькому районі,38021179,юридична особа
НАРОДНИЙ ФРОНТ,Київ,61,2019-11-05,3804,Військовий збір,Податкові платежі,358001,Центральний офіс,39181335,Україна,Військовий збір,26004100001777,state,4680.56,УДКСУ в Дарницькому районі,38021179,юридична особа
НАРОДНИЙ ФРОНТ,Київ,63,2019-11-05,3803,Податок на доходи,Податкові платежі,358000,Центральний офіс,39181335,Україна,Податок на доходи фізичних осіб,26004100001777,state,56166.75,УДКСУ в Дарницькому районі,38021179,юридична особа
НАРОДНИЙ ФРОНТ,Київ,61,2019-11-05,3801,Військовий збір,Податкові платежі,357999,Центральний офіс,39181335,Україна,Військовий збір,26004100001777,state,8800.00,УДКСУ в Дарницькому районі,38021179,юридична особа
НАРОДНИЙ ФРОНТ,Київ,63,2019-11-05,3800,Податок на доходи,Податкові платежі,357998,Центральний офіс,39181335,Україна,Податок на доходи фізичних осіб,26004100001777,state,105000.00,УДКСУ в Дарницькому районі,38021179,юридична особа
НАРОДНИЙ ФРОНТ,Київ,62,2019-11-05,3799,Сплата ЄСВ,Податкові платежі,357997,Центральний офіс,39181335,Україна,Єдиний соціальний внесок,26004100001777,state,130000.00,ГУ ДФС у м. Києві,43141267,юридична особа
НАРОДНИЙ ФРОНТ,"Київ, вулиця Госпітальна, 12Г",70,2019-11-05,2826519611,Банківські послуги,Інші витрати,357996,Центральний офіс,39181335,Україна,Комісія банку за виплату заробітної плати,26004100001777,state,45.28,"АТ ""Ощадбанк""",00032129,юридична особа
НАРОДНИЙ ФРОНТ,"Київ, вулиця Госпітальна, 12Г",70,2019-11-05,2792746911,Банківські послуги,Інші витрати,357995,Центральний офіс,39181335,Україна,Комісія банку за виплату заробітної плати,26004100001777,state,2270.70,"АТ ""Ощадбанк""",00032129,юридична особа
НАРОДНИЙ ФРОНТ,,84,2019-11-05,9798388337,"Заробітна плата, премії","Заробітна плата, лікарняні, вагітності, відрядження, компенсації",357457,Центральний офіс,39181335,Україна,Заробітна плата за 2 половину жовтня 2019р.,26004100001777,state,1829.55,Литовченко Валерій Олексійович,,фізична особа
НАРОДНИЙ ФРОНТ,,84,2019-11-05,9798388337,"Заробітна плата, премії","Заробітна плата, лікарняні, вагітності, відрядження, компенсації",357456,Центральний офіс,39181335,Україна,Заробітна плата за 2 половину жовтня 2019р.,26004100001777,state,6037.50,Бруй Юлія Віталіївна,,фізична особа
НАРОДНИЙ ФРОНТ,,84,2019-11-05,9798388336,"Заробітна плата, премії","Заробітна плата, лікарняні, вагітності, відрядження, компенсації",357455,Центральний офіс,39181335,Україна,Заробітна плата за 2 половину жовтня 2019р.,26004100001777,state,4025.00,Вишневська Світлана Петрівна,,фізична особа
НАРОДНИЙ ФРОНТ,,84,2019-11-05,9798388336,"Заробітна плата, премії","Заробітна плата, лікарняні, вагітності, відрядження, компенсації",357454,Центральний офіс,39181335,Україна,Заробітна плата за 2 половину жовтня 2019р.,26004100001777,state,6037.50,Ватаманюк Людмила Іванівна,,фізична особа
НАРОДНИЙ ФРОНТ,,84,2019-11-05,9798388335,"Заробітна плата, премії","Заробітна плата, лікарняні, вагітності, відрядження, компенсації",357453,Центральний офіс,39181335,Україна,Заробітна плата за 2 половину жовтня 2019р.,26004100001777,state,4830.00,Фурса Оксана Володимирівна,,фізична особа
НАРОДНИЙ ФРОНТ,,84,2019-11-05,9798388335,"Заробітна плата, премії","Заробітна плата, лікарняні, вагітності, відрядження, компенсації",357452,Центральний офіс,39181335,Україна,Заробітна плата за 2 половину жовтня 2019р.,26004100001777,state,4025.00,Соловйова Вікторія Владиславівна,,фізична особа
НАРОДНИЙ ФРОНТ,,84,2019-11-05,9798388334,"Заробітна плата, премії","Заробітна плата, лікарняні, вагітності, відрядження, компенсації",357451,Центральний офіс,39181335,Україна,Заробітна плата за 2 половину жовтня 2019р.,26004100001777,state,4830.00,Цоміна Тетяна Михайлівна,,фізична особа
НАРОДНИЙ ФРОНТ,,84,2019-11-05,9798388334,"Заробітна плата, премії","Заробітна плата, лікарняні, вагітності, відрядження, компенсації",357450,Центральний офіс,39181335,Україна,Заробітна плата за 2 половину жовтня 2019р.,26004100001777,state,6037.50,Дроздик Анатолій Вячеславович,,фізична особа
НАРОДНИЙ ФРОНТ,,84,2019-11-05,9798388333,"Заробітна плата, премії","Заробітна плата, лікарняні, вагітності, відрядження, компенсації",357449,Центральний офіс,39181335,Україна,Заробітна плата за 2 половину жовтня 2019р.,26004100001777,state,4025.00,Виноградова Ольга Олександрівна,,фізична особа
НАРОДНИЙ ФРОНТ,,84,2019-11-05,9798388332,"Заробітна плата, премії","Заробітна плата, лікарняні, вагітності, відрядження, компенсації",357448,Центральний офіс,39181335,Україна,Заробітна плата за 2 половину жовтня 2019р.,26004100001777,state,4025.00,Ярошенко Євген Станіславович,,фізична особа
НАРОДНИЙ ФРОНТ,,84,2019-11-05,9798388332,"Заробітна плата, премії","Заробітна плата, лікарняні, вагітності, відрядження, компенсації",357447,Центральний офіс,39181335,Україна,Заробітна плата за 2 половину жовтня 2019р.,26004100001777,state,6037.50,Мих Олександр Вікторович,,фізична особа
НАРОДНИЙ ФРОНТ,,84,2019-11-05,9798388331,"Заробітна плата, премії","Заробітна плата, лікарняні, вагітності, відрядження, компенсації",357446,Центральний офіс,39181335,Україна,Заробітна плата за 2 половину жовтня 2019р.,26004100001777,state,4830.00,Михайлюк Віктор Іванович,,фізична особа
НАРОДНИЙ ФРОНТ,,84,2019-11-05,9798388331,"Заробітна плата, премії","Заробітна плата, лікарняні, вагітності, відрядження, компенсації",357445,Центральний офіс,39181335,Україна,Заробітна плата за 2 половину жовтня 2019р.,26004100001777,state,4025.00,Кравець Вікторія Валеріївна,,фізична особа
НАРОДНИЙ ФРОНТ,,84,2019-11-05,9798388330,"Заробітна плата, премії","Заробітна плата, лікарняні, вагітності, відрядження, компенсації",357444,Центральний офіс,39181335,Україна,Заробітна плата за 2 половину жовтня 2019р.,26004100001777,state,4830.00,Ольшанський Олег Вікторович,,фізична особа
НАРОДНИЙ ФРОНТ,,84,2019-11-05,9798388330,"Заробітна плата, премії","Заробітна плата, лікарняні, вагітності, відрядження, компенсації",357443,Центральний офіс,39181335,Україна,Заробітна плата за 2 половину жовтня 2019р.,26004100001777,state,3220.00,Кирій Олеся Миколаївна,,фізична особа
НАРОДНИЙ ФРОНТ,,84,2019-11-05,9798388329,"Заробітна плата, премії","Заробітна плата, лікарняні, вагітності, відрядження, компенсації",357442,Центральний офіс,39181335,Україна,Заробітна плата за 2 половину жовтня 2019р.,26004100001777,state,4830.00,Малухіна Оксана Юріївна,,фізична особа
НАРОДНИЙ ФРОНТ,,84,2019-11-05,9798388329,"Заробітна плата, премії","Заробітна плата, лікарняні, вагітності, відрядження, компенсації",357441,Центральний офіс,39181335,Україна,Заробітна плата за 2 половину жовтня 2019р.,26004100001777,state,4025.00,Генеральчук Ніна Миколаївна,,фізична особа
НАРОДНИЙ ФРОНТ,,84,2019-11-05,9798388328,"Заробітна плата, премії","Заробітна плата, лікарняні, вагітності, відрядження, компенсації",357440,Центральний офіс,39181335,Україна,Заробітна плата за 2 половину жовтня 2019р.,26004100001777,state,4025.00,Кожан Олександр Васильович,,фізична особа
НАРОДНИЙ ФРОНТ,,84,2019-11-05,9798388328,"Заробітна плата, премії","Заробітна плата, лікарняні, вагітності, відрядження, компенсації",357439,Центральний офіс,39181335,Україна,Заробітна плата за 2 половину жовтня 2019р.,26004100001777,state,4830.00,Ємсенко Владислава Володимирівна,,фізична особа
НАРОДНИЙ ФРОНТ,,84,2019-11-05,9798388327,"Заробітна плата, премії","Заробітна плата, лікарняні, вагітності, відрядження, компенсації",357438,Центральний офіс,39181335,Україна,Заробітна плата за 2 половину жовтня 2019р.,26004100001777,state,4025.00,Єрофєєва Оксана Петрівна,,фізична особа
НАРОДНИЙ ФРОНТ,,84,2019-11-05,9798388326,"Заробітна плата, премії","Заробітна плата, лікарняні, вагітності, відрядження, компенсації",357437,Центральний офіс,39181335,Україна,Заробітна плата за 2 половину жовтня 2019р.,26004100001777,state,4025.00,Мацукевич Христина Романівна,,фізична особа
НАРОДНИЙ ФРОНТ,,84,2019-11-05,9798388326,"Заробітна плата, премії","Заробітна плата, лікарняні, вагітності, відрядження, компенсації",357436,Центральний офіс,39181335,Україна,Заробітна плата за 2 половину жовтня 2019р.,26004100001777,state,6037.50,Беспалова Марія Петрівна,,фізична особа
НАРОДНИЙ ФРОНТ,,84,2019-11-05,9798388325,"Заробітна плата, премії","Заробітна плата, лікарняні, вагітності, відрядження, компенсації",357435,Центральний офіс,39181335,Україна,Заробітна плата за 2 половину жовтня 2019р.,26004100001777,state,4830.00,Сарафанова Наталія Василівна,,фізична особа
НАРОДНИЙ ФРОНТ,,84,2019-11-05,9798388325,"Заробітна плата, премії","Заробітна плата, лікарняні, вагітності, відрядження, компенсації",357434,Центральний офіс,39181335,Україна,Заробітна плата за 2 половину жовтня 2019р.,26004100001777,state,4830.00,Самойленко Анна Олександрівна,,фізична особа
НАРОДНИЙ ФРОНТ,,84,2019-11-05,9798388324,"Заробітна плата, премії","Заробітна плата, лікарняні, вагітності, відрядження, компенсації",357433,Центральний офіс,39181335,Україна,Заробітна плата за 2 половину жовтня 2019р.,26004100001777,state,3261.80,Фролов Микола Володимирович,,фізична особа
НАРОДНИЙ ФРОНТ,,84,2019-11-05,9798388324,"Заробітна плата, премії","Заробітна плата, лікарняні, вагітності, відрядження, компенсації",357432,Центральний офіс,39181335,Україна,Заробітна плата за 2 половину жовтня 2019р.,26004100001777,state,6037.50,Махновець Віктор Петрович,,фізична особа
НАРОДНИЙ ФРОНТ,,84,2019-11-05,9798388323,"Заробітна плата, премії","Заробітна плата, лікарняні, вагітності, відрядження, компенсації",357431,Центральний офіс,39181335,Україна,Заробітна плата за 2 половину жовтня 2019р.,26004100001777,state,6037.50,Заєць Тетяна Петрівна,,фізична особа
НАРОДНИЙ ФРОНТ,,84,2019-11-05,9798388322,"Заробітна плата, премії","Заробітна плата, лікарняні, вагітності, відрядження, компенсації",357430,Центральний офіс,39181335,Україна,Заробітна плата за 2 половину жовтня 2019р.,26004100001777,state,6037.50,Савчин Андрій Якимович,,фізична особа
НАРОДНИЙ ФРОНТ,,84,2019-11-05,9798388321,"Заробітна плата, премії","Заробітна плата, лікарняні, вагітності, відрядження, компенсації",357429,Центральний офіс,39181335,Україна,Заробітна плата за 2 половину жовтня 2019р.,26004100001777,state,4830.00,Останькович Олена Миколаївна,,фізична особа
НАРОДНИЙ ФРОНТ,,84,2019-11-05,9798388321,"Заробітна плата, премії","Заробітна плата, лікарняні, вагітності, відрядження, компенсації",357428,Центральний офіс,39181335,Україна,Заробітна плата за 2 половину жовтня 2019р.,26004100001777,state,4025.00,Зуєнко Людмила Миколаївна,,фізична особа
НАРОДНИЙ ФРОНТ,,84,2019-11-05,9798388320,"Заробітна плата, премії","Заробітна плата, лікарняні, вагітності, відрядження, компенсації",357427,Центральний офіс,39181335,Україна,Заробітна плата за 2 половину жовтня 2019р.,26004100001777,state,4830.00,Корольчук Людмила Кирилівна,,фізична особа
НАРОДНИЙ ФРОНТ,,84,2019-11-05,9798388320,"Заробітна плата, премії","Заробітна плата, лікарняні, вагітності, відрядження, компенсації",357426,Центральний офіс,39181335,Україна,Заробітна плата за 2 половину жовтня 2019р.,26004100001777,state,4830.00,Білецька Тетяна Вадимівна,,фізична особа
НАРОДНИЙ ФРОНТ,,84,2019-11-05,9798388319,"Заробітна плата, премії","Заробітна плата, лікарняні, вагітності, відрядження, компенсації",357425,Центральний офіс,39181335,Україна,Заробітна плата за 2 половину жовтня 2019р.,26004100001777,state,4025.00,Шатківський Дмитро Олександрович,,фізична особа
НАРОДНИЙ ФРОНТ,,84,2019-11-05,9798388319,"Заробітна плата, премії","Заробітна плата, лікарняні, вагітності, відрядження, компенсації",357424,Центральний офіс,39181335,Україна,Заробітна плата за 2 половину жовтня 2019р.,26004100001777,state,4830.00,Данилюк Ірина Степанівна,,фізична особа
НАРОДНИЙ ФРОНТ,,84,2019-11-05,9798388318,"Заробітна плата, премії","Заробітна плата, лікарняні, вагітності, відрядження, компенсації",357423,Центральний офіс,39181335,Україна,Заробітна плата за 2 половину жовтня 2019р.,26004100001777,state,4830.00,Буслов Віктор Юрійович,,фізична особа
НАРОДНИЙ ФРОНТ,,84,2019-11-05,9798388317,"Заробітна плата, премії","Заробітна плата, лікарняні, вагітності, відрядження, компенсації",357422,Центральний офіс,39181335,Україна,Заробітна плата за 2 половину жовтня 2019р.,26004100001777,state,4830.00,Обез Марина Іванівна,,фізична особа
НАРОДНИЙ ФРОНТ,,84,2019-11-05,9798388317,"Заробітна плата, премії","Заробітна плата, лікарняні, вагітності, відрядження, компенсації",357421,Центральний офіс,39181335,Україна,Заробітна плата за 2 половину жовтня 2019р.,26004100001777,state,4025.00,Карач Юлія Іванівна,,фізична особа
НАРОДНИЙ ФРОНТ,,84,2019-11-05,1102,"Заробітна плата, премії","Заробітна плата, лікарняні, вагітності, відрядження, компенсації",357420,Центральний офіс,39181335,Україна,Заробітна плата за 2 половину жовтня 2019р.,26004100001777,state,10062.50,Якименко Світлана Олександрівна,,фізична особа
НАРОДНИЙ ФРОНТ,,84,2019-11-05,1102,"Заробітна плата, премії","Заробітна плата, лікарняні, вагітності, відрядження, компенсації",357419,Центральний офіс,39181335,Україна,Заробітна плата за 2 половину жовтня 2019р.,26004100001777,state,7647.50,Данилюк Марина Миколаївна,,фізична особа
НАРОДНИЙ ФРОНТ,,84,2019-11-05,1102,"Заробітна плата, премії","Заробітна плата, лікарняні, вагітності, відрядження, компенсації",357418,Центральний офіс,39181335,Україна,Заробітна плата за 2 половину жовтня 2019р.,26004100001777,state,7647.50,Явецький Андрій Олександрович,,фізична особа
